VENDOR NAME,EXPENSE CATEGORY,PAYMENT AMOUNT,PAYMENT DATE
CITY OF CHICAGO,Contract Construction,"$18,071.12 ",5/17/2017
CITY OF CHICAGO,Property Management,$360 ,6/9/2017
"*ABC HUMANE WILDLIFE CONTROL & PREVENTION, INC.",Revenue Vehicle General Servicing,$825 ,3/10/2017
"*ABC HUMANE WILDLIFE CONTROL & PREVENTION, INC.",Revenue Vehicle General Servicing,"$50,803.50 ",3/29/2017
"*ABC HUMANE WILDLIFE CONTROL & PREVENTION, INC.",Revenue Vehicle General Servicing,"$26,730 ",4/3/2017
"*ABC HUMANE WILDLIFE CONTROL & PREVENTION, INC.",Revenue Vehicle General Servicing,$247.50 ,4/4/2017
"*ABC HUMANE WILDLIFE CONTROL & PREVENTION, INC.",Maintenance of Equipment,"$15,575 ",4/13/2017
"*ABC HUMANE WILDLIFE CONTROL & PREVENTION, INC.",Revenue Vehicle General Servicing,"$1,007 ",4/24/2017
"*ABC HUMANE WILDLIFE CONTROL & PREVENTION, INC.",Revenue Vehicle General Servicing,$141.50 ,4/25/2017
"*ABC HUMANE WILDLIFE CONTROL & PREVENTION, INC.",Revenue Vehicle General Servicing,$141.50 ,4/27/2017
"*ABC HUMANE WILDLIFE CONTROL & PREVENTION, INC.",Revenue Vehicle General Servicing,$141.50 ,4/28/2017
"*ABC HUMANE WILDLIFE CONTROL & PREVENTION, INC.",Revenue Vehicle General Servicing,$141.50 ,5/2/2017
"*ABC HUMANE WILDLIFE CONTROL & PREVENTION, INC.",Revenue Vehicle General Servicing,$141.50 ,5/4/2017
"*ABC HUMANE WILDLIFE CONTROL & PREVENTION, INC.",Revenue Vehicle General Servicing,$141.50 ,5/9/2017
"*ABC HUMANE WILDLIFE CONTROL & PREVENTION, INC.",Revenue Vehicle General Servicing,$283 ,5/16/2017
"*ABC HUMANE WILDLIFE CONTROL & PREVENTION, INC.",Revenue Vehicle General Servicing,$174.50 ,5/17/2017
"*ABC HUMANE WILDLIFE CONTROL & PREVENTION, INC.",General Shop/Gar/Term Repairs & Svcs,$125 ,5/19/2017
"*ABC HUMANE WILDLIFE CONTROL & PREVENTION, INC.",Maintenance of Equipment,"$3,250 ",5/19/2017
"*ABC HUMANE WILDLIFE CONTROL & PREVENTION, INC.",Revenue Vehicle General Servicing,$299.50 ,5/23/2017
"*ABC HUMANE WILDLIFE CONTROL & PREVENTION, INC.",Maintenance of Buildings,"$21,862.50 ",5/24/2017
"*ABC HUMANE WILDLIFE CONTROL & PREVENTION, INC.",Maintenance of Equipment,$625 ,5/24/2017
"*ABC HUMANE WILDLIFE CONTROL & PREVENTION, INC.",Revenue Vehicle General Servicing,$141.50 ,5/24/2017
"*ABC HUMANE WILDLIFE CONTROL & PREVENTION, INC.",General Shop/Gar/Term Repairs & Svcs,$250 ,5/25/2017
"*ABC HUMANE WILDLIFE CONTROL & PREVENTION, INC.",Maintenance of Equipment,$250 ,5/25/2017
"*ABC HUMANE WILDLIFE CONTROL & PREVENTION, INC.",Maintenance of Equipment,$250 ,5/30/2017
"*ABC HUMANE WILDLIFE CONTROL & PREVENTION, INC.",Maintenance of Equipment,$250 ,6/1/2017
"*ABC HUMANE WILDLIFE CONTROL & PREVENTION, INC.",Maintenance of Equipment,$750 ,6/6/2017
"*ABC HUMANE WILDLIFE CONTROL & PREVENTION, INC.",Maintenance of Buildings,"$17,840 ",6/7/2017
"*ABC HUMANE WILDLIFE CONTROL & PREVENTION, INC.",Maintenance of Equipment,$125 ,6/7/2017
"*ABC HUMANE WILDLIFE CONTROL & PREVENTION, INC.",Maintenance of Equipment,$500 ,6/8/2017
"*ABC HUMANE WILDLIFE CONTROL & PREVENTION, INC.",Maintenance of Equipment,$125 ,6/12/2017
"*ABC HUMANE WILDLIFE CONTROL & PREVENTION, INC.",Maintenance of Equipment,$250 ,6/14/2017
"*ABC HUMANE WILDLIFE CONTROL & PREVENTION, INC.",Maintenance of Equipment,$500 ,6/15/2017
"*ABC HUMANE WILDLIFE CONTROL & PREVENTION, INC.",Maintenance of Equipment,$250 ,6/19/2017
"*ABC HUMANE WILDLIFE CONTROL & PREVENTION, INC.",Maintenance of Equipment,$125 ,6/22/2017
"*ABC HUMANE WILDLIFE CONTROL & PREVENTION, INC.",Maintenance of Equipment,$500 ,6/28/2017
"*ABC HUMANE WILDLIFE CONTROL & PREVENTION, INC.",Maintenance of Equipment,"$18,552.50 ",6/29/2017
"*ABC HUMANE WILDLIFE CONTROL & PREVENTION, INC.",Revenue Vehicle General Servicing,"$3,155 ",6/30/2017
"*ABC HUMANE WILDLIFE CONTROL & PREVENTION, INC.",Revenue Vehicle General Servicing,$158 ,7/5/2017
"*ABC HUMANE WILDLIFE CONTROL & PREVENTION, INC.",Maintenance of Equipment,$875 ,7/6/2017
"*ABC HUMANE WILDLIFE CONTROL & PREVENTION, INC.",Revenue Vehicle General Servicing,"$2,871 ",7/7/2017
"*ABC HUMANE WILDLIFE CONTROL & PREVENTION, INC.",Revenue Vehicle General Servicing,$698 ,7/11/2017
"*ABC HUMANE WILDLIFE CONTROL & PREVENTION, INC.",Maintenance of Equipment,$250 ,7/13/2017
"*ABC HUMANE WILDLIFE CONTROL & PREVENTION, INC.",Maintenance of Equipment,$125 ,7/14/2017
"*ABC HUMANE WILDLIFE CONTROL & PREVENTION, INC.",Maintenance of Equipment,$125 ,7/18/2017
"*ABC HUMANE WILDLIFE CONTROL & PREVENTION, INC.",Maintenance of Equipment,$500 ,7/20/2017
"*ABC HUMANE WILDLIFE CONTROL & PREVENTION, INC.",Revenue Vehicle General Servicing,"$1,132 ",7/21/2017
"*ABC HUMANE WILDLIFE CONTROL & PREVENTION, INC.",Revenue Vehicle General Servicing,$141.50 ,7/25/2017
"*ABC HUMANE WILDLIFE CONTROL & PREVENTION, INC.",Maintenance of Equipment,$125 ,7/26/2017
"*ABC HUMANE WILDLIFE CONTROL & PREVENTION, INC.",Maintenance of Equipment,$750 ,7/27/2017
"*ABC HUMANE WILDLIFE CONTROL & PREVENTION, INC.",Maintenance of Equipment,$125 ,7/28/2017
"*ABC HUMANE WILDLIFE CONTROL & PREVENTION, INC.",Revenue Vehicle General Servicing,$599 ,8/7/2017
"*ABC HUMANE WILDLIFE CONTROL & PREVENTION, INC.",Revenue Vehicle General Servicing,$865.50 ,8/16/2017
"*ABC HUMANE WILDLIFE CONTROL & PREVENTION, INC.",Revenue Vehicle General Servicing,"$1,139 ",8/24/2017
"*ABC HUMANE WILDLIFE CONTROL & PREVENTION, INC.",Revenue Vehicle General Servicing,$141.50 ,8/29/2017
"*ABC HUMANE WILDLIFE CONTROL & PREVENTION, INC.",Maintenance of Equipment,"$2,000 ",8/31/2017
"*ABC HUMANE WILDLIFE CONTROL & PREVENTION, INC.",Revenue Vehicle General Servicing,$141.50 ,8/31/2017
"*ABC HUMANE WILDLIFE CONTROL & PREVENTION, INC.",Revenue Vehicle General Servicing,$707.50 ,9/8/2017
"*ABC HUMANE WILDLIFE CONTROL & PREVENTION, INC.",Maintenance of Buildings,"$38,572.50 ",9/14/2017
"*ABC HUMANE WILDLIFE CONTROL & PREVENTION, INC.",Revenue Vehicle General Servicing,"$1,589.50 ",9/27/2017
"*ABC HUMANE WILDLIFE CONTROL & PREVENTION, INC.",Maintenance of Equipment,$625 ,10/6/2017
"*ABC HUMANE WILDLIFE CONTROL & PREVENTION, INC.",Revenue Vehicle General Servicing,$141.50 ,10/6/2017
"*ABC HUMANE WILDLIFE CONTROL & PREVENTION, INC.",Maintenance of Buildings,"$18,315 ",10/10/2017
"*ABC HUMANE WILDLIFE CONTROL & PREVENTION, INC.",Maintenance of Buildings,"$21,002.50 ",11/8/2017
"*ABC HUMANE WILDLIFE CONTROL & PREVENTION, INC.",Maintenance of Equipment,"$3,000 ",11/15/2017
"*ABC HUMANE WILDLIFE CONTROL & PREVENTION, INC.",Maintenance of Equipment,"$3,250 ",11/30/2017
"*ABC HUMANE WILDLIFE CONTROL & PREVENTION, INC.",Maintenance of Equipment,"$2,500 ",12/28/2017
"*ACCUGEN LABORATORIES, INC",Engineering Modifications,"$3,120 ",3/14/2017
"*ALLPOINTS SECURITY AND DETECTIVE, INC.",Administrative Support,"$19,966.67 ",1/18/2017
"*ALLPOINTS SECURITY AND DETECTIVE, INC.",Administrative Support,"$20,126.21 ",1/23/2017
"*ALLPOINTS SECURITY AND DETECTIVE, INC.",Administrative Support,"$19,169.37 ",2/3/2017
"*ALLPOINTS SECURITY AND DETECTIVE, INC.",Administrative Support,"$19,829.99 ",2/17/2017
"*ALLPOINTS SECURITY AND DETECTIVE, INC.",Administrative Support,"$19,704.70 ",3/3/2017
"*ALLPOINTS SECURITY AND DETECTIVE, INC.",Administrative Support,"$19,613.58 ",3/27/2017
"*ALLPOINTS SECURITY AND DETECTIVE, INC.",Administrative Support,"$19,909.72 ",3/30/2017
"*ALLPOINTS SECURITY AND DETECTIVE, INC.",Administrative Support,"$19,704.70 ",4/27/2017
"*ALLPOINTS SECURITY AND DETECTIVE, INC.",Administrative Support,"$19,704.70 ",4/28/2017
"*ALLPOINTS SECURITY AND DETECTIVE, INC.",Administrative Support,"$12,118.96 ",5/12/2017
"*ALLPOINTS SECURITY AND DETECTIVE, INC.",Administrative Support,"$8,758.91 ",5/15/2017
"*ALLPOINTS SECURITY AND DETECTIVE, INC.",Administrative Support,"$8,815.86 ",5/26/2017
"*ALLPOINTS SECURITY AND DETECTIVE, INC.",Administrative Support,"$12,062.01 ",5/30/2017
"*ALLPOINTS SECURITY AND DETECTIVE, INC.",Administrative Support,"$20,912.58 ",6/9/2017
"*ALLPOINTS SECURITY AND DETECTIVE, INC.",Administrative Support,"$11,731.70 ",6/26/2017
"*ALLPOINTS SECURITY AND DETECTIVE, INC.",Administrative Support,"$9,408.14 ",6/27/2017
"*ALLPOINTS SECURITY AND DETECTIVE, INC.",Administrative Support,"$4,322.51 ",7/6/2017
"*ALLPOINTS SECURITY AND DETECTIVE, INC.",Administrative Support,"$17,238.58 ",7/7/2017
"*ALLPOINTS SECURITY AND DETECTIVE, INC.",Administrative Support,"$20,957.70 ",7/21/2017
"*ALLPOINTS SECURITY AND DETECTIVE, INC.",Administrative Support,"$24,477.84 ",8/4/2017
"*ALLPOINTS SECURITY AND DETECTIVE, INC.",Administrative Support,"$23,286.49 ",9/22/2017
"*ALLPOINTS SECURITY AND DETECTIVE, INC.",Administrative Support,"$15,957.39 ",9/26/2017
"*ALLPOINTS SECURITY AND DETECTIVE, INC.",Administrative Support,"$43,951.20 ",9/29/2017
"*ALLPOINTS SECURITY AND DETECTIVE, INC.",Administrative Support,"$21,680.85 ",10/13/2017
"*ALLPOINTS SECURITY AND DETECTIVE, INC.",Administrative Support,"$8,645.01 ",10/27/2017
"*ALLPOINTS SECURITY AND DETECTIVE, INC.",Administrative Support,"$23,554.52 ",11/15/2017
"*ALLPOINTS SECURITY AND DETECTIVE, INC.",Administrative Support,"$20,365.32 ",11/24/2017
"*ALLPOINTS SECURITY AND DETECTIVE, INC.",Administrative Support,"$19,886.94 ",12/8/2017
"*ALLPOINTS SECURITY AND DETECTIVE, INC.",Administrative Support,"$19,807.22 ",12/22/2017
"*ALVAREZ, INC.",Maintenance of Buildings,"$5,374.50 ",4/6/2017
"*ALVAREZ, INC.",Maintenance of Buildings,"$10,433 ",5/25/2017
"*ALVAREZ, INC.",Maintenance of Buildings,"$22,148.77 ",6/15/2017
"*ALVAREZ, INC.",Maintenance of Buildings,"$18,502.34 ",7/27/2017
"*ALVAREZ, INC.",Maintenance of Buildings,"$19,683.67 ",8/16/2017
"*ALVAREZ, INC.",Maintenance of Buildings,"$25,549.43 ",9/22/2017
"*ALVAREZ, INC.",Maintenance of Buildings,"$19,141.67 ",10/20/2017
"*AMERICAN SURVEYING & ENGINEERING, PC",Administrative Support,"$3,967.06 ",4/26/2017
"*ANDERSON & SHAH ROOFING, INC.",Maintenance of Buildings,"$12,032.92 ",1/17/2017
"*ANDERSON & SHAH ROOFING, INC.",Maintenance of Buildings,"$12,073.91 ",2/28/2017
"*ANDERSON & SHAH ROOFING, INC.",Maintenance of Buildings,"$7,210.81 ",3/16/2017
"*ANDERSON & SHAH ROOFING, INC.",Maintenance of Buildings,"$13,043.99 ",3/30/2017
"*ANDERSON & SHAH ROOFING, INC.",Maintenance of Buildings,"$3,198.83 ",4/13/2017
"*ANDERSON & SHAH ROOFING, INC.",Maintenance of Buildings,"$2,014.87 ",5/4/2017
"*ANDERSON & SHAH ROOFING, INC.",Maintenance of Buildings,"$24,576.42 ",5/11/2017
"*ANDERSON & SHAH ROOFING, INC.",Maintenance of Buildings,"$7,551.07 ",6/15/2017
"*ANDERSON & SHAH ROOFING, INC.",Maintenance of Buildings,"$34,564.32 ",6/20/2017
"*ANDERSON & SHAH ROOFING, INC.",Maintenance of Buildings,"$16,459.15 ",6/22/2017
"*ANDERSON & SHAH ROOFING, INC.",Maintenance of Buildings,"$4,234.35 ",7/27/2017
"*ANDERSON & SHAH ROOFING, INC.",Maintenance of Buildings,"$26,163.45 ",8/2/2017
"*ANDERSON & SHAH ROOFING, INC.",Maintenance of Buildings,"$15,460.41 ",10/12/2017
"*ANDERSON & SHAH ROOFING, INC.",Maintenance of Buildings,"$47,880.21 ",10/17/2017
"*ANDERSON & SHAH ROOFING, INC.",Maintenance of Buildings,"$9,081.68 ",10/25/2017
"*ANDERSON & SHAH ROOFING, INC.",Maintenance of Buildings,"$3,707.84 ",11/24/2017
"*ANDERSON & SHAH ROOFING, INC.",Maintenance of Buildings,"$12,477.59 ",12/28/2017
"*APEX CONSULTING ENGINEERS, LLC",Administrative Support,"$10,000 ",6/1/2017
"*ATLAS & ASSOCIATES, INC.",Maintenance of Equipment,"$22,660.50 ",5/2/2017
"*ATLAS & ASSOCIATES, INC.",Maintenance of Equipment,"$28,685.58 ",6/2/2017
"*ATLAS & ASSOCIATES, INC.",Maintenance of Equipment,"$4,500 ",7/6/2017
"*ATLAS & ASSOCIATES, INC.",Maintenance of Equipment,"$10,632.70 ",7/7/2017
"*ATLAS & ASSOCIATES, INC.",Maintenance of Equipment,"$12,930.74 ",7/19/2017
"*ATLAS & ASSOCIATES, INC.",Maintenance of Equipment,"$6,430.48 ",10/25/2017
"*ATLAS & ASSOCIATES, INC.",Maintenance of Equipment,"$11,301.43 ",12/15/2017
"*B & L DISTRIBUTORS, INC.",Facilities Cleaning,"$10,560 ",1/20/2017
"*B & L DISTRIBUTORS, INC.",Facilities Cleaning,"$7,920 ",11/24/2017
"*BEARINGS & INDUSTRIAL SUPPLY COMPANY, INC.",Steel Fabrication,"$10,088 ",8/25/2017
*BJ'S MARKET & BAKERY,Administrative Support,$684.79 ,8/23/2017
*BJ'S MARKET & BAKERY,Administrative Support,$127.35 ,10/5/2017
*CHICAGO ADVISORS LLC,Consulting Services,"$20,930 ",2/6/2017
*CHICAGO ADVISORS LLC,Consulting Services,"$39,130 ",3/27/2017
*CHICAGO ADVISORS LLC,Consulting Services,"$22,685 ",5/2/2017
*CHICAGO ADVISORS LLC,Consulting Services,"$19,110 ",6/1/2017
*CHICAGO ADVISORS LLC,Consulting Services,"$20,540 ",6/26/2017
*CHICAGO ADVISORS LLC,Consulting Services,"$21,125 ",8/7/2017
*CHICAGO ADVISORS LLC,Consulting Services,"$17,940 ",8/30/2017
*CHICAGO ADVISORS LLC,Consulting Services,"$14,040 ",10/4/2017
*CHICAGO ADVISORS LLC,Consulting Services,"$16,250 ",11/6/2017
*CHICAGO ADVISORS LLC,Consulting Services,"$20,995 ",12/5/2017
*COLETTE HOLT & ASSOCIATES,Professional / Technical,"$6,750 ",8/9/2017
"*DIGBY'S DETECTIVE & SECURITY AGENCY, INC.",Security Rail,"$48,187 ",1/19/2017
"*DIGBY'S DETECTIVE & SECURITY AGENCY, INC.",Security Rail,"$98,184.49 ",2/10/2017
"*DIGBY'S DETECTIVE & SECURITY AGENCY, INC.",Security Rail,"$193,337.37 ",3/30/2017
"*DIGBY'S DETECTIVE & SECURITY AGENCY, INC.",Security Rail,"$95,698.86 ",5/2/2017
"*DIGBY'S DETECTIVE & SECURITY AGENCY, INC.",Security Rail,"$47,234.93 ",6/6/2017
"*DIGBY'S DETECTIVE & SECURITY AGENCY, INC.",Security Rail,"$95,342.59 ",6/30/2017
"*DIGBY'S DETECTIVE & SECURITY AGENCY, INC.",Security Rail,"$142,031.56 ",7/25/2017
"*DIGBY'S DETECTIVE & SECURITY AGENCY, INC.",Security Rail,"$47,181.83 ",8/16/2017
"*DIGBY'S DETECTIVE & SECURITY AGENCY, INC.",Security Rail,"$47,185.93 ",8/17/2017
"*DIGBY'S DETECTIVE & SECURITY AGENCY, INC.",Security Rail,"$189,260.84 ",10/19/2017
"*DIGBY'S DETECTIVE & SECURITY AGENCY, INC.",Security Rail,"$138,954.93 ",11/22/2017
"*ERNEST R. SAWYER ENTERPRISES, INC.",Administrative Support,"$5,192.50 ",5/2/2017
"*ERNEST R. SAWYER ENTERPRISES, INC.",Administrative Support,$370 ,5/23/2017
"*ERNEST R. SAWYER ENTERPRISES, INC.",Administrative Support,"$2,867.50 ",8/2/2017
"*FIRECO, INC.",Maintenance of Buildings,"$3,587 ",6/20/2017
"*FIRECO, INC.",Maintenance of Buildings,"$1,390 ",7/19/2017
"*FIRECO, INC.",Maintenance of Buildings,"$28,000 ",7/20/2017
"*FIRECO, INC.",Maintenance of Buildings,"$1,950 ",8/25/2017
"*FIRECO, INC.",Maintenance of Buildings,"$12,780 ",8/29/2017
"*FIRECO, INC.",Maintenance of Buildings,"$17,280 ",8/31/2017
"*FIRECO, INC.",Maintenance of Buildings,"$1,200 ",9/19/2017
"*FIRECO, INC.",Maintenance of Buildings,"$2,350 ",9/26/2017
"*FIRECO, INC.",Maintenance of Buildings,"$3,950 ",9/27/2017
"*FIRECO, INC.",Maintenance of Buildings,"$1,300 ",10/3/2017
"*FIRECO, INC.",Maintenance of Buildings,"$4,450 ",10/5/2017
"*FIRECO, INC.",Maintenance of Buildings,"$1,825 ",10/19/2017
"*FIRECO, INC.",Maintenance of Buildings,"$1,115 ",10/31/2017
"*FIRECO, INC.",Maintenance of Buildings,"$56,015 ",11/22/2017
"*FIRECO, INC.",Maintenance of Buildings,"$5,800 ",12/13/2017
"*FLOOD TESTING LABORATORIES, INC.",Maintenance of Structures,$555 ,9/26/2017
"*FYI & ASSOCIATES, INC.",Maintenance of Buildings,"$18,988 ",1/9/2017
"*FYI & ASSOCIATES, INC.",Maintenance of Buildings,"$18,988 ",2/3/2017
"*FYI & ASSOCIATES, INC.",Maintenance of Buildings,"$18,988 ",3/8/2017
"*FYI & ASSOCIATES, INC.",Maintenance of Buildings,"$18,988 ",4/6/2017
"*FYI & ASSOCIATES, INC.",Maintenance of Buildings,"$18,988 ",5/4/2017
"*FYI & ASSOCIATES, INC.",Maintenance of Buildings,"$18,988 ",6/6/2017
"*FYI & ASSOCIATES, INC.",Maintenance of Buildings,"$18,988 ",7/6/2017
"*FYI & ASSOCIATES, INC.",Maintenance of Buildings,"$18,988 ",8/4/2017
"*FYI & ASSOCIATES, INC.",Maintenance of Buildings,"$18,988 ",9/5/2017
"*FYI & ASSOCIATES, INC.",Maintenance of Buildings,"$19,747.52 ",10/6/2017
"*FYI & ASSOCIATES, INC.",Maintenance of Buildings,"$19,747.52 ",11/2/2017
"*FYI & ASSOCIATES, INC.",Maintenance of Buildings,"$19,747.52 ",12/6/2017
*GREAT LAKES METALS CORPORATION,Equipment Purchases,$831.70 ,1/11/2017
*GREAT LAKES METALS CORPORATION,Maintenance of Rail Stations,$853.75 ,3/7/2017
*GREAT LAKES METALS CORPORATION,Equipment Purchases,"$32,982.40 ",3/22/2017
*GREAT LAKES METALS CORPORATION,Equipment Purchases,"$1,108 ",4/11/2017
*GREAT LAKES METALS CORPORATION,Equipment Purchases,"$26,129.49 ",10/2/2017
*HI-TEK ENVIRONMENTAL- d/b/a STAT,Management,$215 ,12/13/2017
*HIGHWAY SAFETY CORPORATON,Maintenance of Structures,"$18,192.25 ",1/3/2017
*HIGHWAY SAFETY CORPORATON,Maintenance of Track & Roadway-Electrical,"$7,365.50 ",1/3/2017
*HIGHWAY SAFETY CORPORATON,Maintenance of Buildings,"$2,738 ",1/5/2017
*HIGHWAY SAFETY CORPORATON,Maintenance of Track & Roadway-Electrical,"$4,696.50 ",1/5/2017
*HIGHWAY SAFETY CORPORATON,Maintenance of Buildings,"$6,867.50 ",6/13/2017
*HIGHWAY SAFETY CORPORATON,Maintenance of Buildings,"$9,767.50 ",9/8/2017
*HIGHWAY SAFETY CORPORATON,Maintenance of Structures,"$15,098 ",9/26/2017
*HIGHWAY SAFETY CORPORATON,Maintenance of Buildings,"$4,392.50 ",10/19/2017
*HIGHWAY SAFETY CORPORATON,Maintenance of Track & Roadway,"$12,121 ",10/19/2017
"*INFORMITY NETWORK, LTD.",Maintain/Repair Communications  Equip,"$200,000 ",1/31/2017
"*J-TEC METAL PRODUCTS, INC",Vehicle Rehab,"$3,174.40 ",1/13/2017
*J.P. SIMONS & COMPANY,Maintenance of Buildings,"$4,983.90 ",1/3/2017
*J.P. SIMONS & COMPANY,Maintenance of Equipment,"$149,167.33 ",1/3/2017
*J.P. SIMONS & COMPANY,Maintenance of Buildings,$459.36 ,1/5/2017
*J.P. SIMONS & COMPANY,Maintenance of Equipment,"$2,283.16 ",1/5/2017
*J.P. SIMONS & COMPANY,Maintenance of Lighting,"$2,797.68 ",1/11/2017
*J.P. SIMONS & COMPANY,Maintenance of Buildings,$720.65 ,1/12/2017
*J.P. SIMONS & COMPANY,Maintenance of Equipment,"$2,157.68 ",1/12/2017
*J.P. SIMONS & COMPANY,Equipment Purchases,$389.92 ,1/13/2017
*J.P. SIMONS & COMPANY,Maintenance of Buildings,"$1,761.64 ",1/18/2017
*J.P. SIMONS & COMPANY,Maintenance of Equipment,"$2,970.98 ",1/18/2017
*J.P. SIMONS & COMPANY,Maintenance of Buildings,"$2,736.64 ",1/26/2017
*J.P. SIMONS & COMPANY,Maintenance of Equipment,"$2,774.09 ",1/26/2017
*J.P. SIMONS & COMPANY,Maintenance of Escalators,"$1,335.30 ",1/26/2017
*J.P. SIMONS & COMPANY,Maintenance of Track & Roadway-Electrical,$644.20 ,1/26/2017
*J.P. SIMONS & COMPANY,Maintenance of Equipment,$112.74 ,2/1/2017
*J.P. SIMONS & COMPANY,Maintenance of Buildings,$133.25 ,2/2/2017
*J.P. SIMONS & COMPANY,Maintenance of Equipment,"$1,627.02 ",2/2/2017
*J.P. SIMONS & COMPANY,Maintenance of Rail Stations,"$17,850 ",2/2/2017
*J.P. SIMONS & COMPANY,Maintenance of Buildings,"$3,955 ",2/8/2017
*J.P. SIMONS & COMPANY,Maintenance of Equipment,"$1,001.43 ",2/8/2017
*J.P. SIMONS & COMPANY,Maintenance of Buildings,$531.30 ,2/9/2017
*J.P. SIMONS & COMPANY,Maintenance of Equipment,"$2,810.62 ",2/9/2017
*J.P. SIMONS & COMPANY,Maintenance of Buildings,"$9,717.77 ",2/17/2017
*J.P. SIMONS & COMPANY,Maintenance of Equipment,"$4,745.64 ",2/17/2017
*J.P. SIMONS & COMPANY,Maintenance of Escalators,"$5,515 ",2/17/2017
*J.P. SIMONS & COMPANY,Maintenance of Track & Roadway-Electrical,$523 ,2/17/2017
*J.P. SIMONS & COMPANY,Maintenance of Buildings,"$2,474.56 ",2/22/2017
*J.P. SIMONS & COMPANY,Maintenance of Equipment,$850.48 ,2/22/2017
*J.P. SIMONS & COMPANY,Equipment Purchases,"$26,841.50 ",2/24/2017
*J.P. SIMONS & COMPANY,Maintenance of Equipment,$91.65 ,2/28/2017
*J.P. SIMONS & COMPANY,Maintenance of Substations,"$1,880 ",3/2/2017
*J.P. SIMONS & COMPANY,Maintenance of Buildings,"$1,146.80 ",3/7/2017
*J.P. SIMONS & COMPANY,Maintenance of Equipment,"$5,342.70 ",3/7/2017
*J.P. SIMONS & COMPANY,Equipment Purchases,"$66,302.03 ",3/8/2017
*J.P. SIMONS & COMPANY,Maintenance of Buildings,"$1,959.59 ",3/8/2017
*J.P. SIMONS & COMPANY,Maintenance of Equipment,"$2,917 ",3/8/2017
*J.P. SIMONS & COMPANY,Maintenance of Lighting,"$3,950 ",3/8/2017
*J.P. SIMONS & COMPANY,Maintenance of Track & Roadway-Electrical,"$1,425 ",3/8/2017
*J.P. SIMONS & COMPANY,Maintenance of Buildings,"$1,056.02 ",3/9/2017
*J.P. SIMONS & COMPANY,Maintenance of Equipment,"$1,144.40 ",3/9/2017
*J.P. SIMONS & COMPANY,Maintenance of Lighting,$323.88 ,3/9/2017
*J.P. SIMONS & COMPANY,Maintenance of Rail Stations,"$1,430.31 ",3/9/2017
*J.P. SIMONS & COMPANY,Maintenance of Buildings,"$1,343.10 ",3/21/2017
*J.P. SIMONS & COMPANY,Maintenance of Equipment,"$2,830.83 ",3/21/2017
*J.P. SIMONS & COMPANY,Maintenance of Rail Stations,$931.50 ,3/21/2017
*J.P. SIMONS & COMPANY,Equipment Purchases,"$18,214.04 ",3/22/2017
*J.P. SIMONS & COMPANY,Maintenance of Buildings,"$4,430.86 ",3/23/2017
*J.P. SIMONS & COMPANY,Maintenance of Equipment,"$15,461.66 ",3/23/2017
*J.P. SIMONS & COMPANY,Maintenance of Lighting,$328.75 ,3/23/2017
*J.P. SIMONS & COMPANY,Maintenance of Substations,"$1,095 ",3/23/2017
*J.P. SIMONS & COMPANY,Maintenance of Track & Roadway-Electrical,"$5,879.30 ",3/23/2017
*J.P. SIMONS & COMPANY,Maintenance of Equipment,$865.05 ,4/4/2017
*J.P. SIMONS & COMPANY,Maintenance of Lighting,"$1,252.58 ",4/4/2017
*J.P. SIMONS & COMPANY,Maintenance of Substations,"$4,214 ",4/4/2017
*J.P. SIMONS & COMPANY,Equipment Purchases,"$42,534.50 ",4/5/2017
*J.P. SIMONS & COMPANY,Equipment Purchases,"$2,668.16 ",4/11/2017
*J.P. SIMONS & COMPANY,Maintenance of Equipment,"$3,080.50 ",4/11/2017
*J.P. SIMONS & COMPANY,Maintenance of Buildings,"$15,179 ",4/13/2017
*J.P. SIMONS & COMPANY,Maintenance of Equipment,"$4,765.35 ",4/13/2017
*J.P. SIMONS & COMPANY,Maintenance of Track & Roadway-Electrical,$530.12 ,4/13/2017
*J.P. SIMONS & COMPANY,Maintenance of Buildings,$725.60 ,4/18/2017
*J.P. SIMONS & COMPANY,Maintenance of Equipment,"$1,950.48 ",4/18/2017
*J.P. SIMONS & COMPANY,Maintenance of Lighting,$618.82 ,4/18/2017
*J.P. SIMONS & COMPANY,Maintenance of Buildings,"$17,050.57 ",4/20/2017
*J.P. SIMONS & COMPANY,Maintenance of Equipment,"$30,713.70 ",4/20/2017
*J.P. SIMONS & COMPANY,Maintenance of Lighting,$373.52 ,4/20/2017
*J.P. SIMONS & COMPANY,Maintenance of Track & Roadway-Electrical,"$37,538.75 ",4/20/2017
*J.P. SIMONS & COMPANY,Equipment Purchases,$167.84 ,4/24/2017
*J.P. SIMONS & COMPANY,Maintenance of Buildings,"$2,208.46 ",4/24/2017
*J.P. SIMONS & COMPANY,Maintenance of Equipment,"$38,606.74 ",4/24/2017
*J.P. SIMONS & COMPANY,Maintenance of Buildings,"$1,024.35 ",4/27/2017
*J.P. SIMONS & COMPANY,Maintenance of Equipment,"$27,317.26 ",4/27/2017
*J.P. SIMONS & COMPANY,Maintenance of Lighting,$291.86 ,4/27/2017
*J.P. SIMONS & COMPANY,Maintenance of Track & Roadway-Electrical,"$22,038.89 ",4/27/2017
*J.P. SIMONS & COMPANY,Equipment Purchases,"$36,750 ",4/28/2017
*J.P. SIMONS & COMPANY,Maintenance of Substations,$595 ,4/28/2017
*J.P. SIMONS & COMPANY,Equipment Purchases,"$2,253.65 ",5/3/2017
*J.P. SIMONS & COMPANY,Maintenance of Buildings,"$10,489.30 ",5/4/2017
*J.P. SIMONS & COMPANY,Maintenance of Equipment,"$4,051.12 ",5/4/2017
*J.P. SIMONS & COMPANY,Maintenance of Escalators,$255.85 ,5/4/2017
*J.P. SIMONS & COMPANY,Maintenance of Rail Stations,"$1,072.11 ",5/4/2017
*J.P. SIMONS & COMPANY,Equipment Purchases,"$2,256.65 ",5/9/2017
*J.P. SIMONS & COMPANY,Maintenance of Buildings,"$7,320.90 ",5/9/2017
*J.P. SIMONS & COMPANY,Maintenance of Equipment,"$4,118.77 ",5/9/2017
*J.P. SIMONS & COMPANY,Maintenance of Rail Stations,$490 ,5/9/2017
*J.P. SIMONS & COMPANY,Maintenance of Buildings,"$6,373 ",5/10/2017
*J.P. SIMONS & COMPANY,Maintenance of Equipment,$944.54 ,5/10/2017
*J.P. SIMONS & COMPANY,Maintenance of Buildings,"$8,542.12 ",5/23/2017
*J.P. SIMONS & COMPANY,Maintenance of Equipment,"$11,114.19 ",5/23/2017
*J.P. SIMONS & COMPANY,Maintenance of Escalators,"$2,679 ",5/23/2017
*J.P. SIMONS & COMPANY,Maintenance of Lighting,"$78,874.40 ",5/23/2017
*J.P. SIMONS & COMPANY,Maintenance of Track & Roadway-Electrical,$234 ,5/23/2017
*J.P. SIMONS & COMPANY,Maintenance of Buildings,$362.35 ,5/25/2017
*J.P. SIMONS & COMPANY,Maintenance of Equipment,$417 ,5/25/2017
*J.P. SIMONS & COMPANY,Maintenance of Lighting,$524 ,5/25/2017
*J.P. SIMONS & COMPANY,Maintenance of Escalators,$232.50 ,5/30/2017
*J.P. SIMONS & COMPANY,Maintenance of Buildings,"$3,273.51 ",6/1/2017
*J.P. SIMONS & COMPANY,Maintenance of Equipment,"$1,589.95 ",6/1/2017
*J.P. SIMONS & COMPANY,Maintenance of Lighting,$66 ,6/1/2017
*J.P. SIMONS & COMPANY,Maintenance of Buildings,"$2,939.56 ",6/6/2017
*J.P. SIMONS & COMPANY,Maintenance of Equipment,"$2,391.41 ",6/6/2017
*J.P. SIMONS & COMPANY,Maintenance of Lighting,"$2,902.50 ",6/6/2017
*J.P. SIMONS & COMPANY,Maintenance of Rail Stations,$710.10 ,6/6/2017
*J.P. SIMONS & COMPANY,Maintenance of Buildings,"$38,777.58 ",6/8/2017
*J.P. SIMONS & COMPANY,Maintenance of Lighting,"$23,581.02 ",6/8/2017
*J.P. SIMONS & COMPANY,Maintenance of Track & Roadway-Electrical,"$2,659.23 ",6/8/2017
*J.P. SIMONS & COMPANY,Maintenance of Buildings,"$4,133.08 ",6/15/2017
*J.P. SIMONS & COMPANY,Maintenance of Equipment,"$6,148.65 ",6/15/2017
*J.P. SIMONS & COMPANY,Maintenance of Substations,"$2,238.99 ",6/15/2017
*J.P. SIMONS & COMPANY,Maintenance of Buildings,"$1,312.20 ",6/20/2017
*J.P. SIMONS & COMPANY,Maintenance of Buildings,"$27,937.94 ",6/27/2017
*J.P. SIMONS & COMPANY,Maintenance of Equipment,"$2,131.88 ",6/27/2017
*J.P. SIMONS & COMPANY,Maintenance of Lighting,"$2,239 ",6/27/2017
*J.P. SIMONS & COMPANY,Maintenance of Buildings,"$2,325.66 ",6/29/2017
*J.P. SIMONS & COMPANY,Maintenance of Equipment,"$2,023.24 ",6/29/2017
*J.P. SIMONS & COMPANY,Maintenance of Lighting,"$4,857.30 ",6/29/2017
*J.P. SIMONS & COMPANY,Maintenance of Track & Roadway-Electrical,"$1,213 ",6/29/2017
*J.P. SIMONS & COMPANY,Other Facilities Maintenance Services,$829.88 ,6/29/2017
*J.P. SIMONS & COMPANY,Maintenance of Buildings,"$1,047.05 ",7/5/2017
*J.P. SIMONS & COMPANY,Maintenance of Equipment,$201.42 ,7/5/2017
*J.P. SIMONS & COMPANY,Maintenance of Buildings,"$6,048.75 ",7/6/2017
*J.P. SIMONS & COMPANY,Maintenance of Equipment,$772.02 ,7/6/2017
*J.P. SIMONS & COMPANY,Maintenance of Lighting,"$81,376.70 ",7/6/2017
*J.P. SIMONS & COMPANY,Other Facilities Maintenance Services,$649 ,7/6/2017
*J.P. SIMONS & COMPANY,Maintenance of Buildings,$168.60 ,7/12/2017
*J.P. SIMONS & COMPANY,Maintenance of Equipment,"$1,063.88 ",7/12/2017
*J.P. SIMONS & COMPANY,Maintenance of Buildings,"$6,454.65 ",7/13/2017
*J.P. SIMONS & COMPANY,Maintenance of Equipment,"$3,542.50 ",7/13/2017
*J.P. SIMONS & COMPANY,Maintenance of Track & Roadway-Electrical,"$2,118 ",7/13/2017
*J.P. SIMONS & COMPANY,Maintenance of Equipment,"$1,705.23 ",7/18/2017
*J.P. SIMONS & COMPANY,Maintenance of Buildings,$608.58 ,7/20/2017
*J.P. SIMONS & COMPANY,Maintenance of Equipment,$632.90 ,7/20/2017
*J.P. SIMONS & COMPANY,Maintenance of Lighting,$439.98 ,7/20/2017
*J.P. SIMONS & COMPANY,Maintenance of Buildings,$568.86 ,7/25/2017
*J.P. SIMONS & COMPANY,Maintenance of Equipment,"$4,862.65 ",7/25/2017
*J.P. SIMONS & COMPANY,Maintenance of Lighting,"$1,465.04 ",7/25/2017
*J.P. SIMONS & COMPANY,Maintenance of Buildings,$793.84 ,7/27/2017
*J.P. SIMONS & COMPANY,Maintenance of Equipment,"$1,989.40 ",7/27/2017
*J.P. SIMONS & COMPANY,Maintenance of Buildings,"$8,833.35 ",8/3/2017
*J.P. SIMONS & COMPANY,Maintenance of Equipment,$390.89 ,8/3/2017
*J.P. SIMONS & COMPANY,Maintenance of Track & Roadway-Electrical,"$19,072.56 ",8/3/2017
*J.P. SIMONS & COMPANY,Maintenance of Buildings,"$6,952.74 ",8/8/2017
*J.P. SIMONS & COMPANY,Maintenance of Equipment,"$1,146.74 ",8/8/2017
*J.P. SIMONS & COMPANY,Maintenance of Lighting,$812.14 ,8/8/2017
*J.P. SIMONS & COMPANY,Maintenance of Rail Stations,$362 ,8/8/2017
*J.P. SIMONS & COMPANY,Maintenance of Buildings,"$1,305.57 ",8/10/2017
*J.P. SIMONS & COMPANY,Maintenance of Equipment,"$1,170 ",8/10/2017
*J.P. SIMONS & COMPANY,Maintenance of Buildings,$857.40 ,8/16/2017
*J.P. SIMONS & COMPANY,Maintenance of Equipment,"$3,757.50 ",8/16/2017
*J.P. SIMONS & COMPANY,Maintenance of Lighting,$508.74 ,8/16/2017
*J.P. SIMONS & COMPANY,Maintenance of Rail Stations,$940.33 ,8/16/2017
*J.P. SIMONS & COMPANY,Maintenance of Substations,"$9,250 ",8/16/2017
*J.P. SIMONS & COMPANY,Maintenance of Track & Roadway-Electrical,"$15,290 ",8/16/2017
*J.P. SIMONS & COMPANY,Maintenance of Buildings,"$9,000 ",8/22/2017
*J.P. SIMONS & COMPANY,Maintenance of Equipment,"$3,416.54 ",8/22/2017
*J.P. SIMONS & COMPANY,Maintenance of Buildings,"$2,460 ",8/29/2017
*J.P. SIMONS & COMPANY,Maintenance of Equipment,"$10,303.63 ",8/29/2017
*J.P. SIMONS & COMPANY,Maintenance of Lighting,"$7,743.52 ",8/29/2017
*J.P. SIMONS & COMPANY,Maintenance of Rail Stations,$224.29 ,8/29/2017
*J.P. SIMONS & COMPANY,Equipment Purchases,"$11,948.64 ",9/1/2017
*J.P. SIMONS & COMPANY,Maintenance of Escalators,"$1,178.04 ",9/1/2017
*J.P. SIMONS & COMPANY,Maintenance of Rail Stations,$395.86 ,9/1/2017
*J.P. SIMONS & COMPANY,Maintenance of Buildings,"$9,223.50 ",9/5/2017
*J.P. SIMONS & COMPANY,Maintenance of Equipment,"$9,863.62 ",9/5/2017
*J.P. SIMONS & COMPANY,Maintenance of Lighting,$438.63 ,9/5/2017
*J.P. SIMONS & COMPANY,Equipment Purchases,"$10,390.20 ",9/6/2017
*J.P. SIMONS & COMPANY,Maintenance of Buildings,$833.10 ,9/7/2017
*J.P. SIMONS & COMPANY,Maintenance of Equipment,$583.40 ,9/7/2017
*J.P. SIMONS & COMPANY,Maintenance of Buildings,$968.10 ,9/12/2017
*J.P. SIMONS & COMPANY,Maintenance of Equipment,$795.86 ,9/12/2017
*J.P. SIMONS & COMPANY,Maintenance of Buildings,"$6,313.31 ",9/14/2017
*J.P. SIMONS & COMPANY,Maintenance of Equipment,"$1,262.40 ",9/14/2017
*J.P. SIMONS & COMPANY,Maintenance of Rail Stations,"$14,559.88 ",9/14/2017
*J.P. SIMONS & COMPANY,Maintenance of Buildings,$121.83 ,9/19/2017
*J.P. SIMONS & COMPANY,Maintenance of Equipment,"$10,095.65 ",9/19/2017
*J.P. SIMONS & COMPANY,Maintenance of Equipment,"$2,155.48 ",9/21/2017
*J.P. SIMONS & COMPANY,Maintenance of Buildings,"$7,281.25 ",9/27/2017
*J.P. SIMONS & COMPANY,Maintenance of Equipment,"$3,616.89 ",9/27/2017
*J.P. SIMONS & COMPANY,Maintenance of Substations,$663.03 ,9/27/2017
*J.P. SIMONS & COMPANY,Maintenance of Buildings,"$4,517.89 ",10/4/2017
*J.P. SIMONS & COMPANY,Maintenance of Equipment,"$6,945.62 ",10/4/2017
*J.P. SIMONS & COMPANY,Maintenance of Escalators,$282.08 ,10/4/2017
*J.P. SIMONS & COMPANY,Maintenance of Lighting,"$45,216.01 ",10/4/2017
*J.P. SIMONS & COMPANY,Vehicle Rehab,"$31,702.18 ",10/4/2017
*J.P. SIMONS & COMPANY,Maintenance of Buildings,"$3,701.65 ",10/10/2017
*J.P. SIMONS & COMPANY,Maintenance of Equipment,"$7,485.96 ",10/10/2017
*J.P. SIMONS & COMPANY,Maintenance of Lighting,"$1,246.40 ",10/10/2017
*J.P. SIMONS & COMPANY,Maintenance of Rail Stations,$632.60 ,10/10/2017
*J.P. SIMONS & COMPANY,Maintenance of Track & Roadway-Electrical,"$39,961.75 ",10/10/2017
*J.P. SIMONS & COMPANY,Maintenance of Buildings,$559.29 ,10/19/2017
*J.P. SIMONS & COMPANY,Maintenance of Equipment,"$13,452.83 ",10/19/2017
*J.P. SIMONS & COMPANY,Maintenance of Track & Roadway-Electrical,"$44,585 ",10/19/2017
*J.P. SIMONS & COMPANY,Maintenance of Buildings,"$2,197.56 ",10/24/2017
*J.P. SIMONS & COMPANY,Maintenance of Equipment,"$1,235.66 ",10/24/2017
*J.P. SIMONS & COMPANY,Maintenance of Buildings,"$10,404 ",10/31/2017
*J.P. SIMONS & COMPANY,Maintenance of Equipment,"$2,284.08 ",10/31/2017
*J.P. SIMONS & COMPANY,Maintenance of Escalators,$649 ,10/31/2017
*J.P. SIMONS & COMPANY,Maintenance of Track & Roadway-Electrical,"$15,985.53 ",10/31/2017
*J.P. SIMONS & COMPANY,Maintenance of Buildings,"$1,494.50 ",11/1/2017
*J.P. SIMONS & COMPANY,Maintenance of Equipment,$418.70 ,11/1/2017
*J.P. SIMONS & COMPANY,Maintenance of Rail Stations,$790.31 ,11/1/2017
*J.P. SIMONS & COMPANY,Maintenance of Buildings,"$3,461.45 ",11/7/2017
*J.P. SIMONS & COMPANY,Maintenance of Equipment,"$2,615.25 ",11/7/2017
*J.P. SIMONS & COMPANY,Maintenance of Buildings,"$3,675.32 ",11/8/2017
*J.P. SIMONS & COMPANY,Maintenance of Equipment,"$5,717.61 ",11/8/2017
*J.P. SIMONS & COMPANY,Maintenance of Lighting,"$33,537.20 ",11/8/2017
*J.P. SIMONS & COMPANY,Maintenance of Buildings,"$1,138.90 ",11/14/2017
*J.P. SIMONS & COMPANY,Maintenance of Equipment,"$5,301 ",11/14/2017
*J.P. SIMONS & COMPANY,Maintenance of Rail Stations,"$1,843.30 ",11/14/2017
*J.P. SIMONS & COMPANY,Maintenance of Buildings,"$12,286.23 ",11/21/2017
*J.P. SIMONS & COMPANY,Maintenance of Equipment,"$1,244.50 ",11/21/2017
*J.P. SIMONS & COMPANY,Maintenance of Track & Roadway-Electrical,"$10,312.44 ",11/21/2017
*J.P. SIMONS & COMPANY,Maintenance of Buildings,"$8,335.57 ",11/28/2017
*J.P. SIMONS & COMPANY,Maintenance of Equipment,"$3,124.34 ",11/28/2017
*J.P. SIMONS & COMPANY,Maintenance of Buildings,"$1,343.12 ",11/29/2017
*J.P. SIMONS & COMPANY,Maintenance of Rail Stations,$806 ,11/29/2017
*J.P. SIMONS & COMPANY,Maintenance of Track & Roadway-Electrical,$230.90 ,11/29/2017
*J.P. SIMONS & COMPANY,Maintenance of Buildings,"$4,074.34 ",11/30/2017
*J.P. SIMONS & COMPANY,Maintenance of Equipment,"$5,313.04 ",11/30/2017
*J.P. SIMONS & COMPANY,Maintenance of Lighting,"$1,223.88 ",11/30/2017
*J.P. SIMONS & COMPANY,Maintenance of Track & Roadway-Electrical,"$19,872 ",12/1/2017
*J.P. SIMONS & COMPANY,Maintenance of Buildings,"$37,764.59 ",12/12/2017
*J.P. SIMONS & COMPANY,Maintenance of Equipment,$814.03 ,12/12/2017
*J.P. SIMONS & COMPANY,Maintenance of Rail Stations,"$1,627.35 ",12/12/2017
*J.P. SIMONS & COMPANY,Maintenance of Substations,"$37,000 ",12/12/2017
*J.P. SIMONS & COMPANY,Maintenance of Buildings,"$3,298.57 ",12/19/2017
*J.P. SIMONS & COMPANY,Maintenance of Equipment,"$2,510.09 ",12/19/2017
*J.P. SIMONS & COMPANY,Maintenance of Rail Stations,"$1,401.58 ",12/19/2017
*J.P. SIMONS & COMPANY,Maintenance of Buildings,"$3,008.20 ",12/26/2017
*J.P. SIMONS & COMPANY,Maintenance of Equipment,"$1,900 ",12/26/2017
*KOI COMPUTERS,Computer Operations,"$101,625 ",5/18/2017
*KOI COMPUTERS,Administrative Support,"$2,530 ",6/13/2017
*KOI COMPUTERS,Administrative Support,"$2,576 ",6/21/2017
*KOI COMPUTERS,Administrative Support,$531 ,7/6/2017
*KOI COMPUTERS,Computer Operations,"$36,462 ",7/19/2017
*KOI COMPUTERS,Applications Support,"$58,200 ",10/19/2017
*KOI COMPUTERS,Professional / Technical,"$2,970 ",11/15/2017
"*KOPICO, INC.",Administrative Support,"$2,098.70 ",1/10/2017
"*KOPICO, INC.",Accounting,"$2,220 ",2/22/2017
"*KOPICO, INC.",Administrative Support,"$2,098.70 ",3/9/2017
"*L. A. COURT REPORTERS, LLC",Administrative Support,$704.70 ,4/20/2017
"*L. A. COURT REPORTERS, LLC",Administrative Support,"$1,560.10 ",5/5/2017
"*L. A. COURT REPORTERS, LLC",I&D Claims (Damage Reserve),$515.30 ,5/5/2017
"*L. A. COURT REPORTERS, LLC",Administrative Support,$274 ,5/12/2017
"*L. A. COURT REPORTERS, LLC",Administrative Support,$692.40 ,5/23/2017
"*L. A. COURT REPORTERS, LLC",I&D Claims (Damage Reserve),"$3,937.10 ",6/1/2017
"*L. A. COURT REPORTERS, LLC",Administrative Support,$577.60 ,6/22/2017
"*L. A. COURT REPORTERS, LLC",Administrative Support,$520.20 ,6/29/2017
"*L. A. COURT REPORTERS, LLC",Administrative Support,$605.50 ,7/26/2017
"*L. A. COURT REPORTERS, LLC",I&D Claims (Damage Reserve),"$6,604.55 ",8/15/2017
"*L. A. COURT REPORTERS, LLC",Administrative Support,$380.20 ,10/10/2017
"*L. A. COURT REPORTERS, LLC",I&D Claims (Damage Reserve),"$10,134.95 ",10/10/2017
"*L. A. COURT REPORTERS, LLC",I&D Claims (Damage Reserve),$456.50 ,12/14/2017
"*L.A. COURT REPORTERS, LLC.",Administrative Support,$959.40 ,1/3/2017
"*L.A. COURT REPORTERS, LLC.",I&D Claims (Damage Reserve),"$3,992.30 ",1/11/2017
"*L.A. COURT REPORTERS, LLC.",I&D Claims (Damage Reserve),"$5,415.05 ",2/10/2017
"*L.A. COURT REPORTERS, LLC.",I&D Claims (Damage Reserve),"$1,026.55 ",2/13/2017
"*L.A. COURT REPORTERS, LLC.",I&D Claims (Damage Reserve),"$1,197 ",2/14/2017
"*L.A. COURT REPORTERS, LLC.",I&D Claims (Damage Reserve),"$2,518.75 ",3/1/2017
"*L.A. COURT REPORTERS, LLC.",I&D Claims (Damage Reserve),"$1,200.65 ",3/2/2017
"*L.A. COURT REPORTERS, LLC.",Administrative Support,$422.80 ,3/27/2017
*L.A. REPORTING........,I&D Claims (Damage Reserve),$600.40 ,9/7/2017
*M. WELLS PRINTING COMPANY,Marketing,"$91,568 ",3/22/2017
*M. WELLS PRINTING COMPANY,Marketing,"$6,889 ",4/6/2017
*M. WELLS PRINTING COMPANY,Marketing,"$9,205 ",4/13/2017
*M. WELLS PRINTING COMPANY,Administrative Support,"$7,876 ",7/20/2017
*M. WELLS PRINTING COMPANY,Marketing,"$33,750 ",9/27/2017
*M. WELLS PRINTING COMPANY,Administrative Support,"$11,667 ",11/30/2017
*M. WELLS PRINTING COMPANY,Marketing,"$65,445 ",12/12/2017
"*METAPHRASIS LANGUAGE & CULTURAL SOLUTIONS, LLC",Administrative Support,$304.13 ,2/7/2017
"*MIDWAY OVERHEAD DOOR, INC.",Maintenance of Buildings,"$22,919.55 ",1/24/2017
"*MIDWAY OVERHEAD DOOR, INC.",Maintenance of Buildings,"$15,920.20 ",2/2/2017
"*MIDWAY OVERHEAD DOOR, INC.",Maintenance of Buildings,"$28,000.75 ",3/14/2017
"*MIDWAY OVERHEAD DOOR, INC.",Maintenance of Buildings,"$33,322.50 ",4/20/2017
"*MIDWAY OVERHEAD DOOR, INC.",Maintenance of Buildings,"$31,709.25 ",5/11/2017
"*MIDWAY OVERHEAD DOOR, INC.",Maintenance of Buildings,"$13,852.50 ",5/12/2017
"*MIDWAY OVERHEAD DOOR, INC.",Maintenance of Buildings,"$6,975.05 ",6/8/2017
"*MIDWAY OVERHEAD DOOR, INC.",Maintenance of Buildings,"$1,280.50 ",6/9/2017
"*MIDWAY OVERHEAD DOOR, INC.",Maintenance of Buildings,"$7,500 ",6/23/2017
"*MIDWAY OVERHEAD DOOR, INC.",Maintenance of Buildings,"$16,497.50 ",7/5/2017
"*MIDWAY OVERHEAD DOOR, INC.",Maintenance of Buildings,"$9,864.66 ",8/3/2017
"*MIDWAY OVERHEAD DOOR, INC.",Maintenance of Buildings,"$2,680 ",8/4/2017
"*MIDWAY OVERHEAD DOOR, INC.",Maintenance of Buildings,"$9,499.75 ",8/9/2017
"*MIDWAY OVERHEAD DOOR, INC.",Maintenance of Buildings,"$15,160 ",12/12/2017
"*MULTILINGUAL CONNECTIONS, LLC",Marketing,$244.98 ,9/19/2017
"*MULTILINGUAL CONNECTIONS, LLC",Marketing,$268.92 ,9/28/2017
"*MULTILINGUAL CONNECTIONS, LLC",Marketing,$104.02 ,10/10/2017
"*MULTILINGUAL CONNECTIONS, LLC",Marketing,$55 ,11/2/2017
"*MULTILINGUAL CONNECTIONS, LLC",Marketing,$55 ,11/21/2017
*NAK-MAN CORPORATION,Steel Fabrication,"$23,249.60 ",1/3/2017
*NAK-MAN CORPORATION,Maintenance of Rail Stations,"$3,680 ",3/9/2017
*NAK-MAN CORPORATION,Steel Fabrication,"$78,624.51 ",5/11/2017
*NAK-MAN CORPORATION,Maintenance of Rail Stations,"$2,432 ",8/31/2017
*NAK-MAN CORPORATION,Steel Fabrication,"$35,959.25 ",10/24/2017
*NAK-MAN CORPORATION,Equipment Purchases,"$44,656.46 ",12/5/2017
"*NSN EMPLOYER SERVICES, INC.",Policy Adminsitration,$9.25 ,1/12/2017
"*NSN EMPLOYER SERVICES, INC.",Policy Adminsitration,"$20,875 ",1/30/2017
"*NSN EMPLOYER SERVICES, INC.",Policy Adminsitration,"$20,875 ",6/9/2017
"*NSN EMPLOYER SERVICES, INC.",Policy Adminsitration,$67.50 ,7/24/2017
"*NSN EMPLOYER SERVICES, INC.",Policy Adminsitration,$17.50 ,10/10/2017
"*NSN EMPLOYER SERVICES, INC.",Policy Adminsitration,"$20,875 ",11/2/2017
"*PEST PRO'S UNLIMITED, LLC",General Shop/Gar/Term Repairs & Svcs,$85 ,1/9/2017
"*PEST PRO'S UNLIMITED, LLC",Maintenance of Equipment,"$4,717.50 ",1/9/2017
"*PEST PRO'S UNLIMITED, LLC",Maintenance of Equipment,$340 ,1/12/2017
"*PEST PRO'S UNLIMITED, LLC",Maintenance of Equipment,$170 ,1/18/2017
"*PEST PRO'S UNLIMITED, LLC",Maintenance of Equipment,$425 ,1/19/2017
"*PEST PRO'S UNLIMITED, LLC",Maintenance of Equipment,$510 ,1/25/2017
"*PEST PRO'S UNLIMITED, LLC",General Shop/Gar/Term Repairs & Svcs,$85 ,2/10/2017
"*PEST PRO'S UNLIMITED, LLC",Maintenance of Equipment,$340 ,2/10/2017
"*PEST PRO'S UNLIMITED, LLC",Maintenance of Equipment,$85 ,2/21/2017
"*PEST PRO'S UNLIMITED, LLC",Maintenance of Equipment,$85 ,2/28/2017
"*PEST PRO'S UNLIMITED, LLC",Maintenance of Equipment,$765 ,3/10/2017
"*PEST PRO'S UNLIMITED, LLC",Maintenance of Equipment,$85 ,3/16/2017
"*PEST PRO'S UNLIMITED, LLC",Maintenance of Equipment,$170 ,3/23/2017
"*PEST PRO'S UNLIMITED, LLC",Maintenance of Equipment,$85 ,3/29/2017
"*PEST PRO'S UNLIMITED, LLC",Maintenance of Equipment,$170 ,4/10/2017
"*PRODUCTION DISTRIBUTION COMPANIES, INC.",Maintenance of Track & Roadway-Electrical,"$34,640 ",1/26/2017
"*PW ASSOCIATES, INC.",Drug & Alcohol Testing,"$2,238.50 ",1/25/2017
"*PW ASSOCIATES, INC.",Drug & Alcohol Testing,$610.50 ,2/8/2017
"*PW ASSOCIATES, INC.",Drug & Alcohol Testing,"$1,424.50 ",3/9/2017
"*PW ASSOCIATES, INC.",Drug & Alcohol Testing,"$1,258 ",4/4/2017
"*PW ASSOCIATES, INC.",Drug & Alcohol Testing,"$6,197.50 ",5/16/2017
"*PW ASSOCIATES, INC.",Drug & Alcohol Testing,"$1,202.50 ",6/1/2017
"*PW ASSOCIATES, INC.",Drug & Alcohol Testing,$740 ,7/14/2017
"*PW ASSOCIATES, INC.",Drug & Alcohol Testing,"$1,591 ",8/10/2017
"*PW ASSOCIATES, INC.",Drug & Alcohol Testing,"$1,258 ",9/7/2017
"*PW ASSOCIATES, INC.",Drug & Alcohol Testing,$721.50 ,11/9/2017
"*PW ASSOCIATES, INC.",Drug & Alcohol Testing,"$1,868.50 ",12/7/2017
*RAE PRODUCTS AND CHEMICALS CORPORATION,Maintenance of Buildings,"$4,422.01 ",3/7/2017
"*RINGOLD FINANCIAL MANAGEMENT SERVICES, INC.",Consulting Services,"$3,786 ",2/10/2017
"*RINGOLD FINANCIAL MANAGEMENT SERVICES, INC.",Consulting Services,"$29,630.50 ",9/29/2017
"*RINGOLD FINANCIAL MANAGEMENT SERVICES, INC.",Consulting Services,"$6,945.50 ",11/8/2017
"*RINGOLD FINANCIAL MANAGEMENT SERVICES, INC.",Consulting Services,"$20,012 ",12/27/2017
"*ROSS BARNEY ARCHITECTS, INC.",Professional / Technical,"$37,500 ",4/24/2017
"*ROSS BARNEY ARCHITECTS, INC.",Professional / Technical,"$45,000.75 ",11/7/2017
"*ROSS BARNEY ARCHITECTS, INC.",Professional / Technical,"$7,499.25 ",12/13/2017
"*SENRYO, INC.",Consulting Services,"$15,120 ",1/25/2017
"*SENRYO, INC.",Consulting Services,"$5,720 ",2/6/2017
"*SENRYO, INC.",Consulting Services,"$9,045 ",2/15/2017
"*SENRYO, INC.",Consulting Services,"$21,465 ",2/22/2017
"*SENRYO, INC.",Consulting Services,"$21,600 ",4/6/2017
"*SENRYO, INC.",Consulting Services,"$24,840 ",5/9/2017
"*SENRYO, INC.",Consulting Services,"$19,440 ",8/3/2017
"*SEVILLE STAFFING, LLC",Professional / Technical,"$18,123.96 ",1/19/2017
"*SEVILLE STAFFING, LLC",Professional / Technical,"$4,285.84 ",1/26/2017
"*SEVILLE STAFFING, LLC",Professional / Technical,"$2,869.62 ",2/2/2017
"*SHAWN BROWN ENTERPRISES, INC.",Professional / Technical,"$16,146.17 ",3/7/2017
"*SHAWN BROWN ENTERPRISES, INC.",Management,"$34,413 ",6/27/2017
"*SHAWN BROWN ENTERPRISES, INC.",Management,"$121,080.35 ",8/31/2017
*SOUTH SUBURBAN PEST CONTROL,Maintenance of Equipment,"$4,297.80 ",1/12/2017
*SOUTH SUBURBAN PEST CONTROL,Maintenance of Equipment,"$4,349.80 ",2/9/2017
*SOUTH SUBURBAN PEST CONTROL,Maintenance of Equipment,"$4,396.60 ",3/14/2017
*SOUTH SUBURBAN PEST CONTROL,Maintenance of Equipment,"$4,342 ",4/11/2017
*SOUTH SUBURBAN PEST CONTROL,Maintenance of Equipment,"$4,399.20 ",5/9/2017
*SOUTH SUBURBAN PEST CONTROL,Maintenance of Equipment,"$4,313.40 ",6/22/2017
*SOUTH SUBURBAN PEST CONTROL,Maintenance of Equipment,"$4,321.20 ",7/18/2017
*SOUTH SUBURBAN PEST CONTROL,Maintenance of Equipment,"$4,287.40 ",8/23/2017
*SOUTH SUBURBAN PEST CONTROL,Maintenance of Equipment,"$4,360.20 ",9/19/2017
*SOUTH SUBURBAN PEST CONTROL,Maintenance of Equipment,"$4,326.40 ",10/12/2017
*SOUTH SUBURBAN PEST CONTROL,Maintenance of Equipment,"$4,308.20 ",11/20/2017
*SOUTH SUBURBAN PEST CONTROL,Maintenance of Equipment,"$4,282.20 ",12/20/2017
"*STAR & CREST DECORATING, INC.",Vehicle Rehab,"$27,724 ",1/10/2017
"*STAR & CREST DECORATING, INC.",Vehicle Rehab,"$13,862 ",3/27/2017
"*STAR & CREST DECORATING, INC.",Vehicle Rehab,"$13,862 ",4/6/2017
"*STAR & CREST DECORATING, INC.",Vehicle Rehab,"$13,862 ",5/15/2017
"*STAR & CREST DECORATING, INC.",Vehicle Rehab,"$13,862 ",7/5/2017
"*STAR & CREST DECORATING, INC.",Vehicle Rehab,"$13,862 ",9/1/2017
"*STAR & CREST DECORATING, INC.",Vehicle Rehab,"$27,724 ",10/17/2017
"*STAR & CREST DECORATING, INC.",Vehicle Rehab,"$13,862 ",12/19/2017
*SULLIVAN REPORTING COMPANY,I&D Claims (Damage Reserve),$136.75 ,1/13/2017
*SULLIVAN REPORTING COMPANY,I&D Claims (Damage Reserve),$437.65 ,2/2/2017
*SULLIVAN REPORTING COMPANY,I&D Claims (Damage Reserve),$495.55 ,2/16/2017
*SULLIVAN REPORTING COMPANY,I&D Claims (Damage Reserve),$50.35 ,2/21/2017
*SULLIVAN REPORTING COMPANY,I&D Claims (Damage Reserve),$567.85 ,2/24/2017
*SULLIVAN REPORTING COMPANY,I&D Claims (Damage Reserve),"$3,169.60 ",3/3/2017
*SULLIVAN REPORTING COMPANY,I&D Claims (Damage Reserve),$127.05 ,4/18/2017
*SULLIVAN REPORTING COMPANY,I&D Claims (Damage Reserve),$225.25 ,6/28/2017
*SULLIVAN REPORTING COMPANY,I&D Claims (Damage Reserve),$204.05 ,7/25/2017
*SULLIVAN REPORTING COMPANY,I&D Claims (Damage Reserve),$106.50 ,8/17/2017
*SULLIVAN REPORTING COMPANY,I&D Claims (Damage Reserve),$125 ,10/3/2017
*SULLIVAN REPORTING COMPANY,I&D Claims (Damage Reserve),$657.85 ,10/5/2017
*SULLIVAN REPORTING COMPANY,I&D Claims (Damage Reserve),$221.50 ,10/17/2017
*THE BLUEPRINT SHOPPE,Administrative Support,$615.44 ,1/12/2017
*THE BLUEPRINT SHOPPE,Administrative Support,$184.38 ,1/13/2017
*THE BLUEPRINT SHOPPE,Administrative Support,$961.24 ,3/3/2017
*THE BLUEPRINT SHOPPE,Administrative Support,$104.91 ,3/7/2017
*THE BLUEPRINT SHOPPE,Administrative Support,$31.31 ,3/14/2017
"*THE BLUEPRINT SHOPPE, INC.",Administrative Support,$562.80 ,4/11/2017
"*THE BLUEPRINT SHOPPE, INC.",Administrative Support,$651.28 ,4/12/2017
"*THE BLUEPRINT SHOPPE, INC.",Administrative Support,$230.30 ,4/18/2017
"*THE BLUEPRINT SHOPPE, INC.",Administrative Support,$72.66 ,5/2/2017
"*TKG & ASSOCIATES, LLC",Professional / Technical,"$5,808.22 ",8/18/2017
"*TONERVISION, INC.",Equipment Purchases,"$90,855.48 ",10/6/2017
"*UBICA, INC.",Administrative Support,"$50,000 ",5/4/2017
"*UBICA, INC.",Administrative Support,"$37,500 ",9/19/2017
"*UBICA, INC.",Administrative Support,"$12,500 ",9/20/2017
"*URLAUB, BOWEN & ASSOCIATES, INC.",I&D Claims (Damage Reserve),$130.60 ,9/13/2017
"*URLAUB, BOWEN & ASSOCIATES, INC.",I&D Claims (Damage Reserve),$125 ,11/17/2017
*VIVA USA INC,Consulting Services,"$12,798 ",2/13/2017
*VIVA USA INC,Consulting Services,"$6,273.68 ",7/24/2017
*VIVA USA INC,Consulting Services,"$6,522.56 ",8/30/2017
*VIVA USA INC,Consulting Services,"$14,172.94 ",9/25/2017
*VIVA USA INC,Consulting Services,"$1,199.38 ",10/2/2017
*VIVA USA INC,Consulting Services,"$11,664 ",10/17/2017
*VIVA USA INC,Consulting Services,"$12,413.25 ",11/27/2017
*VIVA USA INC,Consulting Services,"$9,396 ",12/27/2017
"*WE'RE CLEANING, INC.",Maintenance of Buildings,"$23,336.04 ",6/7/2017
"108 NORTH STATE ST. (CHICAGO) OWNER,LLC","Facilities Operating Expenses (Rent,Utilities,etc)","$28,000 ",2/23/2017
"108 NORTH STATE ST. (CHICAGO) OWNER,LLC","Facilities Operating Expenses (Rent,Utilities,etc)",$400 ,3/1/2017
"108 NORTH STATE ST. (CHICAGO) OWNER,LLC","Facilities Operating Expenses (Rent,Utilities,etc)","$28,000 ",3/15/2017
"108 NORTH STATE ST. (CHICAGO) OWNER,LLC","Facilities Operating Expenses (Rent,Utilities,etc)","$28,000 ",4/12/2017
"108 NORTH STATE ST. (CHICAGO) OWNER,LLC","Facilities Operating Expenses (Rent,Utilities,etc)","$28,000 ",5/2/2017
"108 NORTH STATE ST. (CHICAGO) OWNER,LLC","Facilities Operating Expenses (Rent,Utilities,etc)","$21,331.40 ",8/10/2017
"108 NORTH STATE ST. (CHICAGO) OWNER,LLC","Facilities Operating Expenses (Rent,Utilities,etc)","$28,000 ",8/22/2017
"108 NORTH STATE ST. (CHICAGO) OWNER,LLC","Facilities Operating Expenses (Rent,Utilities,etc)","$28,000 ",10/19/2017
"108 NORTH STATE ST. (CHICAGO) OWNER,LLC","Facilities Operating Expenses (Rent,Utilities,etc)","$28,000 ",11/2/2017
"108 NORTH STATE ST. (CHICAGO) OWNER,LLC","Facilities Operating Expenses (Rent,Utilities,etc)","$28,000 ",11/24/2017
"1ST METROPOLITAN TRANSLATION SERVICES, INC.",Marketing,$219.25 ,1/3/2017
89TH ST PROPERTIES LLC,"Facilities Operating Expenses (Rent,Utilities,etc)","$27,968.92 ",2/27/2017
89TH ST PROPERTIES LLC,"Facilities Operating Expenses (Rent,Utilities,etc)","$27,968.92 ",3/1/2017
89TH ST PROPERTIES LLC,"Facilities Operating Expenses (Rent,Utilities,etc)","$27,968.92 ",4/11/2017
89TH ST PROPERTIES LLC,"Facilities Operating Expenses (Rent,Utilities,etc)","$27,968.92 ",4/28/2017
89TH ST PROPERTIES LLC,"Facilities Operating Expenses (Rent,Utilities,etc)","$27,968.92 ",5/26/2017
89TH ST PROPERTIES LLC,"Facilities Operating Expenses (Rent,Utilities,etc)","$27,968.92 ",6/29/2017
89TH ST PROPERTIES LLC,"Facilities Operating Expenses (Rent,Utilities,etc)","$27,968.92 ",8/10/2017
89TH ST PROPERTIES LLC,"Facilities Operating Expenses (Rent,Utilities,etc)","$27,968.92 ",8/21/2017
89TH ST PROPERTIES LLC,"Facilities Operating Expenses (Rent,Utilities,etc)","$27,968.92 ",10/6/2017
89TH ST PROPERTIES LLC,"Facilities Operating Expenses (Rent,Utilities,etc)","$27,968.92 ",11/2/2017
89TH ST PROPERTIES LLC,"Facilities Operating Expenses (Rent,Utilities,etc)","$27,968.92 ",11/24/2017
A & A GLOVE & SAFETY COMPANY,Equipment Purchases,"$17,591 ",5/9/2017
A.R.D.C.,Administrative Support,"$19,371 ",11/22/2017
ACCURATE REPORTING CO.,I&D Claims (Damage Reserve),"$16,609.37 ",1/11/2017
ACCURATE REPORTING CO.,I&D Claims (Damage Reserve),$242.78 ,1/27/2017
ACCURATE REPORTING CO.,I&D Claims (Damage Reserve),"$13,510.75 ",2/13/2017
ACCURATE REPORTING CO.,I&D Claims (Damage Reserve),"$2,259.45 ",2/15/2017
ACCURATE REPORTING CO.,I&D Claims (Damage Reserve),"$8,961.41 ",3/3/2017
ACCURATE REPORTING CO.,I&D Claims (Damage Reserve),"$21,225.84 ",5/19/2017
ACCURATE REPORTING CO.,I&D Claims (Damage Reserve),"$8,787.16 ",6/8/2017
ACCURATE REPORTING CO.,Administrative Support,"$2,250.68 ",9/8/2017
ACCURATE REPORTING CO.,I&D Claims (Damage Reserve),$374.35 ,9/13/2017
ACCURATE REPORTING CO.,I&D Claims (Damage Reserve),"$12,645.34 ",12/21/2017
ACCURATE REPORTING CO.,I&D Claims (Damage Reserve),"$24,932.39 ",12/26/2017
ACME SCHOOL,Maintenance of Equipment,"$1,550 ",7/27/2017
"ACTION K-9 SECURITY, INC.",Security Rail,"$25,581.28 ",1/19/2017
"ACTION K-9 SECURITY, INC.",Fare Media Sales,"$55,408.28 ",2/10/2017
"ACTION K-9 SECURITY, INC.",Security Rail,"$858,328.10 ",2/10/2017
"ACTION K-9 SECURITY, INC.",Security Rail,"$280,765.96 ",3/30/2017
"ACTION K-9 SECURITY, INC.",Security Rail,"$300,591.04 ",5/2/2017
"ACTION K-9 SECURITY, INC.",Security Rail,"$146,795.45 ",5/12/2017
"ACTION K-9 SECURITY, INC.",Security Rail,"$152,089.23 ",5/16/2017
"ACTION K-9 SECURITY, INC.",Security Rail,"$149,269.97 ",6/1/2017
"ACTION K-9 SECURITY, INC.",Security Rail,"$155,658.48 ",6/6/2017
"ACTION K-9 SECURITY, INC.",Security Rail,$864 ,6/27/2017
"ACTION K-9 SECURITY, INC.",Security Rail,"$151,166.52 ",7/24/2017
"ACTION K-9 SECURITY, INC.",Security Rail,"$319,724.46 ",8/16/2017
"ACTION K-9 SECURITY, INC.",Security Rail,"$18,121.25 ",9/8/2017
"ACTION K-9 SECURITY, INC.",Security Rail,"$5,239.44 ",9/11/2017
"ACTION K-9 SECURITY, INC.",Security Rail,"$412,678.74 ",10/18/2017
"ACTION K-9 SECURITY, INC.",Security Rail,"$276,804.19 ",10/20/2017
"ACTION K-9 SECURITY, INC.",Security Rail,"$135,784.99 ",10/27/2017
"ACTION K-9 SECURITY, INC.",Security Rail,"$5,554.56 ",10/30/2017
"ACTION K-9 SECURITY, INC.",Security Rail,"$58,531.70 ",11/8/2017
"ACTION K-9 SECURITY, INC.",Security Rail,"$163,405.33 ",11/9/2017
"ACTION K-9 SECURITY, INC.",Security Rail,"$140,556.45 ",11/17/2017
ADDIE ZOLICOFFER,I&D Claims (Damage Reserve),$25 ,5/2/2017
ADOBE SYSTEMS INCORPORATED,Training - Students,"$4,199.40 ",11/17/2017
"ADR SYSTEMS OF AMERICA, LLC",I&D Claims (Damage Reserve),"$6,390 ",4/14/2017
"ADR SYSTEMS OF AMERICA, LLC",I&D Claims (Damage Reserve),"$1,395 ",8/8/2017
ADR SYSYEMS,I&D Claims (Damage Reserve),"$2,226 ",6/2/2017
ADR SYSYEMS,I&D Claims (Damage Reserve),"$1,055 ",9/5/2017
ADVANCED PHYSICAL MEDICINE,I&D Claims (Damage Reserve),$300 ,7/28/2017
ADVANCED PHYSICAL MEDICINE,I&D Claims (Damage Reserve),$600 ,7/28/2017
"ADVANTAGE SIGN SUPPLY, INC.",Administrative Support,"$1,400 ",1/4/2017
"ADVANTAGE SIGN SUPPLY, INC.",Administrative Support,"$5,241.61 ",1/9/2017
"ADVANTAGE SIGN SUPPLY, INC.",Equipment Purchases,"$1,500 ",2/10/2017
"ADVANTAGE SIGN SUPPLY, INC.",Equipment Purchases,"$1,500 ",3/1/2017
"ADVANTAGE SIGN SUPPLY, INC.",Administrative Support,"$6,091.50 ",4/7/2017
"ADVANTAGE SIGN SUPPLY, INC.",Administrative Support,"$1,950 ",4/12/2017
"ADVANTAGE SIGN SUPPLY, INC.",Administrative Support,$364 ,5/19/2017
"ADVANTAGE SIGN SUPPLY, INC.",Administrative Support,$685 ,5/26/2017
"ADVANTAGE SIGN SUPPLY, INC.",Administrative Support,"$1,195 ",7/14/2017
"ADVANTAGE SIGN SUPPLY, INC.",Administrative Support,"$5,690.47 ",7/26/2017
"ADVANTAGE SIGN SUPPLY, INC.",Administrative Support,"$5,135.42 ",7/28/2017
"ADVANTAGE SIGN SUPPLY, INC.",Administrative Support,"$1,680 ",8/11/2017
"ADVANTAGE SIGN SUPPLY, INC.",Administrative Support,$599 ,8/16/2017
"ADVANTAGE SIGN SUPPLY, INC.",Equipment Purchases,"$2,449 ",8/23/2017
"ADVANTAGE SIGN SUPPLY, INC.",Administrative Support,"$1,134 ",8/25/2017
"ADVANTAGE SIGN SUPPLY, INC.",Administrative Support,"$4,369 ",9/1/2017
"ADVANTAGE SIGN SUPPLY, INC.",Administrative Support,"$10,360 ",9/13/2017
"ADVANTAGE SIGN SUPPLY, INC.",Administrative Support,"$16,698.18 ",12/26/2017
"ADVANTAGE SIGN SUPPLY, INC.",Maintenance of Buildings,"$1,215 ",12/26/2017
ADVOCATE MEDICAL GROUP.,I&D Claims (Damage Reserve),$300 ,2/16/2017
AGAE / PRO FENCE JOINT VENTURE,Maintenance of Buildings,"$49,686.10 ",6/6/2017
AGAE / PRO FENCE JOINT VENTURE,Maintenance of Buildings,"$69,612.50 ",6/8/2017
AGAE / PRO FENCE JOINT VENTURE,Maintenance of Buildings,"$81,090.90 ",6/14/2017
AGAE / PRO FENCE JOINT VENTURE,Maintenance of Buildings,"$3,873 ",6/22/2017
AGAE / PRO FENCE JOINT VENTURE,Maintenance of Buildings,"$26,523.10 ",6/27/2017
AGAE / PRO FENCE JOINT VENTURE,Maintenance of Buildings,"$29,973.80 ",7/5/2017
AGAE / PRO FENCE JOINT VENTURE,Maintenance of Buildings,"$10,120.50 ",8/1/2017
AGAE / PRO FENCE JOINT VENTURE,Maintenance of Buildings,"$1,470 ",8/31/2017
AGAE / PRO FENCE JOINT VENTURE,Maintenance of Buildings,"$26,981.90 ",9/8/2017
AGAE / PRO FENCE JOINT VENTURE,Maintenance of Buildings,"$3,980.20 ",9/19/2017
AGAE / PRO FENCE JOINT VENTURE,Maintenance of Buildings,"$58,122.20 ",9/20/2017
AGAE / PRO FENCE JOINT VENTURE,Maintenance of Buildings,"$31,344.47 ",9/26/2017
AGAE / PRO FENCE JOINT VENTURE,Maintenance of Buildings,"$13,642.58 ",10/18/2017
AGAE / PRO FENCE JOINT VENTURE,Maintenance of Buildings,"$7,200.60 ",11/14/2017
AGAE / PRO FENCE JOINT VENTURE,Maintenance of Buildings,"$20,358.80 ",11/28/2017
AGAE / PRO FENCE JOINT VENTURE,Maintenance of Buildings,"$14,176.10 ",11/30/2017
AGAE / Pro Fence Joint Venture,Maintenance of Buildings,$290 ,2/1/2017
AGAE / Pro Fence Joint Venture,Maintenance of Buildings,"$7,230.30 ",2/2/2017
AGAE / Pro Fence Joint Venture,Maintenance of Buildings,"$51,130.90 ",2/15/2017
AGAE / Pro Fence Joint Venture,Maintenance of Buildings,"$2,955 ",2/16/2017
AGAE / Pro Fence Joint Venture,Maintenance of Buildings,"$5,267 ",2/21/2017
AGAE / Pro Fence Joint Venture,Maintenance of Buildings,"$8,312.10 ",2/22/2017
AGAE / Pro Fence Joint Venture,Maintenance of Buildings,"$2,723.10 ",2/28/2017
AGAE / Pro Fence Joint Venture,Maintenance of Buildings,"$58,584.81 ",3/7/2017
AGAE / Pro Fence Joint Venture,Maintenance of Buildings,"$14,803.30 ",3/10/2017
AGAE / Pro Fence Joint Venture,Maintenance of Buildings,"$24,514.90 ",3/15/2017
AGAE / Pro Fence Joint Venture,Maintenance of Buildings,"$12,827 ",3/21/2017
AGAE / Pro Fence Joint Venture,Maintenance of Buildings,"$46,766.45 ",3/22/2017
AGAE / Pro Fence Joint Venture,Maintenance of Buildings,"$1,362.50 ",3/24/2017
AGAE / Pro Fence Joint Venture,Maintenance of Buildings,"$4,271.95 ",3/30/2017
AGAE / Pro Fence Joint Venture,Maintenance of Buildings,"$35,477 ",4/6/2017
AGAE / Pro Fence Joint Venture,Maintenance of Buildings,"$13,136 ",4/11/2017
AHEAD OF OUR TIME PUBLISHING INC,Administrative Support,$500 ,6/2/2017
AICPA,Professional / Technical,$200.81 ,3/29/2017
AICPA,Administrative Support,$100 ,5/23/2017
AICPA,Professional / Technical,$265 ,7/7/2017
AICPA,Administrative Support,$265 ,7/18/2017
AICPA,Management,$265 ,10/26/2017
ALAN DOWN,Reimb for lost tools/badges,$20 ,9/6/2017
ALAN J COOK,Administrative Support,$900 ,1/13/2017
ALAN J COOK,Administrative Support,$600 ,6/2/2017
ALAN J COOK,Administrative Support,$300 ,12/28/2017
ALAN J COOK,Administrative Support,"$2,100 ",12/29/2017
ALANA J GUEST,I&D Claims (Damage Reserve),$75 ,2/10/2017
ALANA J GUEST,I&D Claims (Damage Reserve),$100 ,5/12/2017
ALDRIDGE ELECTRIC INC,Contract Construction,"$80,848.92 ",5/22/2017
ALDRIDGE ELECTRIC INC,Contract Construction,"$514,890.07 ",8/30/2017
ALEX KESSLER,Administrative Support,$112.50 ,5/2/2017
ALEX KESSLER,Administrative Support,$112.50 ,8/2/2017
ALEX ORTHOPEDICS,I&D Claims (Damage Reserve),$750 ,3/14/2017
ALEX ORTHOPEDICS,I&D Claims (Damage Reserve),$187.50 ,5/11/2017
ALEX ORTHOPEDICS,I&D Claims (Damage Reserve),$185.60 ,5/23/2017
ALEXANDRA ROTH,I&D Claims (Damage Reserve),$43.80 ,10/3/2017
ALEXIS SMITH,I&D Claims (Damage Reserve),$375 ,11/30/2017
ALLIANCE TITLE COMPANY,Real Estate,"$125,000 ",8/15/2017
"ALLIED WASTE TRANSPORTATION, INC. d/b/a REPUBLIC SERVICES OF CHICAGO",Facilities Cleaning,"$62,854.74 ",2/2/2017
"ALLIED WASTE TRANSPORTATION, INC. d/b/a REPUBLIC SERVICES OF CHICAGO",Facilities Cleaning,"$71,044.69 ",2/10/2017
"ALLIED WASTE TRANSPORTATION, INC. d/b/a REPUBLIC SERVICES OF CHICAGO",Facilities Cleaning,"$1,924.79 ",3/14/2017
"ALLIED WASTE TRANSPORTATION, INC. d/b/a REPUBLIC SERVICES OF CHICAGO",Facilities Cleaning,"$59,349.40 ",3/29/2017
"ALLIED WASTE TRANSPORTATION, INC. d/b/a REPUBLIC SERVICES OF CHICAGO",Facilities Cleaning,"$71,678.91 ",5/11/2017
"ALLIED WASTE TRANSPORTATION, INC. d/b/a REPUBLIC SERVICES OF CHICAGO",Facilities Cleaning,"$62,171.80 ",5/18/2017
"ALLIED WASTE TRANSPORTATION, INC. d/b/a REPUBLIC SERVICES OF CHICAGO",Facilities Cleaning,"$62,815.39 ",5/26/2017
"ALLIED WASTE TRANSPORTATION, INC. d/b/a REPUBLIC SERVICES OF CHICAGO",Facilities Cleaning,"$4,995.14 ",6/16/2017
"ALLIED WASTE TRANSPORTATION, INC. d/b/a REPUBLIC SERVICES OF CHICAGO",Facilities Cleaning,"$72,126.47 ",6/29/2017
"ALLIED WASTE TRANSPORTATION, INC. d/b/a REPUBLIC SERVICES OF CHICAGO",Facilities Cleaning,"$67,545.30 ",7/27/2017
"ALLIED WASTE TRANSPORTATION, INC. d/b/a REPUBLIC SERVICES OF CHICAGO",Facilities Cleaning,"$70,128.94 ",8/30/2017
"ALLIED WASTE TRANSPORTATION, INC. d/b/a REPUBLIC SERVICES OF CHICAGO",Facilities Cleaning,"$82,884.64 ",10/6/2017
"ALLIED WASTE TRANSPORTATION, INC. d/b/a REPUBLIC SERVICES OF CHICAGO",Facilities Cleaning,"$78,514.92 ",10/27/2017
"ALLIED WASTE TRANSPORTATION, INC. d/b/a REPUBLIC SERVICES OF CHICAGO",Facilities Cleaning,"$74,330.93 ",11/29/2017
ALLSTATE SAWS & MACHINING LLC,Maintenance of Buildings,$130 ,1/3/2017
ALLSTATE SAWS & MACHINING LLC,General Shop/Gar/Term Repairs & Svcs,$79 ,1/12/2017
ALLSTATE SAWS & MACHINING LLC,Steel Fabrication,$207 ,1/25/2017
"ALLSTATE SAWS & MACHINING, LLC",Maintenance of Buildings,$588.91 ,3/7/2017
"ALLSTATE SAWS & MACHINING, LLC",Maintenance of Structures,$817.50 ,3/16/2017
"ALLSTATE SAWS & MACHINING, LLC",Maintenance of Equipment,"$4,618 ",4/26/2017
"ALLSTATE SAWS & MACHINING, LLC",Maintenance of Equipment,"$1,132 ",6/14/2017
"ALLSTATE SAWS & MACHINING, LLC",Steel Fabrication,$797 ,7/10/2017
"ALLSTATE SAWS & MACHINING, LLC",Maintenance of Buildings,"$1,092.75 ",7/20/2017
"ALLSTATE SAWS & MACHINING, LLC",Maintenance of Buildings,$387.50 ,9/19/2017
"ALLSTATE SAWS & MACHINING, LLC",Steel Fabrication,"$1,298 ",11/16/2017
"ALLSTATE SAWS & MACHINING, LLC",General Shop/Gar/Term Repairs & Svcs,$226.75 ,12/26/2017
"ALLSTATE SAWS & MACHINING, LLC",Maintenance of Buildings,$373 ,12/28/2017
"ALPINA MANUFACTURING, LLC",Administrative Support,"$22,921.75 ",6/13/2017
"ALSTOM SIGNALING, INC.",Maintainance of Signal & Control Equipment,"$3,659.10 ",1/12/2017
"ALSTOM SIGNALING, INC.",Maintainance of Signal & Control Equipment,"$4,448.70 ",2/21/2017
"ALSTOM SIGNALING, INC.",Maintainance of Signal & Control Equipment,"$28,600 ",3/30/2017
"ALSTOM SIGNALING, INC.",Equipment Purchases,"$28,600 ",8/23/2017
"ALSTOM SIGNALING, INC.",Maintainance of Signal & Control Equipment,"$4,730 ",11/29/2017
AMALGAMATED BANK OF CHICAGO,Cash Management,$493.33 ,2/16/2017
AMALGAMATED BANK OF CHICAGO,Cash Management,"$12,361.78 ",2/23/2017
AMALGAMATED BANK OF CHICAGO,Cash Management,$718.32 ,3/14/2017
AMALGAMATED BANK OF CHICAGO,Cash Management,$643.47 ,4/6/2017
AMALGAMATED BANK OF CHICAGO,Cash Management,$734.44 ,5/16/2017
AMALGAMATED BANK OF CHICAGO,Cash Management,"$12,110.03 ",5/26/2017
AMALGAMATED BANK OF CHICAGO,Cash Management,$586.67 ,6/7/2017
AMALGAMATED BANK OF CHICAGO,Cash Management,$163.01 ,7/27/2017
AMALGAMATED BANK OF CHICAGO,Cash Management,"$9,991.68 ",8/22/2017
AMALGAMATED BANK OF CHICAGO,Cash Management,$855.06 ,9/5/2017
AMALGAMATED BANK OF CHICAGO,Consulting Services,"$25,590.25 ",10/2/2017
AMALGAMATED BANK OF CHICAGO,Cash Management,$703.23 ,10/10/2017
AMALGAMATED BANK OF CHICAGO,Cash Management,$562.27 ,11/7/2017
AMALGAMATED BANK OF CHICAGO,Cash Management,"$9,830.73 ",11/24/2017
AMALGAMATED BANK OF CHICAGO,Cash Management,$605.16 ,12/8/2017
AMALGAMATED BANK OF CHICAGO.,Cash Management,"$10,000 ",4/24/2017
AMALGAMATED BANK OF CHICAGO.,Cash Management,"$10,000 ",5/16/2017
AMALGAMATED BANK OF CHICAGO.,Cash Management,"$5,000 ",9/29/2017
AMALGAMATED BANK OF CHICAGO.,Cash Management,"$2,500 ",10/24/2017
AMALGAMATED BANK OF CHICAGO.,Cash Management,"$10,000 ",11/21/2017
AMALGAMATED BANK OF CHICAGO.,Cash Management,"$5,000 ",12/8/2017
AMANDA ZAVERDAS,Real Estate,"$6,178.67 ",10/11/2017
"AMAZON WEB SERVICES, INC.",Professional / Technical,"$1,641.31 ",1/3/2017
"AMAZON WEB SERVICES, INC.",Professional / Technical,"$8,590 ",1/10/2017
"AMAZON WEB SERVICES, INC.",Professional / Technical,$797.12 ,1/31/2017
"AMAZON WEB SERVICES, INC.",Professional / Technical,$332.32 ,3/7/2017
"AMAZON WEB SERVICES, INC.",Professional / Technical,$287.38 ,5/2/2017
"AMAZON WEB SERVICES, INC.",Professional / Technical,$311.35 ,5/3/2017
"AMAZON WEB SERVICES, INC.",Professional / Technical,$284.47 ,7/14/2017
"AMAZON WEB SERVICES, INC.",Professional / Technical,$299.46 ,7/18/2017
"AMAZON WEB SERVICES, INC.",Professional / Technical,$22.45 ,10/3/2017
"AMAZON WEB SERVICES, INC.",Professional / Technical,$713.45 ,11/1/2017
"AMAZON WEB SERVICES, INC.",Professional / Technical,$309.24 ,12/8/2017
"AMERESCO, INC.",Professional / Technical,"$15,145 ",2/2/2017
"AMERESCO, INC.",Professional / Technical,"$15,395 ",2/27/2017
"AMERESCO, INC.",Professional / Technical,"$15,145 ",3/2/2017
"AMERESCO, INC.",Professional / Technical,"$15,145 ",3/30/2017
"AMERESCO, INC.",Professional / Technical,"$15,145 ",5/4/2017
"AMERESCO, INC.",Professional / Technical,"$15,145 ",6/1/2017
"AMERESCO, INC.",Professional / Technical,"$15,145 ",7/3/2017
"AMERESCO, INC.",Professional / Technical,"$15,145 ",8/3/2017
"AMERESCO, INC.",Professional / Technical,"$15,145 ",9/11/2017
"AMERESCO, INC.",Professional / Technical,"$15,145 ",10/25/2017
"AMERESCO, INC.",Professional / Technical,"$14,730 ",11/30/2017
"AMERICAN BUILDING SERVICES, LLC (M-D BUILDING MATERIALS)",Maintenance of Buildings,"$6,709.24 ",2/9/2017
"AMERICAN BUILDING SERVICES, LLC (M-D BUILDING MATERIALS)",Maintenance of Buildings,"$2,911.44 ",2/16/2017
"AMERICAN BUILDING SERVICES, LLC (M-D BUILDING MATERIALS)",Maintenance of Buildings,"$3,452.20 ",3/9/2017
"AMERICAN BUILDING SERVICES, LLC (M-D BUILDING MATERIALS)",Maintenance of Buildings,"$3,827.66 ",3/16/2017
"AMERICAN BUILDING SERVICES, LLC (M-D BUILDING MATERIALS)",Maintenance of Buildings,"$7,772.88 ",3/17/2017
"AMERICAN BUILDING SERVICES, LLC (M-D BUILDING MATERIALS)",Maintenance of Buildings,"$1,604.80 ",3/23/2017
"AMERICAN BUILDING SERVICES, LLC (M-D BUILDING MATERIALS)",Maintenance of Buildings,"$4,893.48 ",3/30/2017
"AMERICAN BUILDING SERVICES, LLC (M-D BUILDING MATERIALS)",Maintenance of Buildings,"$2,475.20 ",4/6/2017
"AMERICAN BUILDING SERVICES, LLC (M-D BUILDING MATERIALS)",Maintenance of Buildings,"$9,219.60 ",7/6/2017
"AMERICAN BUILDING SERVICES, LLC (M-D BUILDING MATERIALS)",Maintenance of Buildings,"$4,552.52 ",10/4/2017
"AMERICAN BUILDING SERVICES, LLC (M-D BUILDING MATERIALS)",Maintenance of Buildings,"$1,844.17 ",11/2/2017
"AMERICAN BUILDING SERVICES, LLC (M-D BUILDING MATERIALS)",Maintenance of Buildings,"$4,720.24 ",11/9/2017
"AMERICAN BUILDING SERVICES, LLC (M-D BUILDING MATERIALS)",Maintenance of Buildings,"$2,970.24 ",11/15/2017
"AMERICAN BUILDING SERVICES, LLC (M-D BUILDING MATERIALS)",Maintenance of Buildings,$433.07 ,11/21/2017
"AMERICAN BUILDING SERVICES, LLC (M-D BUILDING MATERIALS)",Maintenance of Rail Stations,$683.55 ,12/11/2017
AMERICAN CENTER FOR SPINE &,I&D Claims (Damage Reserve),$750 ,2/9/2017
AMERICAN INSURANCE SERVICES GROUP,I&D Claims (Damage Reserve),$579.70 ,3/1/2017
AMERICAN INSURANCE SERVICES GROUP,I&D Claims (Damage Reserve),"$1,431.20 ",3/14/2017
AMERICAN INSURANCE SERVICES GROUP,I&D Claims (Damage Reserve),$256.50 ,3/29/2017
AMERICAN INSURANCE SERVICES GROUP,I&D Claims (Damage Reserve),$494 ,5/23/2017
AMERICAN INSURANCE SERVICES GROUP,I&D Claims (Damage Reserve),$313.50 ,6/6/2017
AMERICAN INSURANCE SERVICES GROUP,I&D Claims (Damage Reserve),$294.50 ,6/28/2017
AMERICAN INSURANCE SERVICES GROUP,I&D Claims (Damage Reserve),$332.50 ,8/10/2017
AMERICAN INSURANCE SERVICES GROUP,I&D Claims (Damage Reserve),$427.50 ,8/29/2017
AMERICAN INSURANCE SERVICES GROUP,I&D Claims (Damage Reserve),$541.50 ,10/3/2017
AMERICAN INSURANCE SERVICES GROUP,I&D Claims (Damage Reserve),$408.50 ,11/7/2017
AMERICAN INSURANCE SERVICES GROUP,I&D Claims (Damage Reserve),$323 ,12/14/2017
AMERICAN MEDICAL ASSOCIATION,Administrative Support,$99.66 ,12/12/2017
AMERICAN PAYROLL ASSOC.,Administrative Support,$219 ,5/16/2017
AMERICAN PAYROLL ASSOC.,Administrative Support,$753.95 ,5/16/2017
AMERICAN PAYROLL ASSOC.,Training - Students,"$1,130 ",5/18/2017
AMERICAN PETROLEUM INSTITUTE,"Training- Retraining,Refresher,Training for Change","$1,280 ",8/16/2017
AMERICAN PUBLIC TRANSPORTATION ASSOCIATION,Administrative Support,$820 ,1/17/2017
AMERICAN PUBLIC TRANSPORTATION ASSOCIATION,Administrative Support,$50 ,2/3/2017
AMERICAN PUBLIC TRANSPORTATION ASSOCIATION,Administrative Support,$650 ,2/8/2017
AMERICAN PUBLIC TRANSPORTATION ASSOCIATION,Administrative Support,$900 ,3/3/2017
AMERICAN PUBLIC TRANSPORTATION ASSOCIATION,Administrative Support,"$2,410 ",3/3/2017
AMERICAN PUBLIC TRANSPORTATION ASSOCIATION,BUS/RAIL ROADEO,"$3,750 ",3/27/2017
AMERICAN PUBLIC TRANSPORTATION ASSOCIATION,Administrative Support,"$3,515 ",4/7/2017
AMERICAN PUBLIC TRANSPORTATION ASSOCIATION,Administrative Support,$825 ,4/7/2017
AMERICAN PUBLIC TRANSPORTATION ASSOCIATION,Administrative Support,"$5,142.20 ",4/7/2017
AMERICAN PUBLIC TRANSPORTATION ASSOCIATION,BUS/RAIL ROADEO,"$3,305.70 ",4/20/2017
AMERICAN PUBLIC TRANSPORTATION ASSOCIATION,BUS/RAIL ROADEO,"$2,360 ",4/20/2017
AMERICAN PUBLIC TRANSPORTATION ASSOCIATION,BUS/RAIL ROADEO,$825 ,4/20/2017
AMERICAN PUBLIC TRANSPORTATION ASSOCIATION,Administrative Support,$875 ,4/26/2017
AMERICAN PUBLIC TRANSPORTATION ASSOCIATION,BUS/RAIL ROADEO,$280 ,4/26/2017
AMERICAN PUBLIC TRANSPORTATION ASSOCIATION,BUS/RAIL ROADEO,"$1,025 ",4/26/2017
AMERICAN PUBLIC TRANSPORTATION ASSOCIATION,BUS/RAIL ROADEO,$734.60 ,4/28/2017
AMERICAN PUBLIC TRANSPORTATION ASSOCIATION,BUS/RAIL ROADEO,$734.60 ,4/28/2017
AMERICAN PUBLIC TRANSPORTATION ASSOCIATION,BUS/RAIL ROADEO,$250 ,4/28/2017
AMERICAN PUBLIC TRANSPORTATION ASSOCIATION,Engineering,$875 ,6/2/2017
AMERICAN PUBLIC TRANSPORTATION ASSOCIATION,Administrative Support,$875 ,6/5/2017
AMERICAN PUBLIC TRANSPORTATION ASSOCIATION,Training - Students,"$2,500 ",7/12/2017
AMERICAN PUBLIC TRANSPORTATION ASSOCIATION,Training - Students,"$6,000 ",9/28/2017
AMERICAN PUBLIC TRANSPORTATION ASSOCIATION,Administrative Support,$975 ,10/4/2017
AMERICAN PUBLIC TRANSPORTATION ASSOCIATION,Administrative Support,$850 ,10/10/2017
AMERICAN PUBLIC TRANSPORTATION ASSOCIATION,Administrative Support,$125 ,10/24/2017
AMERICAN SOCIETY FOR QUALITY,Professional / Technical,$159 ,6/27/2017
AMERICAN SOCIETY OF SAFETY ENG.,Management,$175 ,1/6/2017
AMERICAN SOCIETY OF SAFETY ENG.,Management,$675 ,4/14/2017
AMERICAN TOWERS LLC,"Facilities Operating Expenses (Rent,Utilities,etc)","$4,111.89 ",3/14/2017
AMERICAN TOWERS LLC,"Facilities Operating Expenses (Rent,Utilities,etc)","$16,447.56 ",6/20/2017
AMERICAN TOWERS LLC,"Facilities Operating Expenses (Rent,Utilities,etc)","$4,111.89 ",7/21/2017
AMERICAN TOWERS LLC,"Facilities Operating Expenses (Rent,Utilities,etc)","$4,111.89 ",8/18/2017
AMERICAN TOWERS LLC,"Facilities Operating Expenses (Rent,Utilities,etc)","$4,111.89 ",10/10/2017
AMERICAN TOWERS LLC,"Facilities Operating Expenses (Rent,Utilities,etc)","$4,111.89 ",10/12/2017
AMERICAN TOWERS LLC,"Facilities Operating Expenses (Rent,Utilities,etc)","$4,111.89 ",11/24/2017
AMERICAN TOWERS LLC,"Facilities Operating Expenses (Rent,Utilities,etc)","$4,111.89 ",12/28/2017
AMERIMEX SALES & SERVICE,Maintenance of Equipment,$702 ,1/13/2017
AMERIMEX SALES & SERVICE,General Shop/Gar/Term Repairs & Svcs,"$1,784.99 ",3/14/2017
AMERIMEX SALES & SERVICE,Maintenance of Equipment,"$3,915.91 ",5/30/2017
AMERIMEX SALES & SERVICE,Maintenance of Equipment,$272.95 ,6/5/2017
AMERIMEX SALES & SERVICE,Maintenance of Equipment,"$3,729.74 ",6/6/2017
AMERIMEX SALES & SERVICE,Maintenance of Equipment,"$2,634.43 ",9/21/2017
AMERIMEX SALES & SERVICE,Maintenance of Equipment,"$1,904.87 ",9/25/2017
"AMI RISK CONSULTANTS, INC.",Accounting,"$7,600 ",5/4/2017
"AMICUS COURT REPORTERS, INC.",I&D Claims (Damage Reserve),$199.50 ,3/22/2017
AMY KISNER,Administrative Support,$125 ,8/3/2017
AN EXECUTIVE DECISION,Administrative Support,"$1,188.75 ",1/11/2017
AN EXECUTIVE DECISION,Administrative Support,"$1,947.76 ",3/24/2017
AN EXECUTIVE DECISION,Administrative Support,$311.06 ,5/18/2017
AN EXECUTIVE DECISION,Administrative Support,$222.27 ,5/30/2017
AN EXECUTIVE DECISION,Marketing,"$5,256.60 ",8/8/2017
AN EXECUTIVE DECISION,Marketing,"$5,733.19 ",8/8/2017
AN EXECUTIVE DECISION,Marketing,"$1,176.38 ",8/15/2017
ANA KEDALOVA,I&D Claims (Damage Reserve),$50 ,1/24/2017
"ANCHOR MECHANICAL, INC.",Maintenance of Buildings,"$23,900 ",2/21/2017
"ANCHOR MECHANICAL, INC.",Maintenance of Buildings,"$8,525 ",2/22/2017
"ANCHOR MECHANICAL, INC.",Maintenance of Equipment,"$1,100 ",2/23/2017
"ANCHOR MECHANICAL, INC.",Maintenance of Buildings,"$2,150 ",3/9/2017
"ANCHOR MECHANICAL, INC.",Maintenance of Equipment,"$2,400 ",3/15/2017
"ANCHOR MECHANICAL, INC.",Maintenance of Buildings,"$31,139 ",6/13/2017
"ANCHOR MECHANICAL, INC.",Maintenance of Buildings,"$34,100 ",8/22/2017
"ANCHOR MECHANICAL, INC.",Maintenance of Buildings,"$8,525 ",9/5/2017
"ANCHOR MECHANICAL, INC.",Maintenance of Buildings,"$21,455 ",9/6/2017
"ANCHOR MECHANICAL, INC.",Maintenance of Buildings,"$8,525 ",12/7/2017
"ANCHOR MECHANICAL, INC.",Maintenance of Buildings,"$17,050 ",12/19/2017
"ANCHOR STAFFING, INC.",Administrative Support,"$1,152.80 ",1/5/2017
"ANCHOR STAFFING, INC.",Administrative Support,"$1,152.80 ",1/12/2017
"ANCHOR STAFFING, INC.",Professional / Technical,"$2,151.17 ",1/13/2017
"ANCHOR STAFFING, INC.",Administrative Support,"$1,037.52 ",1/19/2017
"ANCHOR STAFFING, INC.",Professional / Technical,"$1,093.41 ",1/25/2017
"ANCHOR STAFFING, INC.",Administrative Support,"$1,152.80 ",1/26/2017
"ANCHOR STAFFING, INC.",Professional / Technical,"$1,038.32 ",1/26/2017
"ANCHOR STAFFING, INC.",Administrative Support,$875.41 ,2/2/2017
"ANCHOR STAFFING, INC.",Professional / Technical,$845.50 ,2/2/2017
"ANCHOR STAFFING, INC.",Administrative Support,$922.24 ,2/9/2017
"ANCHOR STAFFING, INC.",Professional / Technical,$863.32 ,2/9/2017
"ANCHOR STAFFING, INC.",Administrative Support,"$1,152.80 ",2/16/2017
"ANCHOR STAFFING, INC.",Administrative Support,$922.24 ,2/23/2017
"ANCHOR STAFFING, INC.",Professional / Technical,"$1,075.75 ",2/27/2017
"ANCHOR STAFFING, INC.",Administrative Support,"$1,105.97 ",3/2/2017
"ANCHOR STAFFING, INC.",Administrative Support,"$1,131.19 ",3/9/2017
"ANCHOR STAFFING, INC.",Professional / Technical,"$2,912.74 ",3/14/2017
"ANCHOR STAFFING, INC.",Administrative Support,"$1,105.97 ",3/16/2017
"ANCHOR STAFFING, INC.",Professional / Technical,"$1,068.62 ",3/17/2017
"ANCHOR STAFFING, INC.",Administrative Support,"$1,152.80 ",3/23/2017
"ANCHOR STAFFING, INC.",Professional / Technical,"$2,073.09 ",3/27/2017
"ANCHOR STAFFING, INC.",Administrative Support,"$1,037.52 ",3/30/2017
"ANCHOR STAFFING, INC.",Professional / Technical,"$1,065.54 ",3/30/2017
"ANCHOR STAFFING, INC.",Administrative Support,$230.56 ,4/6/2017
"ANCHOR STAFFING, INC.",Professional / Technical,$968.80 ,4/10/2017
"ANCHOR STAFFING, INC.",Administrative Support,$522.36 ,4/13/2017
"ANCHOR STAFFING, INC.",Professional / Technical,$973.67 ,4/13/2017
"ANCHOR STAFFING, INC.",Administrative Support,$554.79 ,4/20/2017
"ANCHOR STAFFING, INC.",Professional / Technical,"$1,075.75 ",4/20/2017
"ANCHOR STAFFING, INC.",Administrative Support,$576.40 ,4/27/2017
"ANCHOR STAFFING, INC.",Professional / Technical,"$1,065.54 ",4/27/2017
"ANCHOR STAFFING, INC.",Administrative Support,$576.40 ,5/4/2017
"ANCHOR STAFFING, INC.",Professional / Technical,"$1,075.75 ",5/4/2017
"ANCHOR STAFFING, INC.",Administrative Support,$576.40 ,5/11/2017
"ANCHOR STAFFING, INC.",Professional / Technical,$531.19 ,5/11/2017
"ANCHOR STAFFING, INC.",Administrative Support,$576.40 ,5/18/2017
"ANCHOR STAFFING, INC.",Professional / Technical,$534.75 ,5/18/2017
"ANCHOR STAFFING, INC.",Administrative Support,$576.40 ,5/25/2017
"ANCHOR STAFFING, INC.",Professional / Technical,"$1,075.75 ",5/25/2017
"ANCHOR STAFFING, INC.",Administrative Support,$576.40 ,6/1/2017
"ANCHOR STAFFING, INC.",Professional / Technical,$943.05 ,6/1/2017
"ANCHOR STAFFING, INC.",Administrative Support,$461.12 ,6/8/2017
"ANCHOR STAFFING, INC.",Professional / Technical,"$1,041.72 ",6/8/2017
"ANCHOR STAFFING, INC.",Professional / Technical,"$1,075.59 ",6/16/2017
"ANCHOR STAFFING, INC.",Professional / Technical,"$1,075.59 ",6/22/2017
"ANCHOR STAFFING, INC.",Administrative Support,"$1,152.80 ",6/28/2017
"ANCHOR STAFFING, INC.",Administrative Support,$576.40 ,6/29/2017
"ANCHOR STAFFING, INC.",Professional / Technical,"$1,075.75 ",6/29/2017
"ANCHOR STAFFING, INC.",Administrative Support,$461.12 ,7/6/2017
"ANCHOR STAFFING, INC.",Professional / Technical,$859.92 ,7/13/2017
"ANCHOR STAFFING, INC.",Administrative Support,$576.40 ,7/14/2017
"ANCHOR STAFFING, INC.",Professional / Technical,"$1,072.35 ",7/14/2017
"ANCHOR STAFFING, INC.",Administrative Support,$576.40 ,7/20/2017
"ANCHOR STAFFING, INC.",Professional / Technical,"$1,031.52 ",7/20/2017
"ANCHOR STAFFING, INC.",Administrative Support,$576.40 ,7/27/2017
"ANCHOR STAFFING, INC.",Professional / Technical,"$2,049.42 ",8/3/2017
"ANCHOR STAFFING, INC.",Administrative Support,$576.40 ,8/4/2017
"ANCHOR STAFFING, INC.",Administrative Support,$345.84 ,8/10/2017
"ANCHOR STAFFING, INC.",Professional / Technical,$666.66 ,8/14/2017
"ANCHOR STAFFING, INC.",Administrative Support,$345.84 ,8/17/2017
"ANCHOR STAFFING, INC.",Professional / Technical,"$1,083.76 ",8/17/2017
"ANCHOR STAFFING, INC.",Administrative Support,$461.12 ,8/24/2017
"ANCHOR STAFFING, INC.",Professional / Technical,"$1,080.20 ",8/24/2017
"ANCHOR STAFFING, INC.",Administrative Support,$576.40 ,8/31/2017
"ANCHOR STAFFING, INC.",Professional / Technical,"$1,080.20 ",8/31/2017
"ANCHOR STAFFING, INC.",Administrative Support,$576.40 ,9/8/2017
"ANCHOR STAFFING, INC.",Administrative Support,$576.40 ,9/14/2017
"ANCHOR STAFFING, INC.",Professional / Technical,"$1,101.59 ",9/14/2017
"ANCHOR STAFFING, INC.",Administrative Support,$576.40 ,9/21/2017
"ANCHOR STAFFING, INC.",Professional / Technical,$880.56 ,9/21/2017
"ANCHOR STAFFING, INC.",Administrative Support,$576.40 ,9/28/2017
"ANCHOR STAFFING, INC.",Professional / Technical,$777.17 ,9/28/2017
"ANCHOR STAFFING, INC.",Administrative Support,$461.12 ,10/5/2017
"ANCHOR STAFFING, INC.",Professional / Technical,$866.30 ,10/5/2017
"ANCHOR STAFFING, INC.",Professional / Technical,"$1,033.86 ",10/6/2017
"ANCHOR STAFFING, INC.",Administrative Support,$461.12 ,10/12/2017
"ANCHOR STAFFING, INC.",Professional / Technical,$641.70 ,10/12/2017
"ANCHOR STAFFING, INC.",Administrative Support,$576.40 ,10/19/2017
"ANCHOR STAFFING, INC.",Professional / Technical,$534.75 ,10/19/2017
"ANCHOR STAFFING, INC.",Administrative Support,$576.40 ,10/26/2017
"ANCHOR STAFFING, INC.",Administrative Support,$576.40 ,11/2/2017
"ANCHOR STAFFING, INC.",Professional / Technical,"$1,069.50 ",11/3/2017
"ANCHOR STAFFING, INC.",Administrative Support,$576.40 ,11/9/2017
"ANCHOR STAFFING, INC.",Professional / Technical,$427.80 ,11/9/2017
"ANCHOR STAFFING, INC.",Administrative Support,$688.08 ,11/24/2017
"ANCHOR STAFFING, INC.",Professional / Technical,"$1,062.37 ",11/28/2017
"ANCHOR STAFFING, INC.",Administrative Support,$576.40 ,11/30/2017
"ANCHOR STAFFING, INC.",Professional / Technical,$427.80 ,11/30/2017
"ANCHOR STAFFING, INC.",Administrative Support,$576.40 ,12/7/2017
"ANCHOR STAFFING, INC.",Professional / Technical,$534.75 ,12/13/2017
"ANCHOR STAFFING, INC.",Professional / Technical,$427.80 ,12/14/2017
"ANCHOR STAFFING, INC.",Professional / Technical,$534.75 ,12/29/2017
ANDERSON COVERAGE GROUP LLC,Administrative Support,"$16,461 ",12/20/2017
ANDERSON ELEVATOR CO.,Maintenance of Equipment,"$358,318.93 ",1/20/2017
ANDERSON ELEVATOR CO.,Contract Construction,"$11,163.40 ",1/25/2017
ANDERSON ELEVATOR CO.,Maintenance of Equipment,"$366,329.92 ",2/9/2017
ANDERSON ELEVATOR CO.,Contract Construction,"$70,932.54 ",2/15/2017
ANDERSON ELEVATOR CO.,Maintenance of Equipment,"$344,424.80 ",3/9/2017
ANDERSON ELEVATOR CO.,Contract Construction,"$21,994.44 ",3/14/2017
ANDERSON ELEVATOR CO.,Maintenance of Buildings,"$321,570.31 ",4/11/2017
ANDERSON ELEVATOR CO.,Contract Construction,"$23,482.56 ",4/17/2017
ANDERSON ELEVATOR CO.,Contract Construction,"$24,206.92 ",5/4/2017
ANDERSON ELEVATOR CO.,Contract Construction,"$4,306.05 ",5/8/2017
ANDERSON ELEVATOR CO.,Maintenance of Buildings,"$320,356.36 ",5/10/2017
ANDERSON ELEVATOR CO.,Maintenance of Buildings,"$12,550 ",5/15/2017
ANDERSON ELEVATOR CO.,Contract Construction,"$23,338.93 ",5/24/2017
ANDERSON ELEVATOR CO.,Contract Construction,"$13,331.95 ",6/12/2017
ANDERSON ELEVATOR CO.,Maintenance of Buildings,"$322,381.82 ",6/19/2017
ANDERSON ELEVATOR CO.,Maintenance of Buildings,"$322,308.20 ",7/6/2017
ANDERSON ELEVATOR CO.,Contract Construction,"$29,665.83 ",7/17/2017
ANDERSON ELEVATOR CO.,Maintenance of Buildings,"$19,508 ",7/20/2017
ANDERSON ELEVATOR CO.,Maintenance of Buildings,"$328,772.41 ",8/14/2017
ANDERSON ELEVATOR CO.,Contract Construction,"$24,074.49 ",8/16/2017
ANDERSON ELEVATOR CO.,Maintenance of Buildings,"$31,243.54 ",8/18/2017
ANDERSON ELEVATOR CO.,Maintenance of Buildings,"$322,730.72 ",9/19/2017
ANDERSON ELEVATOR CO.,Maintenance of Buildings,"$346,602.14 ",10/11/2017
ANDERSON ELEVATOR CO.,Contract Construction,"$25,564.88 ",10/17/2017
ANDERSON ELEVATOR CO.,Contract Construction,"$28,274.50 ",11/1/2017
ANDERSON ELEVATOR CO.,Contract Construction,"$16,199.30 ",11/6/2017
ANDERSON ELEVATOR CO.,Maintenance of Buildings,"$318,621.26 ",11/7/2017
ANDERSON ELEVATOR CO.,Contract Construction,"$13,594.24 ",11/20/2017
ANDERSON ELEVATOR CO.,Contract Construction,"$9,139.36 ",11/22/2017
ANDERSON ELEVATOR CO.,Maintenance of Buildings,"$343,560.97 ",12/15/2017
ANDERSON ELEVATOR CO.,Maintenance of Buildings,"$55,968 ",12/28/2017
ANDRE AGNEW,Reimb for lost tools/badges,$20 ,5/16/2017
ANDREW J COHEN,Legal Defense (Non-Damage Reserve),"$3,000 ",5/2/2017
ANDREW WELLS,Reimb for lost tools/badges,$50 ,8/22/2017
ANDREW ZALSKI M.D.,I&D Claims (Damage Reserve),$125 ,4/13/2017
ANDREW ZALSKI M.D.,I&D Claims (Damage Reserve),$125 ,4/13/2017
ANDREW ZALSKI M.D.,I&D Claims (Damage Reserve),$125 ,4/13/2017
ANDREW ZALSKI M.D.,I&D Claims (Damage Reserve),$125 ,4/13/2017
ANDREW ZALSKI M.D.,I&D Claims (Damage Reserve),$500 ,4/13/2017
ANDREW ZALSKI M.D.,I&D Claims (Damage Reserve),$500 ,4/13/2017
ANDREW ZALSKI M.D.,I&D Claims (Damage Reserve),$500 ,5/16/2017
ANDREW ZALSKI M.D.,I&D Claims (Damage Reserve),$625 ,6/2/2017
ANDREW ZALSKI M.D.,I&D Claims (Damage Reserve),$625 ,6/13/2017
ANGELA  JONES,Legal Defense (Non-Damage Reserve),"$5,000 ",3/29/2017
"ANIXTER, INC.",Administrative Support,$875.10 ,10/10/2017
ANN S. KENIS,Administrative Support,$700 ,3/15/2017
ANN S. KENIS,Administrative Support,$700 ,10/6/2017
ANN S. KENIS,Administrative Support,"$4,200 ",12/29/2017
"ANSALDO STS USA, INC.",Equipment Purchases,"$4,810.90 ",5/2/2017
"ANSALDO STS USA, INC.",Maintainance of Signal & Control Equipment,$292.80 ,5/3/2017
"ANSALDO STS USA, INC.",Maintainance of Signal & Control Equipment,$416.80 ,6/7/2017
"ANSALDO STS USA, INC.",Maintainance of Signal & Control Equipment,"$1,186.52 ",6/8/2017
"ANSALDO STS USA, INC.",Vehicle Rehab,"$282,981 ",6/21/2017
"ANSALDO STS USA, INC.",Maintainance of Signal & Control Equipment,"$10,109.60 ",6/22/2017
"ANSALDO STS USA, INC.",Equipment Purchases,"$143,231.60 ",7/7/2017
"ANSALDO STS USA, INC.",Maintainance of Signal & Control Equipment,"$1,733.98 ",7/11/2017
"ANSALDO STS USA, INC.",Maintainance of Signal & Control Equipment,"$12,600 ",7/12/2017
"ANSALDO STS USA, INC.",Maintainance of Signal & Control Equipment,"$2,021.92 ",7/25/2017
"ANSALDO STS USA, INC.",Maintainance of Signal & Control Equipment,$199.50 ,8/2/2017
"ANSALDO STS USA, INC.",Maintainance of Signal & Control Equipment,"$1,022.85 ",8/17/2017
"ANSALDO STS USA, INC.",Maintainance of Signal & Control Equipment,"$4,450.95 ",9/21/2017
ANTHONY RICE,I&D Claims (Damage Reserve),$25 ,4/24/2017
APOLLO VIDEO TECHNOLOGY,Maintenance of Equipment,"$84,775.05 ",1/25/2017
APOLLO VIDEO TECHNOLOGY,Maintenance of Equipment,"$30,808.90 ",1/26/2017
APOLLO VIDEO TECHNOLOGY,Equipment Purchases,"$250,679 ",2/1/2017
APOLLO VIDEO TECHNOLOGY,Equipment Purchases,"$65,502 ",2/10/2017
APOLLO VIDEO TECHNOLOGY,Equipment Purchases,"$216,300 ",3/1/2017
APOLLO VIDEO TECHNOLOGY,Maintenance of Equipment,"$39,908.80 ",3/8/2017
APOLLO VIDEO TECHNOLOGY,Equipment Purchases,"$205,485 ",3/31/2017
APOLLO VIDEO TECHNOLOGY,Equipment Purchases,"$224,952 ",4/28/2017
APOLLO VIDEO TECHNOLOGY,Maintenance of Equipment,"$61,223.25 ",5/2/2017
APOLLO VIDEO TECHNOLOGY,Maintenance of Equipment,"$77,924.50 ",5/5/2017
APOLLO VIDEO TECHNOLOGY,Equipment Purchases,"$147,084 ",6/2/2017
APOLLO VIDEO TECHNOLOGY,Equipment Purchases,"$86,520 ",7/7/2017
APOLLO VIDEO TECHNOLOGY,Maintenance of Equipment,"$80,074 ",8/16/2017
APOLLO VIDEO TECHNOLOGY,Maintenance of Equipment,"$133,090.25 ",9/7/2017
APOLLO VIDEO TECHNOLOGY,Maintenance of Equipment,"$17,155.80 ",9/14/2017
APOLLO VIDEO TECHNOLOGY,Maintenance of Equipment,"$2,567 ",10/10/2017
APOLLO VIDEO TECHNOLOGY,Maintenance of Equipment,"$63,979.50 ",10/11/2017
APOLLO VIDEO TECHNOLOGY,Maintenance of Equipment,"$61,774.75 ",10/12/2017
APOLLO VIDEO TECHNOLOGY,Maintenance of Equipment,"$60,952.75 ",11/2/2017
APPLICATIONS SOFTWARE TECH.,Consulting Services,"$1,246,200 ",1/24/2017
APPLICATIONS SOFTWARE TECH.,Consulting Services,"$437,280 ",3/3/2017
APPLICATIONS SOFTWARE TECH.,Consulting Services,"$101,600 ",3/31/2017
APPLICATIONS SOFTWARE TECH.,Consulting Services,"$161,200 ",4/11/2017
APPLICATIONS SOFTWARE TECH.,Consulting Services,"$673,300 ",5/1/2017
APPLICATIONS SOFTWARE TECH.,Consulting Services,"$134,200 ",6/15/2017
APPLICATIONS SOFTWARE TECH.,Consulting Services,"$250,000 ",7/19/2017
APPLICATIONS SOFTWARE TECH.,Consulting Services,"$260,000 ",8/10/2017
APPLICATIONS SOFTWARE TECH.,Consulting Services,"$220,200 ",9/8/2017
APPLICATIONS SOFTWARE TECH.,Consulting Services,"$306,600 ",9/28/2017
APPLICATIONS SOFTWARE TECH.,Consulting Services,"$189,200 ",10/17/2017
APPLICATIONS SOFTWARE TECH.,Consulting Services,"$241,500 ",11/3/2017
APPLICATIONS SOFTWARE TECH.,Consulting Services,"$327,000 ",12/8/2017
APPLIED CUSTOM EQUIPMENT LLC,Contract Construction,"$126,000 ",4/24/2017
"ARAMARK UNIFORM SERVICES, INC.",Money Counting,$507.20 ,1/3/2017
"ARAMARK UNIFORM SERVICES, INC.",Engineering,$226.06 ,1/30/2017
"ARAMARK UNIFORM SERVICES, INC.",Professional / Technical,$489.83 ,1/31/2017
"ARAMARK UNIFORM SERVICES, INC.",Money Counting,$281.01 ,2/2/2017
"ARAMARK UNIFORM SERVICES, INC.",Money Counting,$47.44 ,2/8/2017
"ARAMARK UNIFORM SERVICES, INC.",Money Counting,$47.44 ,2/15/2017
"ARAMARK UNIFORM SERVICES, INC.",Money Counting,$47.44 ,2/24/2017
"ARAMARK UNIFORM SERVICES, INC.",Money Counting,$57.72 ,3/1/2017
"ARAMARK UNIFORM SERVICES, INC.",Money Counting,$57.72 ,3/7/2017
"ARAMARK UNIFORM SERVICES, INC.",Money Counting,$57.72 ,3/16/2017
"ARAMARK UNIFORM SERVICES, INC.",Engineering,$87.36 ,3/17/2017
"ARAMARK UNIFORM SERVICES, INC.",Engineering,$131.04 ,3/20/2017
"ARAMARK UNIFORM SERVICES, INC.",Money Counting,$38.52 ,3/22/2017
"ARAMARK UNIFORM SERVICES, INC.",Money Counting,$38.52 ,3/29/2017
"ARAMARK UNIFORM SERVICES, INC.",Money Counting,$38.52 ,4/6/2017
"ARAMARK UNIFORM SERVICES, INC.",Engineering,$43.68 ,4/10/2017
"ARAMARK UNIFORM SERVICES, INC.",Engineering,$43.68 ,4/11/2017
"ARAMARK UNIFORM SERVICES, INC.",Money Counting,$38.52 ,4/11/2017
"ARAMARK UNIFORM SERVICES, INC.",Money Counting,$38.52 ,4/19/2017
"ARAMARK UNIFORM SERVICES, INC.",Engineering,$174.72 ,4/20/2017
"ARAMARK UNIFORM SERVICES, INC.",Engineering,$129.94 ,4/26/2017
"ARAMARK UNIFORM SERVICES, INC.",Money Counting,$41.52 ,4/26/2017
"ARAMARK UNIFORM SERVICES, INC.",Engineering,$43.68 ,4/27/2017
"ARAMARK UNIFORM SERVICES, INC.",Professional / Technical,$21.99 ,4/28/2017
"ARAMARK UNIFORM SERVICES, INC.",Money Counting,$38.52 ,5/3/2017
"ARAMARK UNIFORM SERVICES, INC.",Money Counting,$38.52 ,5/10/2017
"ARAMARK UNIFORM SERVICES, INC.",Money Counting,$38.52 ,5/17/2017
"ARAMARK UNIFORM SERVICES, INC.",Engineering,$173.04 ,5/19/2017
"ARAMARK UNIFORM SERVICES, INC.",Money Counting,$38.52 ,5/24/2017
"ARAMARK UNIFORM SERVICES, INC.",Money Counting,$38.52 ,5/31/2017
"ARAMARK UNIFORM SERVICES, INC.",Money Counting,$38.52 ,6/8/2017
"ARAMARK UNIFORM SERVICES, INC.",Money Counting,$38.52 ,6/14/2017
"ARAMARK UNIFORM SERVICES, INC.",Money Counting,$248.83 ,6/21/2017
"ARAMARK UNIFORM SERVICES, INC.",Money Counting,$38.52 ,6/28/2017
"ARAMARK UNIFORM SERVICES, INC.",Money Counting,$38.52 ,7/5/2017
"ARAMARK UNIFORM SERVICES, INC.",Engineering,$168 ,7/18/2017
"ARAMARK UNIFORM SERVICES, INC.",Engineering,$168 ,7/31/2017
"ARAMARK UNIFORM SERVICES, INC.",Engineering,$180.90 ,8/24/2017
"ARAMARK UNIFORM SERVICES, INC.",Engineering,$168 ,8/31/2017
"ARAMARK UNIFORM SERVICES, INC.",Money Counting,$45.22 ,9/20/2017
"ARAMARK UNIFORM SERVICES, INC.",Money Counting,$411.05 ,9/22/2017
"ARAMARK UNIFORM SERVICES, INC.",Engineering,$168 ,9/25/2017
"ARAMARK UNIFORM SERVICES, INC.",Money Counting,$45.22 ,9/27/2017
"ARAMARK UNIFORM SERVICES, INC.",Money Counting,$45.22 ,10/4/2017
"ARAMARK UNIFORM SERVICES, INC.",Money Counting,$45.22 ,10/11/2017
"ARAMARK UNIFORM SERVICES, INC.",Money Counting,$45.22 ,10/17/2017
"ARAMARK UNIFORM SERVICES, INC.",Money Counting,$45.22 ,10/25/2017
"ARAMARK UNIFORM SERVICES, INC.",Money Counting,$45.22 ,11/1/2017
"ARAMARK UNIFORM SERVICES, INC.",Money Counting,$45.22 ,11/8/2017
"ARAMARK UNIFORM SERVICES, INC.",Money Counting,$45.22 ,11/15/2017
"ARAMARK UNIFORM SERVICES, INC.",Money Counting,$45.22 ,11/22/2017
"ARAMARK UNIFORM SERVICES, INC.",Engineering,$164.64 ,11/24/2017
"ARAMARK UNIFORM SERVICES, INC.",Money Counting,$45.22 ,11/29/2017
"ARAMARK UNIFORM SERVICES, INC.",Money Counting,$45.22 ,12/13/2017
"ARAMARK UNIFORM SERVICES, INC.",Money Counting,$45.22 ,12/19/2017
"ARAMARK UNIFORM SERVICES, INC.",Money Counting,$45.22 ,12/27/2017
ARC IMAGING RESOURCES,Management,"$7,915.72 ",1/19/2017
ARC IMAGING RESOURCES,Management,$108.56 ,2/9/2017
ARC IMAGING RESOURCES,Management,$108 ,4/6/2017
ARC IMAGING RESOURCES,Management,"$7,915.72 ",4/25/2017
ARC IMAGING RESOURCES,Management,$90.50 ,6/29/2017
ARC IMAGING RESOURCES,Management,"$6,656.63 ",8/11/2017
ARC IMAGING RESOURCES,Management,$108.56 ,9/8/2017
ARC IMAGING RESOURCES,Management,$54.28 ,9/25/2017
ARC IMAGING RESOURCES,Management,"$1,259.09 ",10/23/2017
ARC IMAGING RESOURCES,Management,$72.44 ,11/30/2017
ARC IMAGING RESOURCES,Management,"$5,473.96 ",12/18/2017
"ARCADIS  U.S., INC.",Consulting Services,"$364,222.17 ",1/30/2017
"ARCADIS  U.S., INC.",Consulting Services,"$336,355.74 ",2/22/2017
"ARCADIS  U.S., INC.",Consulting Services,"$244,827.99 ",4/11/2017
"ARCADIS  U.S., INC.",Consulting Services,"$298,841.09 ",5/4/2017
"ARCADIS  U.S., INC.",Consulting Services,"$654,038.10 ",7/18/2017
"ARCADIS  U.S., INC.",Consulting Services,"$320,135.26 ",7/27/2017
"ARCADIS  U.S., INC.",Consulting Services,"$364,867.18 ",8/21/2017
"ARCADIS  U.S., INC.",Consulting Services,"$282,084.87 ",10/17/2017
"ARCADIS  U.S., INC.",Consulting Services,"$291,654.27 ",10/30/2017
"ARCADIS  U.S., INC.",Consulting Services,"$69,850.88 ",11/15/2017
"ARCADIS  U.S., INC.",Consulting Services,"$303,920.39 ",12/22/2017
"ARCCA, INCORPORATED",I&D Claims (Damage Reserve),"$5,186.25 ",12/12/2017
"ARCON WELDING, LLC",Maintenance of Track & Roadway-Electrical,$124.32 ,4/13/2017
"ARCON WELDING, LLC",Maintenance of Track & Roadway-Electrical,$756.57 ,7/27/2017
AREMA,Engineering,$174 ,3/15/2017
"ARKANSAS INDUSTRIAL COMPUTING, INCORPORATED",General Shop/Gar/Term Repairs & Svcs,"$20,960 ",3/1/2017
ARMA INTERNATIONAL,Quality Assurance,$225 ,5/26/2017
ARNOLD HOLLINGS,I&D Claims (Damage Reserve),$75 ,9/5/2017
ASHLEY HIRSCHMILLER,Real Estate,"$6,178.67 ",10/11/2017
"ASKREPLY, INC.",Software Maintenance Fees,"$95,860 ",12/1/2017
"ASKREPLY, INC. D/B/A B2GNOW",Consulting Services,"$71,876 ",1/13/2017
"ASKREPLY, INC. D/B/A B2GNOW",Software Maintenance Fees,"$30,804 ",1/13/2017
ASL COMMUNICATION SERVICES INC,Administrative Support,$150 ,2/22/2017
ASL COMMUNICATION SERVICES INC,Administrative Support,$125 ,6/2/2017
ASL COMMUNICATION SERVICES INC,Administrative Support,$243 ,8/15/2017
ASSOCIATION FOR TALENT DEVELOPMENT,Training - Students,"$1,047 ",9/14/2017
ASSOCIATION FOR TALENT DEVELOPMENT,Training - Students,$319 ,9/19/2017
ASSOCIATION OF CERTIFIED FRAUD,Dues & Memberships,$195 ,3/29/2017
ASSOCIATION OF GOVERNMENT ACCOUNTANTS,Audit,$107 ,4/20/2017
ASTM INTERNATIONAL,Professional / Technical,"$20,600 ",5/2/2017
AT & T CORP,Maintain/Repair Communications  Equip,"$978,294.56 ",7/13/2017
AT & T CORP,Maintain/Repair Communications  Equip,"$1,086,267.84 ",8/29/2017
AT & T CORP,Maintain/Repair Communications  Equip,"$16,269.51 ",11/28/2017
AT & T CORP,Maintain/Repair Communications  Equip,"$15,943.61 ",12/5/2017
AT & T CORP,Maintain/Repair Communications  Equip,"$46,296.25 ",12/8/2017
AT & T CORP,Maintain/Repair Communications  Equip,"$1,010.66 ",12/13/2017
AT & T CORP,Maintain/Repair Communications  Equip,"$239,244.45 ",12/13/2017
AT&T,Maintain/Repair Communications  Equip,$160.67 ,1/25/2017
AT&T,Computer Operations,"$573,219.90 ",3/7/2017
AT&T,Computer Operations,"$4,044.60 ",3/7/2017
AT&T,Equipment Purchases,"$204,256.20 ",4/5/2017
AT&T,Equipment Purchases,"$6,445.30 ",4/12/2017
AT&T,Equipment Purchases,"$87,678.18 ",7/7/2017
"AT&T MOBILITY NATIONAL ACCOUNTS, LLC",Computer Operations,"$107,303.38 ",7/13/2017
"AT&T MOBILITY NATIONAL ACCOUNTS, LLC",Computer Operations,"$185,935.79 ",7/20/2017
"AT&T MOBILITY NATIONAL ACCOUNTS, LLC",Computer Operations,"$2,527.90 ",8/29/2017
"AT&T MOBILITY NATIONAL ACCOUNTS, LLC",Computer Operations,"$297,976.83 ",8/29/2017
"AT&T MOBILITY NATIONAL ACCOUNTS, LLC",Computer Operations,"$1,011.16 ",12/5/2017
"AT&T MOBILITY NATIONAL ACCOUNTS, LLC",Computer Operations,"$288,867.59 ",12/5/2017
"AT&T MOBILITY NATIONAL ACCOUNTS, LLC",Computer Operations,$505.58 ,12/8/2017
"AT&T MOBILITY NATIONAL ACCOUNTS, LLC",Computer Operations,"$101,746.49 ",12/13/2017
"AT&T MOBILITY NATIONAL ACCOUNTS, LLC",Computer Operations,$505.58 ,12/21/2017
"ATHLETICO, LTD",I&D Claims (Damage Reserve),$200 ,5/2/2017
"ATHLETICO, LTD",I&D Claims (Damage Reserve),$800 ,9/26/2017
ATI PHYSICAL THERAPY,I&D Claims (Damage Reserve),$400 ,1/13/2017
"ATKINSON-BAKER, INC.",I&D Claims (Damage Reserve),$244.30 ,1/13/2017
"ATKINSON-BAKER, INC.",I&D Claims (Damage Reserve),$475.71 ,2/23/2017
"ATKINSON-BAKER, INC.",I&D Claims (Damage Reserve),$114 ,3/28/2017
"ATKINSON-BAKER, INC.",I&D Claims (Damage Reserve),$286.65 ,6/20/2017
"ATKINSON-BAKER, INC.",I&D Claims (Damage Reserve),$218.48 ,10/13/2017
"ATLAS COPCO COMPRESSORS, LLC",Repair Non-Revenue Equipment,"$9,965.30 ",12/6/2017
"ATLAS FIRST ACCESS MATERIAL HANDLING, INC.",Maintenance of Buildings,"$22,627.50 ",1/3/2017
"ATLAS FIRST ACCESS MATERIAL HANDLING, INC.",Maintenance of Buildings,"$3,104.06 ",1/4/2017
"ATLAS FIRST ACCESS MATERIAL HANDLING, INC.",Maintenance of Buildings,$248.38 ,1/4/2017
"ATLAS FIRST ACCESS MATERIAL HANDLING, INC.",Maintenance of Buildings,$508.27 ,1/6/2017
"ATLAS FIRST ACCESS MATERIAL HANDLING, INC.",Maintenance of Equipment,"$1,191.69 ",1/6/2017
"ATLAS FIRST ACCESS MATERIAL HANDLING, INC.",Maintenance of Buildings,$647.94 ,1/10/2017
"ATLAS FIRST ACCESS MATERIAL HANDLING, INC.",Maintenance of Buildings,$413.07 ,1/11/2017
"ATLAS FIRST ACCESS MATERIAL HANDLING, INC.",Maintenance of Equipment,"$1,176.25 ",1/11/2017
"ATLAS FIRST ACCESS MATERIAL HANDLING, INC.",Maintenance of Buildings,"$2,530.30 ",1/12/2017
"ATLAS FIRST ACCESS MATERIAL HANDLING, INC.",Maintenance of Buildings,"$1,754.90 ",1/13/2017
"ATLAS FIRST ACCESS MATERIAL HANDLING, INC.",Maintenance of Equipment,"$1,334.10 ",1/13/2017
"ATLAS FIRST ACCESS MATERIAL HANDLING, INC.",Maintenance of Buildings,$288.96 ,1/17/2017
"ATLAS FIRST ACCESS MATERIAL HANDLING, INC.",Maintenance of Buildings,"$14,484 ",1/18/2017
"ATLAS FIRST ACCESS MATERIAL HANDLING, INC.",Maintenance of Buildings,"$3,192.30 ",1/19/2017
"ATLAS FIRST ACCESS MATERIAL HANDLING, INC.",Maintenance of Buildings,$881.39 ,1/24/2017
"ATLAS FIRST ACCESS MATERIAL HANDLING, INC.",Equipment Purchases,"$30,364 ",1/25/2017
"ATLAS FIRST ACCESS MATERIAL HANDLING, INC.",Maintenance of Buildings,"$4,093.25 ",1/25/2017
"ATLAS FIRST ACCESS MATERIAL HANDLING, INC.",Maintenance of Buildings,"$15,678.16 ",1/26/2017
"ATLAS FIRST ACCESS MATERIAL HANDLING, INC.",Maintenance of Buildings,"$8,003.82 ",1/27/2017
"ATLAS FIRST ACCESS MATERIAL HANDLING, INC.",Maintenance of Equipment,"$7,385.10 ",1/27/2017
"ATLAS FIRST ACCESS MATERIAL HANDLING, INC.",Maintenance of Buildings,$330.14 ,2/7/2017
"ATLAS FIRST ACCESS MATERIAL HANDLING, INC.",Maintenance of Buildings,"$1,391.12 ",2/8/2017
"ATLAS FIRST ACCESS MATERIAL HANDLING, INC.",Maintenance of Buildings,$219.95 ,2/9/2017
"ATLAS FIRST ACCESS MATERIAL HANDLING, INC.",Maintenance of Equipment,"$1,172.89 ",2/9/2017
"ATLAS FIRST ACCESS MATERIAL HANDLING, INC.",Maintenance of Buildings,$224.42 ,2/14/2017
"ATLAS FIRST ACCESS MATERIAL HANDLING, INC.",Maintenance of Buildings,$803.20 ,2/15/2017
"ATLAS FIRST ACCESS MATERIAL HANDLING, INC.",Maintenance of Buildings,$925.32 ,2/16/2017
"ATLAS FIRST ACCESS MATERIAL HANDLING, INC.",Maintenance of Buildings,$954.45 ,2/17/2017
"ATLAS FIRST ACCESS MATERIAL HANDLING, INC.",Maintenance of Buildings,"$5,084.34 ",2/21/2017
"ATLAS FIRST ACCESS MATERIAL HANDLING, INC.",Maintenance of Buildings,"$21,350.42 ",2/22/2017
"ATLAS FIRST ACCESS MATERIAL HANDLING, INC.",Maintenance of Buildings,"$8,156.10 ",2/23/2017
"ATLAS FIRST ACCESS MATERIAL HANDLING, INC.",Maintenance of Buildings,"$2,102.68 ",2/24/2017
"ATLAS FIRST ACCESS MATERIAL HANDLING, INC.",Maintenance of Buildings,"$1,357.61 ",2/28/2017
"ATLAS FIRST ACCESS MATERIAL HANDLING, INC.",Maintenance of Buildings,"$18,420.70 ",3/1/2017
"ATLAS FIRST ACCESS MATERIAL HANDLING, INC.",Maintenance of Equipment,"$3,463.81 ",3/1/2017
"ATLAS FIRST ACCESS MATERIAL HANDLING, INC.",Maintenance of Buildings,$439.90 ,3/2/2017
"ATLAS FIRST ACCESS MATERIAL HANDLING, INC.",Maintenance of Equipment,$219.95 ,3/2/2017
"ATLAS FIRST ACCESS MATERIAL HANDLING, INC.",Maintenance of Buildings,$175.96 ,3/3/2017
"ATLAS FIRST ACCESS MATERIAL HANDLING, INC.",Maintenance of Buildings,"$1,005.10 ",3/9/2017
"ATLAS FIRST ACCESS MATERIAL HANDLING, INC.",Maintenance of Equipment,$182.17 ,3/9/2017
"ATLAS FIRST ACCESS MATERIAL HANDLING, INC.",Maintenance of Buildings,"$1,202.90 ",3/10/2017
"ATLAS FIRST ACCESS MATERIAL HANDLING, INC.",Maintenance of Buildings,"$3,983.61 ",3/14/2017
"ATLAS FIRST ACCESS MATERIAL HANDLING, INC.",Maintenance of Equipment,"$2,113.64 ",3/14/2017
"ATLAS FIRST ACCESS MATERIAL HANDLING, INC.",Maintenance of Buildings,"$7,488.59 ",3/16/2017
"ATLAS FIRST ACCESS MATERIAL HANDLING, INC.",Maintenance of Equipment,$175.96 ,3/16/2017
"ATLAS FIRST ACCESS MATERIAL HANDLING, INC.",Maintenance of Buildings,"$2,287.31 ",3/17/2017
"ATLAS FIRST ACCESS MATERIAL HANDLING, INC.",Maintenance of Equipment,$544.60 ,3/21/2017
"ATLAS FIRST ACCESS MATERIAL HANDLING, INC.",Maintenance of Buildings,"$5,321.88 ",3/22/2017
"ATLAS FIRST ACCESS MATERIAL HANDLING, INC.",Maintenance of Buildings,"$9,846.35 ",3/23/2017
"ATLAS FIRST ACCESS MATERIAL HANDLING, INC.",Maintenance of Buildings,"$2,943.67 ",3/24/2017
"ATLAS FIRST ACCESS MATERIAL HANDLING, INC.",Maintenance of Buildings,"$8,322.14 ",3/28/2017
"ATLAS FIRST ACCESS MATERIAL HANDLING, INC.",Maintenance of Buildings,"$5,311.37 ",3/29/2017
"ATLAS FIRST ACCESS MATERIAL HANDLING, INC.",Maintenance of Equipment,"$1,127.22 ",3/29/2017
"ATLAS FIRST ACCESS MATERIAL HANDLING, INC.",Maintenance of Buildings,"$16,718.35 ",3/30/2017
"ATLAS FIRST ACCESS MATERIAL HANDLING, INC.",Maintenance of Buildings,$293.21 ,4/4/2017
"ATLAS FIRST ACCESS MATERIAL HANDLING, INC.",Maintenance of Buildings,"$4,180.45 ",4/6/2017
"ATLAS FIRST ACCESS MATERIAL HANDLING, INC.",Maintenance of Buildings,$722.76 ,4/7/2017
"ATLAS FIRST ACCESS MATERIAL HANDLING, INC.",Maintenance of Buildings,$247.96 ,4/11/2017
"ATLAS FIRST ACCESS MATERIAL HANDLING, INC.",Maintenance of Buildings,"$2,521.42 ",4/13/2017
"ATLAS FIRST ACCESS MATERIAL HANDLING, INC.",Maintenance of Equipment,$510.47 ,4/13/2017
"ATLAS FIRST ACCESS MATERIAL HANDLING, INC.",Maintenance of Buildings,"$1,044.54 ",4/14/2017
"ATLAS FIRST ACCESS MATERIAL HANDLING, INC.",Maintenance of Equipment,$892.93 ,4/14/2017
"ATLAS FIRST ACCESS MATERIAL HANDLING, INC.",Maintenance of Buildings,$219.95 ,4/18/2017
"ATLAS FIRST ACCESS MATERIAL HANDLING, INC.",Maintenance of Buildings,$659.85 ,4/19/2017
"ATLAS FIRST ACCESS MATERIAL HANDLING, INC.",Maintenance of Buildings,"$1,549.19 ",4/20/2017
"ATLAS FIRST ACCESS MATERIAL HANDLING, INC.",Maintenance of Equipment,$718.17 ,4/20/2017
"ATLAS FIRST ACCESS MATERIAL HANDLING, INC.",Maintenance of Buildings,"$6,507.60 ",4/21/2017
"ATLAS FIRST ACCESS MATERIAL HANDLING, INC.",Maintenance of Equipment,"$1,200.90 ",4/21/2017
"ATLAS FIRST ACCESS MATERIAL HANDLING, INC.",Maintenance of Buildings,$228.89 ,4/24/2017
"ATLAS FIRST ACCESS MATERIAL HANDLING, INC.",Maintenance of Buildings,"$1,504.72 ",4/25/2017
"ATLAS FIRST ACCESS MATERIAL HANDLING, INC.",Maintenance of Buildings,"$3,235.51 ",4/26/2017
"ATLAS FIRST ACCESS MATERIAL HANDLING, INC.",Maintenance of Equipment,"$1,083.37 ",4/26/2017
"ATLAS FIRST ACCESS MATERIAL HANDLING, INC.",Maintenance of Buildings,"$13,918.87 ",4/27/2017
"ATLAS FIRST ACCESS MATERIAL HANDLING, INC.",Maintenance of Equipment,$896.46 ,4/27/2017
"ATLAS FIRST ACCESS MATERIAL HANDLING, INC.",Maintenance of Buildings,"$1,041.39 ",5/3/2017
"ATLAS FIRST ACCESS MATERIAL HANDLING, INC.",Maintenance of Buildings,"$3,481.57 ",5/4/2017
"ATLAS FIRST ACCESS MATERIAL HANDLING, INC.",Maintenance of Buildings,"$3,497.52 ",5/5/2017
"ATLAS FIRST ACCESS MATERIAL HANDLING, INC.",Maintenance of Buildings,$740.57 ,5/12/2017
"ATLAS FIRST ACCESS MATERIAL HANDLING, INC.",Maintenance of Buildings,"$13,377.87 ",5/16/2017
"ATLAS FIRST ACCESS MATERIAL HANDLING, INC.",Maintenance of Buildings,"$1,580.63 ",5/17/2017
"ATLAS FIRST ACCESS MATERIAL HANDLING, INC.",Maintenance of Buildings,"$3,686 ",5/19/2017
"ATLAS FIRST ACCESS MATERIAL HANDLING, INC.",Maintenance of Buildings,"$2,400.45 ",5/24/2017
"ATLAS FIRST ACCESS MATERIAL HANDLING, INC.",Maintenance of Buildings,"$6,444.87 ",5/25/2017
"ATLAS FIRST ACCESS MATERIAL HANDLING, INC.",Maintenance of Equipment,$91.06 ,5/25/2017
"ATLAS FIRST ACCESS MATERIAL HANDLING, INC.",Maintenance of Buildings,"$8,439.61 ",5/26/2017
"ATLAS FIRST ACCESS MATERIAL HANDLING, INC.",Maintenance of Equipment,$412.76 ,5/26/2017
"ATLAS FIRST ACCESS MATERIAL HANDLING, INC.",Maintenance of Buildings,"$2,220.93 ",5/31/2017
"ATLAS FIRST ACCESS MATERIAL HANDLING, INC.",Maintenance of Buildings,"$1,760.60 ",6/1/2017
"ATLAS FIRST ACCESS MATERIAL HANDLING, INC.",Maintenance of Equipment,"$2,069.37 ",6/1/2017
"ATLAS FIRST ACCESS MATERIAL HANDLING, INC.",Maintenance of Buildings,"$2,415.49 ",6/6/2017
"ATLAS FIRST ACCESS MATERIAL HANDLING, INC.",Maintenance of Buildings,"$1,077.35 ",6/7/2017
"ATLAS FIRST ACCESS MATERIAL HANDLING, INC.",Maintenance of Buildings,$856.40 ,6/9/2017
"ATLAS FIRST ACCESS MATERIAL HANDLING, INC.",Maintenance of Buildings,"$14,452.47 ",6/15/2017
"ATLAS FIRST ACCESS MATERIAL HANDLING, INC.",Maintenance of Buildings,"$1,301.56 ",6/19/2017
"ATLAS FIRST ACCESS MATERIAL HANDLING, INC.",Maintenance of Buildings,"$1,016.28 ",6/22/2017
"ATLAS FIRST ACCESS MATERIAL HANDLING, INC.",Maintenance of Buildings,$698.68 ,6/23/2017
"ATLAS FIRST ACCESS MATERIAL HANDLING, INC.",Maintenance of Buildings,$455.30 ,6/27/2017
"ATLAS FIRST ACCESS MATERIAL HANDLING, INC.",Maintenance of Buildings,"$3,736.73 ",6/28/2017
"ATLAS FIRST ACCESS MATERIAL HANDLING, INC.",Maintenance of Buildings,"$17,284.33 ",6/29/2017
"ATLAS FIRST ACCESS MATERIAL HANDLING, INC.",Maintenance of Buildings,$970.45 ,7/6/2017
"ATLAS FIRST ACCESS MATERIAL HANDLING, INC.",Maintenance of Buildings,$926.81 ,7/10/2017
"ATLAS FIRST ACCESS MATERIAL HANDLING, INC.",Maintenance of Buildings,"$1,727.49 ",7/18/2017
"ATLAS FIRST ACCESS MATERIAL HANDLING, INC.",Maintenance of Buildings,"$1,212.84 ",7/19/2017
"ATLAS FIRST ACCESS MATERIAL HANDLING, INC.",Maintenance of Buildings,"$21,374.07 ",7/20/2017
"ATLAS FIRST ACCESS MATERIAL HANDLING, INC.",Maintenance of Buildings,"$1,687.20 ",7/21/2017
"ATLAS FIRST ACCESS MATERIAL HANDLING, INC.",Maintenance of Buildings,"$1,673.81 ",7/25/2017
"ATLAS FIRST ACCESS MATERIAL HANDLING, INC.",Maintenance of Buildings,$87.18 ,7/26/2017
"ATLAS FIRST ACCESS MATERIAL HANDLING, INC.",Maintenance of Buildings,"$14,589.08 ",7/27/2017
"ATLAS FIRST ACCESS MATERIAL HANDLING, INC.",Maintenance of Buildings,$91.06 ,8/2/2017
"ATLAS FIRST ACCESS MATERIAL HANDLING, INC.",Maintenance of Buildings,$113.83 ,8/3/2017
"ATLAS FIRST ACCESS MATERIAL HANDLING, INC.",Maintenance of Buildings,$781.15 ,8/4/2017
"ATLAS FIRST ACCESS MATERIAL HANDLING, INC.",Maintenance of Buildings,"$1,429.61 ",8/8/2017
"ATLAS FIRST ACCESS MATERIAL HANDLING, INC.",Maintenance of Buildings,$646.63 ,8/9/2017
"ATLAS FIRST ACCESS MATERIAL HANDLING, INC.",Maintenance of Buildings,"$3,612.74 ",8/10/2017
"ATLAS FIRST ACCESS MATERIAL HANDLING, INC.",Maintenance of Buildings,"$3,833 ",8/11/2017
"ATLAS FIRST ACCESS MATERIAL HANDLING, INC.",Maintenance of Buildings,$949.71 ,8/15/2017
"ATLAS FIRST ACCESS MATERIAL HANDLING, INC.",Maintenance of Buildings,"$1,540.46 ",8/16/2017
"ATLAS FIRST ACCESS MATERIAL HANDLING, INC.",Maintenance of Buildings,"$1,324.48 ",8/17/2017
"ATLAS FIRST ACCESS MATERIAL HANDLING, INC.",Maintenance of Buildings,"$1,044.85 ",8/18/2017
"ATLAS FIRST ACCESS MATERIAL HANDLING, INC.",Maintenance of Buildings,"$1,805.28 ",8/22/2017
"ATLAS FIRST ACCESS MATERIAL HANDLING, INC.",Maintenance of Buildings,"$1,123.01 ",8/24/2017
"ATLAS FIRST ACCESS MATERIAL HANDLING, INC.",Maintenance of Buildings,"$13,346.21 ",8/29/2017
"ATLAS FIRST ACCESS MATERIAL HANDLING, INC.",Maintenance of Buildings,$591.89 ,8/31/2017
"ATLAS FIRST ACCESS MATERIAL HANDLING, INC.",Maintenance of Buildings,"$2,351.83 ",9/5/2017
"ATLAS FIRST ACCESS MATERIAL HANDLING, INC.",Maintenance of Buildings,"$3,163.83 ",9/7/2017
"ATLAS FIRST ACCESS MATERIAL HANDLING, INC.",Maintenance of Buildings,$182.12 ,9/8/2017
"ATLAS FIRST ACCESS MATERIAL HANDLING, INC.",Maintenance of Buildings,"$4,769.29 ",9/11/2017
"ATLAS FIRST ACCESS MATERIAL HANDLING, INC.",Maintenance of Buildings,"$7,439.22 ",9/14/2017
"ATLAS FIRST ACCESS MATERIAL HANDLING, INC.",Maintenance of Buildings,"$2,413.10 ",9/15/2017
"ATLAS FIRST ACCESS MATERIAL HANDLING, INC.",Maintenance of Buildings,"$3,536.69 ",9/19/2017
"ATLAS FIRST ACCESS MATERIAL HANDLING, INC.",Maintenance of Buildings,"$9,079.15 ",9/20/2017
"ATLAS FIRST ACCESS MATERIAL HANDLING, INC.",Maintenance of Buildings,$136.50 ,9/21/2017
"ATLAS FIRST ACCESS MATERIAL HANDLING, INC.",Maintenance of Buildings,$685.04 ,9/22/2017
"ATLAS FIRST ACCESS MATERIAL HANDLING, INC.",Maintenance of Buildings,"$1,883.86 ",9/26/2017
"ATLAS FIRST ACCESS MATERIAL HANDLING, INC.",Maintenance of Buildings,"$1,622.45 ",9/27/2017
"ATLAS FIRST ACCESS MATERIAL HANDLING, INC.",Maintenance of Buildings,"$23,252.30 ",9/28/2017
"ATLAS FIRST ACCESS MATERIAL HANDLING, INC.",Maintenance of Buildings,"$1,934.51 ",10/3/2017
"ATLAS FIRST ACCESS MATERIAL HANDLING, INC.",Maintenance of Buildings,"$5,004.42 ",10/4/2017
"ATLAS FIRST ACCESS MATERIAL HANDLING, INC.",Maintenance of Buildings,"$3,750.39 ",10/5/2017
"ATLAS FIRST ACCESS MATERIAL HANDLING, INC.",Maintenance of Buildings,"$1,713.43 ",10/11/2017
"ATLAS FIRST ACCESS MATERIAL HANDLING, INC.",Maintenance of Buildings,"$5,193.13 ",10/12/2017
"ATLAS FIRST ACCESS MATERIAL HANDLING, INC.",Maintenance of Buildings,$900.43 ,10/13/2017
"ATLAS FIRST ACCESS MATERIAL HANDLING, INC.",Maintenance of Buildings,$295.95 ,10/17/2017
"ATLAS FIRST ACCESS MATERIAL HANDLING, INC.",Maintenance of Buildings,"$3,705.79 ",10/17/2017
"ATLAS FIRST ACCESS MATERIAL HANDLING, INC.",Maintenance of Buildings,$299.07 ,10/19/2017
"ATLAS FIRST ACCESS MATERIAL HANDLING, INC.",Maintenance of Buildings,$113.83 ,10/20/2017
"ATLAS FIRST ACCESS MATERIAL HANDLING, INC.",Maintenance of Buildings,$478.07 ,10/24/2017
"ATLAS FIRST ACCESS MATERIAL HANDLING, INC.",Maintenance of Buildings,"$1,356.66 ",10/25/2017
"ATLAS FIRST ACCESS MATERIAL HANDLING, INC.",Maintenance of Buildings,"$9,374.17 ",10/26/2017
"ATLAS FIRST ACCESS MATERIAL HANDLING, INC.",Maintenance of Buildings,"$32,587.51 ",10/27/2017
"ATLAS FIRST ACCESS MATERIAL HANDLING, INC.",Maintenance of Buildings,"$3,390.27 ",11/2/2017
"ATLAS FIRST ACCESS MATERIAL HANDLING, INC.",Maintenance of Buildings,"$6,957.14 ",11/7/2017
"ATLAS FIRST ACCESS MATERIAL HANDLING, INC.",Maintenance of Buildings,"$1,122.42 ",11/8/2017
"ATLAS FIRST ACCESS MATERIAL HANDLING, INC.",Maintenance of Equipment,$227.65 ,11/8/2017
"ATLAS FIRST ACCESS MATERIAL HANDLING, INC.",Maintenance of Buildings,"$7,573.31 ",11/9/2017
"ATLAS FIRST ACCESS MATERIAL HANDLING, INC.",Maintenance of Buildings,"$2,235.40 ",11/13/2017
"ATLAS FIRST ACCESS MATERIAL HANDLING, INC.",Maintenance of Buildings,"$6,899.16 ",11/14/2017
"ATLAS FIRST ACCESS MATERIAL HANDLING, INC.",Maintenance of Buildings,$898.43 ,11/16/2017
"ATLAS FIRST ACCESS MATERIAL HANDLING, INC.",Maintenance of Buildings,"$8,198.36 ",11/17/2017
"ATLAS FIRST ACCESS MATERIAL HANDLING, INC.",Maintenance of Buildings,"$2,230.32 ",11/20/2017
"ATLAS FIRST ACCESS MATERIAL HANDLING, INC.",Maintenance of Buildings,$323.64 ,11/21/2017
"ATLAS FIRST ACCESS MATERIAL HANDLING, INC.",Maintenance of Buildings,"$2,099.29 ",11/22/2017
"ATLAS FIRST ACCESS MATERIAL HANDLING, INC.",Maintenance of Buildings,"$2,619.12 ",11/24/2017
"ATLAS FIRST ACCESS MATERIAL HANDLING, INC.",Maintenance of Buildings,"$11,204.41 ",11/28/2017
"ATLAS FIRST ACCESS MATERIAL HANDLING, INC.",Maintenance of Equipment,$136.59 ,11/28/2017
"ATLAS FIRST ACCESS MATERIAL HANDLING, INC.",Maintenance of Buildings,"$8,935.88 ",11/29/2017
"ATLAS FIRST ACCESS MATERIAL HANDLING, INC.",Maintenance of Equipment,$227.65 ,11/29/2017
"ATLAS FIRST ACCESS MATERIAL HANDLING, INC.",Maintenance of Buildings,"$2,180.81 ",11/30/2017
"ATLAS FIRST ACCESS MATERIAL HANDLING, INC.",Maintenance of Buildings,"$1,262.69 ",12/7/2017
"ATLAS FIRST ACCESS MATERIAL HANDLING, INC.",Maintenance of Buildings,$227.65 ,12/8/2017
"ATLAS FIRST ACCESS MATERIAL HANDLING, INC.",Maintenance of Buildings,$462.57 ,12/14/2017
"ATLAS FIRST ACCESS MATERIAL HANDLING, INC.",Maintenance of Buildings,"$1,531.12 ",12/18/2017
"ATLAS FIRST ACCESS MATERIAL HANDLING, INC.",Maintenance of Buildings,$682.95 ,12/26/2017
"ATLAS FIRST ACCESS MATERIAL HANDLING, INC.",Maintenance of Buildings,"$1,584.24 ",12/27/2017
"ATLAS FIRST ACCESS MATERIAL HANDLING, INC.",Maintenance of Buildings,"$12,122.80 ",12/28/2017
"ATLAS FIRST ACCESS MATERIAL HANDLING, INC.",Maintenance of Equipment,"$1,510.12 ",12/28/2017
"AUTOMATIC FIRE CONTROLS, INC.",Maintainance of Signal & Control Equipment,"$6,873 ",3/30/2017
"AUTOMATIC FIRE CONTROLS, INC.",Maintainance of Signal & Control Equipment,"$53,000 ",12/15/2017
"AVAYA, INCORPORATED",Maintain/Repair Communications  Equip,"$106,574.92 ",3/23/2017
"AVAYA, INCORPORATED",Maintain/Repair Communications  Equip,"$437,345.97 ",3/24/2017
"AVAYA, INCORPORATED",Maintain/Repair Communications  Equip,"$5,712.90 ",4/11/2017
"AVAYA, INCORPORATED",Maintain/Repair Communications  Equip,"$17,482.11 ",4/19/2017
"AVAYA, INCORPORATED",Maintain/Repair Communications  Equip,"$18,434 ",4/20/2017
"AVAYA, INCORPORATED",Maintain/Repair Communications  Equip,"$287,182.97 ",7/20/2017
"AVAYA, INCORPORATED",Maintain/Repair Communications  Equip,"$33,668.99 ",7/21/2017
"AVAYA, INCORPORATED",Maintain/Repair Communications  Equip,"$1,394.88 ",7/24/2017
"AVAYA, INCORPORATED",Maintain/Repair Communications  Equip,"$1,024,803.65 ",7/31/2017
"AVAYA, INCORPORATED",Maintain/Repair Communications  Equip,$200 ,8/9/2017
"AVAYA, INCORPORATED",Maintain/Repair Communications  Equip,"$77,422.88 ",9/25/2017
"AVAYA, INCORPORATED",Maintain/Repair Communications  Equip,$200 ,11/15/2017
"AVIS RENT A CAR SYSTEM, INC.",Travel & Seminar,$20.50 ,2/15/2017
AXION TECHNOLOGIES LTD.,Vehicle Rehab,"$125,096 ",1/11/2017
AXION TECHNOLOGIES LTD.,Vehicle Rehab,"$10,888 ",1/30/2017
AXION TECHNOLOGIES LTD.,Vehicle Rehab,"$125,096 ",2/6/2017
AXION TECHNOLOGIES LTD.,Vehicle Rehab,"$10,888 ",2/8/2017
AXION TECHNOLOGIES LTD.,Vehicle Rehab,"$146,872 ",4/26/2017
AXION TECHNOLOGIES LTD.,Vehicle Rehab,"$135,984 ",5/3/2017
AXION TECHNOLOGIES LTD.,Vehicle Rehab,"$135,984 ",5/17/2017
AXION TECHNOLOGIES LTD.,Vehicle Rehab,"$125,096 ",6/2/2017
AXION TECHNOLOGIES LTD.,Vehicle Rehab,"$10,888 ",6/16/2017
AXION TECHNOLOGIES LTD.,Vehicle Rehab,"$125,096 ",7/19/2017
AXION TECHNOLOGIES LTD.,Vehicle Rehab,"$125,096 ",8/9/2017
AXION TECHNOLOGIES LTD.,Vehicle Rehab,"$10,888 ",8/15/2017
AXION TECHNOLOGIES LTD.,Vehicle Rehab,"$10,888 ",9/29/2017
AXION TECHNOLOGIES LTD.,Vehicle Rehab,"$10,888 ",10/6/2017
AXION TECHNOLOGIES LTD.,Vehicle Rehab,"$10,888 ",10/13/2017
AXION TECHNOLOGIES LTD.,Vehicle Rehab,"$125,096 ",10/18/2017
AXION TECHNOLOGIES LTD.,Vehicle Rehab,"$78,185 ",11/8/2017
AXION TECHNOLOGIES LTD.,Vehicle Rehab,"$10,888 ",12/20/2017
BALJINDER BATHLA M.D,I&D Claims (Damage Reserve),$750 ,8/8/2017
BALJINDER BATHLA M.D,I&D Claims (Damage Reserve),"$1,400 ",10/20/2017
"BALL-NOGUES DESIGN STUDIO, LLC",Consulting Services,"$15,000 ",5/15/2017
"BALL-NOGUES DESIGN STUDIO, LLC",Consulting Services,"$30,000 ",10/17/2017
"BALL-NOGUES DESIGN STUDIO, LLC",Consulting Services,"$15,000 ",12/27/2017
BALMOND STUDIO,Consulting Services,"$18,360 ",5/17/2017
BALMOND STUDIO,Consulting Services,"$36,720 ",5/26/2017
BALMOND STUDIO,Consulting Services,"$27,540 ",10/20/2017
BALOUGH LAW OFFICES LLC,Administrative Support,"$9,432 ",4/18/2017
BALOUGH LAW OFFICES LLC,Administrative Support,"$5,616 ",5/9/2017
BALOUGH LAW OFFICES LLC,Administrative Support,"$11,388 ",7/6/2017
BALOUGH LAW OFFICES LLC,Administrative Support,"$4,068 ",9/1/2017
BALOUGH LAW OFFICES LLC,Administrative Support,"$11,988 ",11/28/2017
BANK OF AMERICA,Administrative Support,"$1,205.36 ",1/17/2017
BANK OF AMERICA,Administrative Support,"$1,094.20 ",1/17/2017
BANK OF AMERICA,Management,$683.40 ,1/17/2017
BANK OF AMERICA,Administrative Support,"$3,045.08 ",2/17/2017
BANK OF AMERICA,Administrative Support,$363.54 ,2/17/2017
BANK OF AMERICA,Administrative Support,"$1,288.19 ",3/21/2017
BANK OF AMERICA,Administrative Support,$821.40 ,3/21/2017
BANK OF AMERICA,Management,$351.40 ,3/21/2017
BANK OF AMERICA,Open Fare,$778.80 ,3/21/2017
BANK OF AMERICA,Scheduling,$333.40 ,3/21/2017
BANK OF AMERICA,Training - Students,$49 ,3/21/2017
BANK OF AMERICA,Travel & Seminar,$704.28 ,3/21/2017
BANK OF AMERICA,2016 World Series,$23 ,4/18/2017
BANK OF AMERICA,Administrative Support,"$4,536.50 ",4/18/2017
BANK OF AMERICA,Administrative Support,"$3,912.35 ",4/18/2017
BANK OF AMERICA,BUS/RAIL ROADEO,"$6,914.34 ",4/18/2017
BANK OF AMERICA,Drug & Alcohol Testing,$305.40 ,4/18/2017
BANK OF AMERICA,Employee Recognition,$611.85 ,4/18/2017
BANK OF AMERICA,Management,$408.88 ,4/18/2017
BANK OF AMERICA,Open Fare,$546.41 ,4/18/2017
BANK OF AMERICA,Training - Instructors,$474.60 ,4/18/2017
BANK OF AMERICA,Travel & Seminar,"$2,281.36 ",4/18/2017
BANK OF AMERICA,Administrative Support,"$2,719.54 ",5/19/2017
BANK OF AMERICA,Administrative Support,"$3,689.95 ",5/22/2017
BANK OF AMERICA,BUS/RAIL ROADEO,$515.40 ,5/22/2017
BANK OF AMERICA,Management,$401.40 ,5/22/2017
BANK OF AMERICA,Open Fare,$485.54 ,5/22/2017
BANK OF AMERICA,Travel & Seminar,$730.80 ,5/22/2017
BANK OF AMERICA,Administrative Support,"$1,776.95 ",6/19/2017
BANK OF AMERICA,Administrative Support,"$12,368.77 ",6/19/2017
BANK OF AMERICA,BUS/RAIL ROADEO,"$3,097.38 ",6/19/2017
BANK OF AMERICA,Engineering,"$1,597.24 ",6/19/2017
BANK OF AMERICA,Management,$939.16 ,6/19/2017
BANK OF AMERICA,Travel & Seminar,"$2,232.99 ",6/19/2017
BANK OF AMERICA,Administrative Support,"$1,040.22 ",7/18/2017
BANK OF AMERICA,Administrative Support,"$1,074 ",7/18/2017
BANK OF AMERICA,Budget & Analysis,$668.96 ,7/18/2017
BANK OF AMERICA,Engineering,$537.93 ,7/18/2017
BANK OF AMERICA,Management,$419.40 ,7/18/2017
BANK OF AMERICA,Management,$431.39 ,7/18/2017
BANK OF AMERICA,Open Fare,$336.40 ,7/18/2017
BANK OF AMERICA,Open Fare,$105.19 ,7/18/2017
BANK OF AMERICA,Travel & Seminar,"$2,192.68 ",7/18/2017
BANK OF AMERICA,Administrative Support,"$3,229.47 ",8/18/2017
BANK OF AMERICA,Administrative Support,"$1,203.61 ",8/18/2017
BANK OF AMERICA,I&D Claims (Damage Reserve),$119.18 ,8/18/2017
BANK OF AMERICA,Management,$643.70 ,8/18/2017
BANK OF AMERICA,Management,$239.40 ,8/18/2017
BANK OF AMERICA,Travel & Seminar,$911.90 ,8/18/2017
BANK OF AMERICA,Administrative Support,"$1,218.40 ",9/19/2017
BANK OF AMERICA,Administrative Support,"$1,474.85 ",9/19/2017
BANK OF AMERICA,BUS/RAIL ROADEO,$269.40 ,9/19/2017
BANK OF AMERICA,Drug & Alcohol Testing,$401.40 ,9/19/2017
BANK OF AMERICA,I&D Claims (Damage Reserve),$217.40 ,9/19/2017
BANK OF AMERICA,Management,$674.89 ,9/19/2017
BANK OF AMERICA,Strategic Planning,$220.40 ,9/19/2017
BANK OF AMERICA,Travel & Seminar,$130.98 ,9/19/2017
BANK OF AMERICA,Administrative Support,"$1,652.96 ",10/20/2017
BANK OF AMERICA,Administrative Support,"$1,102.67 ",10/20/2017
BANK OF AMERICA,Employee Recognition,$143.90 ,10/20/2017
BANK OF AMERICA,Management,$716.70 ,10/20/2017
BANK OF AMERICA,Recruiting / Hiring,$579 ,10/20/2017
BANK OF AMERICA,Travel & Seminar,"$11,012.78 ",10/20/2017
BANK OF AMERICA,Administrative Support,"$3,558.93 ",11/17/2017
BANK OF AMERICA,Administrative Support,"$4,917.59 ",11/17/2017
BANK OF AMERICA,Management,$331.39 ,11/17/2017
BANK OF AMERICA,Travel & Seminar,"$2,120.55 ",11/17/2017
BARCODES INC,Equipment Purchases,"$31,982.76 ",9/29/2017
BARCODES INC,Equipment Purchases,"$178,144.02 ",10/18/2017
BARKLEY COURT REPORTERS,I&D Claims (Damage Reserve),$338.45 ,10/3/2017
BEBON OFFICE MACHINES CO.,Administrative Support,"$1,495 ",2/15/2017
BEBON OFFICE MACHINES CO.,Maintenance of Equipment,$124 ,4/7/2017
BEBON OFFICE MACHINES CO.,Maintenance of Equipment,$74 ,7/20/2017
BENTLEY SYSTEMS INC,Management,"$4,042.32 ",5/17/2017
BETH BOROSH M.D,I&D Claims (Damage Reserve),"$1,500 ",11/7/2017
BETTER BLINDS,Maintenance of Buildings,$500 ,4/6/2017
BIAS CORPORATION,Applications Support,"$1,150.10 ",1/25/2017
BIAS CORPORATION,Applications Support,"$1,150.10 ",4/27/2017
BIAS CORPORATION,Applications Support,"$1,150.10 ",7/25/2017
BIAS CORPORATION,Applications Support,"$1,150.09 ",10/19/2017
"BIDDLE CONSULTING GROUP, INC.",Recruiting / Hiring,"$1,859 ",6/29/2017
"BIENALI PROMOTIONS, LLC",Couriers,$76.42 ,9/5/2017
"BIENALI PROMOTIONS, LLC",Marketing,"$3,316.50 ",9/5/2017
BLAIDA AND ASSOCIATES LLC,Administrative Support,"$18,000 ",5/17/2017
BLAIDA AND ASSOCIATES LLC,Administrative Support,"$6,000 ",5/23/2017
BLAIDA AND ASSOCIATES LLC,Administrative Support,"$12,000 ",7/14/2017
BLAIDA AND ASSOCIATES LLC,Administrative Support,"$6,000 ",8/22/2017
BLAIDA AND ASSOCIATES LLC,Management,"$12,000 ",10/24/2017
BLAIDA AND ASSOCIATES LLC,Management,"$6,000 ",10/30/2017
BLAIDA AND ASSOCIATES LLC,Management,"$12,000 ",12/28/2017
BLOOMBERG FINANCE L.P.,Administrative Support,"$6,720 ",1/30/2017
BLOOMBERG FINANCE L.P.,Administrative Support,"$6,720 ",4/27/2017
BLOOMBERG FINANCE L.P.,Administrative Support,"$6,720 ",8/23/2017
BLOOMBERG FINANCE L.P.,Administrative Support,"$6,730 ",10/27/2017
BLUE SODA PROMO,Training - Students,$562.37 ,9/6/2017
BLUE SODA PROMO,Training - Students,"$1,068.81 ",11/14/2017
BNSF RAILWAY COMPANY,"Facilities Operating Expenses (Rent,Utilities,etc)",$112.55 ,12/5/2017
"BOARD OF EDUCATION, CITY OF CHICAGO","Facilities Operating Expenses (Rent,Utilities,etc)",$125 ,2/10/2017
"BOARD OF EDUCATION, CITY OF CHICAGO","Facilities Operating Expenses (Rent,Utilities,etc)",$125 ,2/27/2017
"BOARD OF EDUCATION, CITY OF CHICAGO","Facilities Operating Expenses (Rent,Utilities,etc)",$125 ,3/23/2017
"BOARD OF EDUCATION, CITY OF CHICAGO","Facilities Operating Expenses (Rent,Utilities,etc)",$125 ,5/2/2017
"BOARD OF EDUCATION, CITY OF CHICAGO","Facilities Operating Expenses (Rent,Utilities,etc)",$125 ,5/26/2017
"BOARD OF EDUCATION, CITY OF CHICAGO","Facilities Operating Expenses (Rent,Utilities,etc)",$125 ,6/23/2017
"BOARD OF EDUCATION, CITY OF CHICAGO","Facilities Operating Expenses (Rent,Utilities,etc)",$125 ,7/28/2017
"BOARD OF EDUCATION, CITY OF CHICAGO","Facilities Operating Expenses (Rent,Utilities,etc)",$125 ,8/28/2017
"BOARD OF EDUCATION, CITY OF CHICAGO","Facilities Operating Expenses (Rent,Utilities,etc)",$125 ,10/23/2017
"BOARD OF EDUCATION, CITY OF CHICAGO","Facilities Operating Expenses (Rent,Utilities,etc)",$125 ,11/2/2017
"BOARD OF EDUCATION, CITY OF CHICAGO","Facilities Operating Expenses (Rent,Utilities,etc)",$125 ,11/24/2017
"BOARD OF EDUCATION, CITY OF CHICAGO","Facilities Operating Expenses (Rent,Utilities,etc)",$125 ,12/28/2017
BOARD OF TRUSTEES OF UNIV. OF ILL,I&D Claims (Damage Reserve),$750 ,7/25/2017
"BOB WILSON & ASSOCIATES, INC.",Consulting Services,"$9,440 ",10/4/2017
BOHDAN FEDIRKO M.D.,I&D Claims (Damage Reserve),$750 ,1/11/2017
BOLAT AFRICAN CUISINE,Real Estate,"$242,345 ",12/8/2017
BOLLINGER CONNOLLY KRAUSE LLC,Administrative Support,"$50,877.50 ",1/30/2017
BOLLINGER CONNOLLY KRAUSE LLC,Administrative Support,"$8,774.50 ",3/22/2017
BOLLINGER CONNOLLY KRAUSE LLC,Administrative Support,"$15,028 ",4/6/2017
BOLLINGER CONNOLLY KRAUSE LLC,Administrative Support,"$34,478.40 ",5/8/2017
BOLLINGER CONNOLLY KRAUSE LLC,Administrative Support,"$23,097.45 ",6/7/2017
BOLLINGER CONNOLLY KRAUSE LLC,Administrative Support,"$62,662.35 ",7/13/2017
BOLLINGER CONNOLLY KRAUSE LLC,Administrative Support,"$18,089 ",9/1/2017
BOLLINGER CONNOLLY KRAUSE LLC,Administrative Support,"$62,662.35 ",9/11/2017
BOLLINGER CONNOLLY KRAUSE LLC,Administrative Support,"$2,613.50 ",9/18/2017
BOLLINGER CONNOLLY KRAUSE LLC,Administrative Support,"$5,700.40 ",9/20/2017
BOLLINGER CONNOLLY KRAUSE LLC,Administrative Support,"$115,946.60 ",10/17/2017
BOLLINGER CONNOLLY KRAUSE LLC,Administrative Support,$964.45 ,11/28/2017
BOLLINGER CONNOLLY KRAUSE LLC,Administrative Support,"$10,530 ",12/28/2017
BOMBARDIER TRANSPORTATION,Equipment Purchases,"$3,000,000 ",3/30/2017
BOMBARDIER TRANSPORTATION,Equipment Purchases,"$3,423,000 ",12/20/2017
BONE AND JOINT CENTER PC,I&D Claims (Damage Reserve),$750 ,11/3/2017
BONNIE BEAN,I&D Claims (Damage Reserve),$75 ,5/2/2017
BOSTON PARK PLAZA HOTEL,Administrative Support,$331.91 ,2/24/2017
BOSTON PARK PLAZA HOTEL,Administrative Support,"$7,150.11 ",2/28/2017
BOTTOMLINE TECHNOLOGIES,Applications Support,"$5,991.48 ",9/7/2017
BRABAZON PUMPE COMPANY,Maintenance of Equipment,"$1,016.89 ",6/8/2017
"BRANCATO LANDSCAPING, INC.",Maintenance of Buildings,"$4,039 ",3/16/2017
"BRANCATO LANDSCAPING, INC.",Maintenance of Buildings,"$8,506.60 ",6/13/2017
"BRANCATO LANDSCAPING, INC.",Maintenance of Buildings,"$3,510.20 ",6/15/2017
"BRANCATO LANDSCAPING, INC.",Maintenance of Buildings,"$8,180 ",7/7/2017
"BRANCATO LANDSCAPING, INC.",Maintenance of Buildings,"$7,815 ",7/20/2017
"BRANCATO LANDSCAPING, INC.",Maintenance of Buildings,"$32,035 ",9/19/2017
"BRANCATO LANDSCAPING, INC.",Maintenance of Buildings,"$20,890 ",9/21/2017
"BRANCATO LANDSCAPING, INC.",Maintenance of Buildings,"$10,673 ",10/12/2017
"BRANCATO LANDSCAPING, INC.",Maintenance of Buildings,"$1,777 ",11/16/2017
"BRANCATO LANDSCAPING, INC.",Maintenance of Buildings,"$2,260 ",12/13/2017
"BRANCATO LANDSCAPING, INC.",Maintenance of Buildings,"$2,432 ",12/28/2017
"BRANDT & SONS MARKETING GROUP, INC.",Administrative Support,$599.40 ,7/14/2017
"BRANDT & SONS MARKETING GROUP, INC.",Administrative Support,$599.40 ,7/20/2017
BRANFORD ELECTRIC RAILWAY ASSOCIATION,Marketing,"$20,000 ",12/19/2017
BRE RIVER NORTH POINT OWNER,"Facilities Operating Expenses (Rent,Utilities,etc)","$57,467.64 ",1/31/2017
BRE RIVER NORTH POINT OWNER,"Facilities Operating Expenses (Rent,Utilities,etc)","$54,159.84 ",2/28/2017
BRE RIVER NORTH POINT OWNER,"Facilities Operating Expenses (Rent,Utilities,etc)","$54,159.84 ",3/28/2017
BRE RIVER NORTH POINT OWNER,"Facilities Operating Expenses (Rent,Utilities,etc)","$54,159.84 ",5/2/2017
BRE RIVER NORTH POINT OWNER,"Facilities Operating Expenses (Rent,Utilities,etc)","$54,159.84 ",5/26/2017
BRE RIVER NORTH POINT OWNER,"Facilities Operating Expenses (Rent,Utilities,etc)","$54,159.84 ",6/29/2017
BRE RIVER NORTH POINT OWNER,"Facilities Operating Expenses (Rent,Utilities,etc)","$54,889.84 ",8/22/2017
BRE RIVER NORTH POINT OWNER,"Facilities Operating Expenses (Rent,Utilities,etc)","$96,301.02 ",8/29/2017
BRE RIVER NORTH POINT OWNER,"Facilities Operating Expenses (Rent,Utilities,etc)","$51,084.23 ",10/19/2017
BRE RIVER NORTH POINT OWNER,"Facilities Operating Expenses (Rent,Utilities,etc)","$54,889.84 ",11/2/2017
BRE RIVER NORTH POINT OWNER,"Facilities Operating Expenses (Rent,Utilities,etc)","$54,889.84 ",11/24/2017
BRENDA QUINN,Reimb for lost tools/badges,$20 ,5/16/2017
BRIAN LAVERY MD,I&D Claims (Damage Reserve),$900 ,6/8/2017
BRIDGES COURT REPORTING,Administrative Support,"$1,054 ",7/25/2017
BRIDGES COURT REPORTING,I&D Claims (Damage Reserve),$347.65 ,12/14/2017
"BROCK INDUSTRIAL SERVICES, LLC",Maintenance of Buildings,"$25,960.60 ",2/21/2017
"BROCK INDUSTRIAL SERVICES, LLC",Maintenance of Buildings,"$9,421.80 ",3/10/2017
"BROCK INDUSTRIAL SERVICES, LLC",Maintenance of Buildings,$900 ,5/1/2017
"BUCHANAN REPORTING, INC",I&D Claims (Damage Reserve),$315 ,3/22/2017
"BUCHANAN REPORTING, INC",I&D Claims (Damage Reserve),$90 ,5/30/2017
"BUCHANAN REPORTING, INC",I&D Claims (Damage Reserve),$91 ,7/25/2017
"BUCHANAN REPORTING, INC",I&D Claims (Damage Reserve),$94.25 ,9/22/2017
"BUCHANAN REPORTING, INC",I&D Claims (Damage Reserve),$462 ,9/22/2017
"BUCHANAN REPORTING, INC",I&D Claims (Damage Reserve),$171.50 ,10/13/2017
"BUCHANAN REPORTING, INC",I&D Claims (Damage Reserve),$142.60 ,10/17/2017
"BUCHANAN REPORTING, INC",I&D Claims (Damage Reserve),$159.10 ,12/14/2017
"BUCHANAN REPORTING, INC",I&D Claims (Damage Reserve),$154 ,12/14/2017
BUILDERS CHICAGO CORPORATION,Maintenance of Buildings,"$25,469.03 ",1/6/2017
BUILDERS CHICAGO CORPORATION,Maintenance of Buildings,"$2,066.39 ",1/10/2017
BUILDERS CHICAGO CORPORATION,Maintenance of Buildings,"$5,141.94 ",1/19/2017
BUILDERS CHICAGO CORPORATION,Maintenance of Buildings,"$10,331.44 ",1/26/2017
BUILDERS CHICAGO CORPORATION,Maintenance of Buildings,$610.75 ,2/22/2017
BUILDERS CHICAGO CORPORATION,Maintenance of Buildings,"$15,370.39 ",2/23/2017
BUILDERS CHICAGO CORPORATION,Maintenance of Buildings,"$28,961.88 ",3/16/2017
BUILDERS CHICAGO CORPORATION,Maintenance of Buildings,"$4,141.94 ",3/21/2017
BUILDERS CHICAGO CORPORATION,Maintenance of Buildings,$296 ,3/23/2017
BUILDERS CHICAGO CORPORATION,Maintenance of Buildings,"$1,863.50 ",4/13/2017
BUILDERS CHICAGO CORPORATION,Maintenance of Buildings,"$6,411.50 ",5/18/2017
BUILDERS CHICAGO CORPORATION,Maintenance of Buildings,"$4,024.75 ",5/25/2017
BUILDERS CHICAGO CORPORATION,Maintenance of Buildings,"$8,955.88 ",5/26/2017
BUILDERS CHICAGO CORPORATION,Maintenance of Buildings,"$24,196 ",6/29/2017
BUILDERS CHICAGO CORPORATION,Maintenance of Buildings,"$4,198.44 ",7/27/2017
BUILDERS CHICAGO CORPORATION,Maintenance of Buildings,"$3,948.50 ",8/2/2017
BUILDERS CHICAGO CORPORATION,Maintenance of Buildings,"$5,414.50 ",8/11/2017
BUILDERS CHICAGO CORPORATION,Maintenance of Buildings,$296 ,8/24/2017
BUILDERS CHICAGO CORPORATION,Maintenance of Buildings,$366 ,8/25/2017
BUILDERS CHICAGO CORPORATION,Maintenance of Buildings,"$5,431.94 ",8/29/2017
BUILDERS CHICAGO CORPORATION,Maintenance of Buildings,"$22,746.38 ",10/3/2017
BUILDERS CHICAGO CORPORATION,Maintenance of Buildings,"$4,385.94 ",10/12/2017
BUILDERS CHICAGO CORPORATION,Maintenance of Buildings,"$20,949.25 ",10/17/2017
BUILDERS CHICAGO CORPORATION,Maintenance of Buildings,$148 ,10/26/2017
BUILDERS CHICAGO CORPORATION,Maintenance of Buildings,"$31,728.19 ",10/27/2017
BUILDERS CHICAGO CORPORATION,Maintenance of Buildings,"$2,988.93 ",11/9/2017
BUILDERS CHICAGO CORPORATION,Maintenance of Buildings,"$9,911.94 ",11/30/2017
"BUREAU OF NATIONAL AFFAIRS, INC., THE",Administrative Support,"$11,550 ",3/7/2017
"BURKE, WARREN, MACKAY &",Administrative Support,$78 ,1/31/2017
C'est Si Bon,Administrative Support,$195 ,7/25/2017
C'est Si Bon,Administrative Support,$195 ,7/25/2017
"C2, LLC",Cash Management,"$4,140 ",1/31/2017
CAIRS,Administrative Support,$325 ,2/16/2017
CAIRS,Administrative Support,$168 ,11/17/2017
CAIRS,Administrative Support,$587.50 ,11/21/2017
CALERO SOFTWARE,Maintain/Repair Communications  Equip,"$3,753 ",4/12/2017
CALIBER PACKAGING LLC,Maintenance of Equipment,"$1,309.71 ",2/16/2017
CALIBER PACKAGING LLC,Maintenance of Equipment,"$1,618.59 ",2/23/2017
CALIBER PACKAGING LLC,Maintenance of Equipment,$517.50 ,3/3/2017
CALIBER PACKAGING LLC,Maintenance of Equipment,$345 ,5/2/2017
CALIBER PACKAGING LLC,Maintenance of Equipment,$460 ,9/26/2017
"CALIBRATION SOLUTION, THE",Management,$929.52 ,10/18/2017
"CALUMET ARMATURE AND ELECTRIC, LLC",Vehicle Rehab,"$524,027.16 ",1/25/2017
"CALUMET ARMATURE AND ELECTRIC, LLC",Vehicle Rehab,"$174,675.72 ",1/30/2017
"CALUMET ARMATURE AND ELECTRIC, LLC",Vehicle Rehab,"$174,675.72 ",2/15/2017
"CALUMET ARMATURE AND ELECTRIC, LLC",Vehicle Rehab,"$174,675.72 ",2/27/2017
"CALUMET ARMATURE AND ELECTRIC, LLC",Vehicle Rehab,"$174,675.72 ",3/16/2017
"CALUMET ARMATURE AND ELECTRIC, LLC",Vehicle Rehab,"$174,675.72 ",3/29/2017
"CALUMET ARMATURE AND ELECTRIC, LLC",Vehicle Rehab,"$174,675.72 ",4/11/2017
"CALUMET ARMATURE AND ELECTRIC, LLC",Vehicle Rehab,"$174,675.72 ",5/1/2017
"CALUMET ARMATURE AND ELECTRIC, LLC",Vehicle Rehab,"$174,675.72 ",5/15/2017
"CALUMET ARMATURE AND ELECTRIC, LLC",Vehicle Rehab,"$174,675.72 ",5/24/2017
"CALUMET ARMATURE AND ELECTRIC, LLC",Vehicle Rehab,"$349,351.44 ",7/11/2017
"CALUMET ARMATURE AND ELECTRIC, LLC",Vehicle Rehab,"$174,675.72 ",7/17/2017
"CALUMET ARMATURE AND ELECTRIC, LLC",Vehicle Rehab,"$174,675.72 ",7/31/2017
"CALUMET ARMATURE AND ELECTRIC, LLC",Vehicle Rehab,"$174,675.72 ",8/14/2017
"CALUMET ARMATURE AND ELECTRIC, LLC",Vehicle Rehab,"$174,675.72 ",9/13/2017
"CALUMET ARMATURE AND ELECTRIC, LLC",Vehicle Rehab,"$174,675.72 ",9/27/2017
"CALUMET ARMATURE AND ELECTRIC, LLC",Vehicle Rehab,"$174,675.72 ",10/11/2017
"CALUMET ARMATURE AND ELECTRIC, LLC",Vehicle Rehab,"$174,675.72 ",10/24/2017
"CALUMET ARMATURE AND ELECTRIC, LLC",Vehicle Rehab,"$174,675.72 ",11/6/2017
"CALUMET ARMATURE AND ELECTRIC, LLC",Vehicle Rehab,"$174,675.72 ",11/13/2017
"CALUMET ARMATURE AND ELECTRIC, LLC",Vehicle Rehab,"$174,675.72 ",11/27/2017
"CALUMET ARMATURE AND ELECTRIC, LLC",Vehicle Rehab,"$174,675.72 ",12/13/2017
"CAMBRIDGE SYSTEMATICS, INC.",Surveys / Studies,"$57,850 ",5/17/2017
"CAMBRIDGE SYSTEMATICS, INC.",Surveys / Studies,"$9,240 ",10/5/2017
"CANON BUSINESS SOLUTIONS, INC.",Administrative Support,"$7,755.42 ",7/27/2017
"CANON BUSINESS SOLUTIONS, INC.",Administrative Support,"$8,235.05 ",8/10/2017
"CANON BUSINESS SOLUTIONS, INC.",Administrative Support,"$9,112.47 ",9/8/2017
"CANON BUSINESS SOLUTIONS, INC.",Administrative Support,"$7,600.74 ",9/19/2017
"CANON BUSINESS SOLUTIONS, INC.",Administrative Support,"$9,047.31 ",10/10/2017
"CANON BUSINESS SOLUTIONS, INC.",Administrative Support,"$9,605.34 ",11/9/2017
"CANON BUSINESS SOLUTIONS, INC.",Administrative Support,"$9,154.59 ",12/8/2017
"CAPRICORN COMMUNICATIONS, LLC",Administrative Support,"$6,000 ",2/1/2017
"CAPRICORN COMMUNICATIONS, LLC",Administrative Support,"$6,000 ",3/14/2017
"CAPRICORN COMMUNICATIONS, LLC",Administrative Support,"$6,000 ",3/30/2017
"CAPRICORN COMMUNICATIONS, LLC",Administrative Support,"$6,000 ",5/9/2017
"CAPRICORN COMMUNICATIONS, LLC",Administrative Support,"$6,000 ",5/30/2017
"CAPRICORN COMMUNICATIONS, LLC",Administrative Support,"$6,000 ",7/14/2017
"CAPRICORN COMMUNICATIONS, LLC",Administrative Support,"$6,000 ",8/22/2017
"CAPRICORN COMMUNICATIONS, LLC",Administrative Support,"$6,000 ",8/31/2017
"CAPRICORN COMMUNICATIONS, LLC",Management,"$6,000 ",10/24/2017
"CAPRICORN COMMUNICATIONS, LLC",Management,"$6,000 ",10/31/2017
"CAPRICORN COMMUNICATIONS, LLC",Management,"$6,000 ",12/11/2017
"CAPUS AUTOMATION SERVICES, INC.",Maintenance of Equipment,$707.75 ,12/11/2017
"CARD IMAGING, INC.",Vehicle Testing,"$1,010 ",4/28/2017
"CARD IMAGING, INC.",Training - Students,$105 ,5/1/2017
"CARD IMAGING, INC.",Administrative Support,$739 ,5/25/2017
"CARD IMAGING, INC.",Training - Students,"$2,528 ",7/10/2017
"CARD IMAGING, INC.",Training - Students,$278 ,7/13/2017
"CARD IMAGING, INC.",Administrative Support,$316 ,10/12/2017
"CARD IMAGING, INC.",Training - Students,$216.80 ,11/7/2017
CARDISS COLLINS POSTAL STORE,I&D Claims (Damage Reserve),$625 ,8/4/2017
"CAREERBUILDER GOVERNMENT SOLUTIONS, LLC",Professional / Technical,"$3,135 ",2/16/2017
"CAREERBUILDER GOVERNMENT SOLUTIONS, LLC",Recruiting / Hiring,"$12,000 ",4/26/2017
CARLOS Da FONSECA MD,I&D Claims (Damage Reserve),$500 ,3/14/2017
CAROLYN BRUNT,Real Estate,$533 ,4/14/2017
CAROLYN McIRVIN M.D.,I&D Claims (Damage Reserve),$500 ,4/14/2017
CARY MORGEN,Administrative Support,$600 ,1/17/2017
CARY MORGEN,Administrative Support,$600 ,2/9/2017
CARY MORGEN,Administrative Support,$600 ,4/4/2017
CARY MORGEN,Administrative Support,$675 ,10/10/2017
CASEY  LOOP,Legal Defense (Non-Damage Reserve),"$50,000 ",9/14/2017
CDM SMITH INC.,Consulting Services,"$94,749.19 ",1/18/2017
CDM SMITH INC.,Consulting Services,"$25,806.76 ",5/4/2017
CDM SMITH INC.,Consulting Services,"$92,909.54 ",8/9/2017
CDM SMITH INC.,Consulting Services,"$24,211.60 ",11/22/2017
CDW GOVERNMENT LLC,Applications Support,$362.18 ,5/8/2017
CDW GOVERNMENT LLC,Applications Support,$70.90 ,5/10/2017
CDW GOVERNMENT LLC,Applications Support,$4.16 ,5/11/2017
CDW GOVERNMENT LLC,Administrative Support,$140.16 ,5/15/2017
CDW GOVERNMENT LLC,Administrative Support,$458.73 ,5/16/2017
CDW GOVERNMENT LLC,Applications Support,"$123,444.76 ",5/16/2017
CDW GOVERNMENT LLC,Administrative Support,$17.06 ,6/1/2017
CDW GOVERNMENT LLC,Administrative Support,"$1,206.35 ",6/12/2017
CDW GOVERNMENT LLC,Administrative Support,"$1,686.97 ",6/15/2017
CDW GOVERNMENT LLC,Applications Support,$353.05 ,6/19/2017
CDW GOVERNMENT LLC,Applications Support,"$685,752.84 ",6/21/2017
CDW GOVERNMENT LLC,Administrative Support,"$1,548.95 ",6/23/2017
CDW GOVERNMENT LLC,Administrative Support,$439.17 ,6/27/2017
CDW GOVERNMENT LLC,Administrative Support,"$1,031.52 ",6/28/2017
CDW GOVERNMENT LLC,General Shop/Gar/Term Repairs & Svcs,$357.56 ,6/28/2017
CDW GOVERNMENT LLC,Management,$262.73 ,6/28/2017
CDW GOVERNMENT LLC,General Shop/Gar/Term Repairs & Svcs,$258.23 ,6/29/2017
CDW GOVERNMENT LLC,Administrative Support,$66.84 ,7/11/2017
CDW GOVERNMENT LLC,Administrative Support,$535.62 ,7/13/2017
CDW GOVERNMENT LLC,Applications Support,"$6,676 ",8/10/2017
CDW GOVERNMENT LLC,Administrative Support,$124.90 ,8/24/2017
CDW GOVERNMENT LLC,Management,$424.61 ,8/24/2017
CDW GOVERNMENT LLC,Professional / Technical,$398.99 ,8/24/2017
CDW GOVERNMENT LLC,Management,$24.71 ,8/28/2017
CDW GOVERNMENT LLC,Administrative Support,"$1,070.98 ",9/7/2017
CDW GOVERNMENT LLC,Management,"$1,323.73 ",9/8/2017
CDW GOVERNMENT LLC,Administrative Support,$509.12 ,9/25/2017
CDW GOVERNMENT LLC,Administrative Support,"$2,467.25 ",9/28/2017
CDW GOVERNMENT LLC,Management,$493.45 ,9/28/2017
CDW GOVERNMENT LLC,Service Planning,$986.90 ,9/28/2017
CDW GOVERNMENT LLC,Administrative Support,$29.61 ,10/17/2017
CDW GOVERNMENT LLC,Service Planning,"$1,480.35 ",10/17/2017
CDW GOVERNMENT LLC,Administrative Support,$322.91 ,10/18/2017
CDW GOVERNMENT LLC,Administrative Support,$625.45 ,11/1/2017
CDW GOVERNMENT LLC,Computer Operations,$118.28 ,11/1/2017
CDW GOVERNMENT LLC,Compensation,$550.09 ,11/15/2017
CDW GOVERNMENT LLC,Administrative Support,$715.31 ,11/22/2017
CDW GOVERNMENT LLC,Software Maintenance Fees,$373.20 ,12/15/2017
CDW GOVERNMENT LLC,Administrative Support,"$1,795.20 ",12/21/2017
CDW GOVERNMENT LLC,Professional / Technical,"$1,440 ",12/28/2017
"CDW GOVERNMENT, INCORPORATED",Administrative Support,$547.94 ,1/12/2017
"CDW GOVERNMENT, INCORPORATED",Applications Support,$431.40 ,1/12/2017
"CDW GOVERNMENT, INCORPORATED",Administrative Support,$370.93 ,1/13/2017
"CDW GOVERNMENT, INCORPORATED",Applications Support,"$1,385.80 ",2/27/2017
"CDW GOVERNMENT, INCORPORATED",Applications Support,"$48,675 ",3/22/2017
"CDW GOVERNMENT, INCORPORATED",Administrative Support,"$8,137.70 ",3/29/2017
"CDW GOVERNMENT, INCORPORATED",Administrative Support,$193.58 ,4/6/2017
"CDW GOVERNMENT, INCORPORATED",Administrative Support,$672.93 ,4/7/2017
"CDW GOVERNMENT, INCORPORATED",Computer Systems Support (Non-IT Dept Areas),$429.46 ,4/7/2017
"CDW GOVERNMENT, INCORPORATED",Management,$286.87 ,4/7/2017
"CDW GOVERNMENT, INCORPORATED",Administrative Support,"$4,798.26 ",4/10/2017
"CDW GOVERNMENT, INCORPORATED",Applications Support,"$8,875.32 ",4/10/2017
"CDW GOVERNMENT, INCORPORATED",Computer Operations,$904.26 ,4/10/2017
"CDW GOVERNMENT, INCORPORATED",Computer Systems Support (Non-IT Dept Areas),$429.46 ,4/10/2017
"CDW GOVERNMENT, INCORPORATED",Maintain/Repair Communications  Equip,$306.80 ,4/10/2017
"CECIL MCDONALD, JR",Consulting Services,"$7,070.29 ",5/23/2017
CED SOLUTIONS LLC,Administrative Support,"$3,995 ",1/6/2017
CED SOLUTIONS LLC,Administrative Support,"$7,990 ",1/24/2017
CELESTINO RUIZ,Legal Defense (Non-Damage Reserve),"$3,000 ",5/2/2017
CENTER OF BRAIN & SPINE SURGERY,I&D Claims (Damage Reserve),"$4,200 ",1/13/2017
CENTER OF BRAIN & SPINE SURGERY,I&D Claims (Damage Reserve),$150 ,4/18/2017
CENTER OF BRAIN & SPINE SURGERY,I&D Claims (Damage Reserve),$900 ,4/26/2017
"CENTERPOINT ENERGY SERVICES, INC.","Facilities Operating Expenses (Rent,Utilities,etc)","$194,337.20 ",2/2/2017
"CENTERPOINT ENERGY SERVICES, INC.","Facilities Operating Expenses (Rent,Utilities,etc)","$394,878.71 ",2/24/2017
"CENTERPOINT ENERGY SERVICES, INC.","Facilities Operating Expenses (Rent,Utilities,etc)","$419,571.39 ",3/29/2017
"CENTERPOINT ENERGY SERVICES, INC.","Facilities Operating Expenses (Rent,Utilities,etc)","$276,619.87 ",4/26/2017
"CENTERPOINT ENERGY SERVICES, INC.","Facilities Operating Expenses (Rent,Utilities,etc)","$272,166.34 ",5/24/2017
"CENTERPOINT ENERGY SERVICES, INC.","Facilities Operating Expenses (Rent,Utilities,etc)","$130,156.02 ",6/30/2017
"CENTRAL REPORTERS ASSOC., LTD.",I&D Claims (Damage Reserve),$195 ,3/22/2017
"CENTRAL REPORTERS ASSOC., LTD.",I&D Claims (Damage Reserve),$285 ,3/28/2017
CF II 2700 ROOSEVELT LLC.,Leases & Rentals,"$19,119.81 ",1/13/2017
CF II 2700 ROOSEVELT LLC.,Leases & Rentals,"$1,163 ",1/30/2017
CF II 2700 ROOSEVELT LLC.,Leases & Rentals,"$20,136.81 ",2/8/2017
CF II 2700 ROOSEVELT LLC.,Leases & Rentals,$667.32 ,2/17/2017
CF II 2700 ROOSEVELT LLC.,Leases & Rentals,"$19,648.88 ",3/6/2017
CF II 2700 ROOSEVELT LLC.,Leases & Rentals,"$19,662.57 ",3/29/2017
CF II 2700 ROOSEVELT LLC.,Leases & Rentals,"$8,348.31 ",5/31/2017
CHADWICK & LAKERDAS,I&D Claims (Damage Reserve),$300 ,7/25/2017
CHARLES EQUIPMENT ENERGY SYSTEMS LLC,Maintenance of Buildings,"$3,468.99 ",1/26/2017
CHARLES FLIPPEN M.D.,I&D Claims (Damage Reserve),"$1,500 ",1/20/2017
CHARLES W MERCIER M.D.,I&D Claims (Damage Reserve),$750 ,10/10/2017
CHARLES W MERCIER M.D.,I&D Claims (Damage Reserve),$375 ,10/10/2017
CHARLES W MERCIER M.D.,I&D Claims (Damage Reserve),$375 ,10/11/2017
CHARLOTTE SHUM M.D.,I&D Claims (Damage Reserve),"$1,000 ",12/1/2017
CHARLOTTE SHUM M.D.,I&D Claims (Damage Reserve),$250 ,12/1/2017
CHEROKEE PORCELAIN ENAMEL CORP.,Equipment Purchases,"$4,822 ",2/28/2017
CHEROKEE PORCELAIN ENAMEL CORP.,Administrative Support,"$4,977.50 ",12/19/2017
CHICAGO DEFENDER PUBLISHING CO.,Administrative Support,$739.20 ,7/18/2017
"CHICAGO JACK SERVICE, INC.",Maintenance of Equipment,"$2,180 ",3/2/2017
"CHICAGO JACK SERVICE, INC.",Maintenance of Equipment,"$1,824 ",4/6/2017
"CHICAGO JACK SERVICE, INC.",Rebuild Chassis Units,"$1,340 ",8/1/2017
"CHICAGO JACK SERVICE, INC.",Maintenance of Equipment,"$1,101.60 ",8/24/2017
"CHICAGO JACK SERVICE, INC.",Maintenance of Equipment,"$2,260 ",9/14/2017
"CHICAGO JACK SERVICE, INC.",Maintenance of Equipment,"$1,760 ",12/12/2017
CHICAGO METRO CONSTRUCTION D/B/A ARLINGTON GLASS & MIRROR CO.,Maintenance of Buildings,"$5,298.82 ",1/10/2017
CHICAGO METRO CONSTRUCTION D/B/A ARLINGTON GLASS & MIRROR CO.,Maintenance of Buildings,"$12,980.99 ",2/2/2017
CHICAGO METRO CONSTRUCTION D/B/A ARLINGTON GLASS & MIRROR CO.,Maintenance of Buildings,"$19,737.12 ",2/16/2017
CHICAGO METRO CONSTRUCTION D/B/A ARLINGTON GLASS & MIRROR CO.,Contract Construction,"$34,673.10 ",2/24/2017
CHICAGO METRO CONSTRUCTION D/B/A ARLINGTON GLASS & MIRROR CO.,Maintenance of Buildings,"$5,118.30 ",4/13/2017
CHICAGO METRO CONSTRUCTION D/B/A ARLINGTON GLASS & MIRROR CO.,Maintenance of Buildings,$756.23 ,5/2/2017
CHICAGO METRO CONSTRUCTION D/B/A ARLINGTON GLASS & MIRROR CO.,Maintenance of Buildings,"$1,565.55 ",5/4/2017
CHICAGO METRO CONSTRUCTION D/B/A ARLINGTON GLASS & MIRROR CO.,Maintenance of Buildings,"$3,597.11 ",5/9/2017
CHICAGO METRO CONSTRUCTION D/B/A ARLINGTON GLASS & MIRROR CO.,Maintenance of Buildings,"$6,643.97 ",5/10/2017
CHICAGO METRO CONSTRUCTION D/B/A ARLINGTON GLASS & MIRROR CO.,Maintenance of Buildings,"$8,416.96 ",5/11/2017
CHICAGO METRO CONSTRUCTION D/B/A ARLINGTON GLASS & MIRROR CO.,Maintenance of Buildings,"$8,307.52 ",5/17/2017
CHICAGO METRO CONSTRUCTION D/B/A ARLINGTON GLASS & MIRROR CO.,Maintenance of Buildings,"$31,287.89 ",5/23/2017
CHICAGO METRO CONSTRUCTION D/B/A ARLINGTON GLASS & MIRROR CO.,Maintenance of Buildings,"$1,892.76 ",5/30/2017
CHICAGO METRO CONSTRUCTION D/B/A ARLINGTON GLASS & MIRROR CO.,Maintenance of Buildings,"$2,034.93 ",6/1/2017
CHICAGO METRO CONSTRUCTION D/B/A ARLINGTON GLASS & MIRROR CO.,Maintenance of Buildings,$681.72 ,6/6/2017
CHICAGO METRO CONSTRUCTION D/B/A ARLINGTON GLASS & MIRROR CO.,Maintenance of Buildings,"$5,337.56 ",6/13/2017
CHICAGO METRO CONSTRUCTION D/B/A ARLINGTON GLASS & MIRROR CO.,Maintenance of Buildings,"$5,531.42 ",6/22/2017
CHICAGO METRO CONSTRUCTION D/B/A ARLINGTON GLASS & MIRROR CO.,Maintenance of Buildings,"$3,126.52 ",6/27/2017
CHICAGO METRO CONSTRUCTION D/B/A ARLINGTON GLASS & MIRROR CO.,Maintenance of Buildings,"$10,009.61 ",6/28/2017
CHICAGO METRO CONSTRUCTION D/B/A ARLINGTON GLASS & MIRROR CO.,Maintenance of Buildings,"$2,826.47 ",6/29/2017
CHICAGO METRO CONSTRUCTION D/B/A ARLINGTON GLASS & MIRROR CO.,Maintenance of Buildings,"$1,206.80 ",7/5/2017
CHICAGO METRO CONSTRUCTION D/B/A ARLINGTON GLASS & MIRROR CO.,Maintenance of Buildings,"$2,997.14 ",7/6/2017
CHICAGO METRO CONSTRUCTION D/B/A ARLINGTON GLASS & MIRROR CO.,Maintenance of Buildings,"$1,880.42 ",7/11/2017
CHICAGO METRO CONSTRUCTION D/B/A ARLINGTON GLASS & MIRROR CO.,Maintenance of Buildings,"$50,616 ",7/12/2017
CHICAGO METRO CONSTRUCTION D/B/A ARLINGTON GLASS & MIRROR CO.,Maintenance of Buildings,"$48,741 ",7/27/2017
CHICAGO METRO CONSTRUCTION D/B/A ARLINGTON GLASS & MIRROR CO.,Maintenance of Buildings,"$8,452.48 ",8/8/2017
CHICAGO METRO CONSTRUCTION D/B/A ARLINGTON GLASS & MIRROR CO.,Property Management,"$15,748.32 ",8/10/2017
CHICAGO METRO CONSTRUCTION D/B/A ARLINGTON GLASS & MIRROR CO.,Maintenance of Buildings,"$5,820.63 ",8/24/2017
CHICAGO METRO CONSTRUCTION D/B/A ARLINGTON GLASS & MIRROR CO.,Maintenance of Buildings,"$44,704.51 ",8/29/2017
CHICAGO METRO CONSTRUCTION D/B/A ARLINGTON GLASS & MIRROR CO.,Maintenance of Buildings,"$3,159.82 ",8/30/2017
CHICAGO METRO CONSTRUCTION D/B/A ARLINGTON GLASS & MIRROR CO.,Maintenance of Buildings,"$11,627.24 ",9/1/2017
CHICAGO METRO CONSTRUCTION D/B/A ARLINGTON GLASS & MIRROR CO.,Maintenance of Buildings,"$1,299.42 ",9/5/2017
CHICAGO METRO CONSTRUCTION D/B/A ARLINGTON GLASS & MIRROR CO.,Maintenance of Buildings,"$2,281.26 ",9/6/2017
CHICAGO METRO CONSTRUCTION D/B/A ARLINGTON GLASS & MIRROR CO.,Maintenance of Buildings,"$7,127.82 ",9/7/2017
CHICAGO METRO CONSTRUCTION D/B/A ARLINGTON GLASS & MIRROR CO.,Maintenance of Buildings,"$6,663.15 ",9/8/2017
CHICAGO METRO CONSTRUCTION D/B/A ARLINGTON GLASS & MIRROR CO.,Maintenance of Buildings,"$4,063.62 ",9/14/2017
CHICAGO METRO CONSTRUCTION D/B/A ARLINGTON GLASS & MIRROR CO.,Maintenance of Buildings,"$5,980.16 ",9/19/2017
CHICAGO METRO CONSTRUCTION D/B/A ARLINGTON GLASS & MIRROR CO.,Maintenance of Buildings,"$12,722.48 ",9/20/2017
CHICAGO METRO CONSTRUCTION D/B/A ARLINGTON GLASS & MIRROR CO.,Maintenance of Buildings,"$6,016.15 ",9/22/2017
CHICAGO METRO CONSTRUCTION D/B/A ARLINGTON GLASS & MIRROR CO.,Maintenance of Buildings,"$2,888.60 ",9/28/2017
CHICAGO METRO CONSTRUCTION D/B/A ARLINGTON GLASS & MIRROR CO.,Property Management,"$56,869.32 ",10/12/2017
CHICAGO METRO CONSTRUCTION D/B/A ARLINGTON GLASS & MIRROR CO.,Maintenance of Buildings,"$14,808.42 ",10/17/2017
CHICAGO METRO CONSTRUCTION D/B/A ARLINGTON GLASS & MIRROR CO.,Maintenance of Buildings,"$18,147.46 ",10/24/2017
CHICAGO METRO CONSTRUCTION D/B/A ARLINGTON GLASS & MIRROR CO.,Maintenance of Buildings,"$2,631.04 ",10/26/2017
CHICAGO METRO CONSTRUCTION D/B/A ARLINGTON GLASS & MIRROR CO.,Maintenance of Buildings,"$3,780.28 ",10/31/2017
CHICAGO METRO CONSTRUCTION D/B/A ARLINGTON GLASS & MIRROR CO.,Maintenance of Buildings,"$12,566.30 ",11/2/2017
CHICAGO METRO CONSTRUCTION D/B/A ARLINGTON GLASS & MIRROR CO.,Maintenance of Buildings,"$5,022.86 ",11/7/2017
CHICAGO METRO CONSTRUCTION D/B/A ARLINGTON GLASS & MIRROR CO.,Maintenance of Buildings,$848.96 ,11/8/2017
CHICAGO METRO CONSTRUCTION D/B/A ARLINGTON GLASS & MIRROR CO.,Maintenance of Buildings,"$8,069.22 ",11/21/2017
CHICAGO METRO CONSTRUCTION D/B/A ARLINGTON GLASS & MIRROR CO.,Property Management,"$28,443.18 ",11/21/2017
CHICAGO METRO CONSTRUCTION D/B/A ARLINGTON GLASS & MIRROR CO.,Maintenance of Buildings,"$20,270 ",11/22/2017
CHICAGO METRO CONSTRUCTION D/B/A ARLINGTON GLASS & MIRROR CO.,Maintenance of Buildings,"$16,062.20 ",12/7/2017
CHICAGO METRO CONSTRUCTION D/B/A ARLINGTON GLASS & MIRROR CO.,Maintenance of Buildings,"$7,729.74 ",12/22/2017
CHICAGO POLICE DEPARTMENT,Security Rail,"$837,985.24 ",2/3/2017
CHICAGO POLICE DEPARTMENT,Misc. Expenditures,"$112,684.89 ",3/1/2017
CHICAGO POLICE DEPARTMENT,Security Rail,"$865,916.55 ",3/22/2017
CHICAGO POLICE DEPARTMENT,Misc. Expenditures,"$25,176.31 ",3/27/2017
CHICAGO POLICE DEPARTMENT,Security Rail,"$972,140.96 ",4/6/2017
CHICAGO POLICE DEPARTMENT,Security Rail,"$1,059,704.27 ",5/5/2017
CHICAGO POLICE DEPARTMENT,Security Rail,"$1,121,894.31 ",6/13/2017
CHICAGO POLICE DEPARTMENT,Security Rail,"$1,041,075.07 ",7/11/2017
CHICAGO POLICE DEPARTMENT,Security Rail,"$1,006,652.52 ",8/1/2017
CHICAGO POLICE DEPARTMENT,Misc. Expenditures,"$77,181.07 ",8/11/2017
CHICAGO POLICE DEPARTMENT,Security Rail,"$944,725.07 ",8/31/2017
CHICAGO POLICE DEPARTMENT,Security Rail,"$787,553.13 ",10/23/2017
CHICAGO POLICE DEPARTMENT,Security Rail,"$823,058.15 ",11/2/2017
CHICAGO POLICE DEPARTMENT,Misc. Expenditures,"$205,079.23 ",11/3/2017
CHICAGO POLICE DEPARTMENT,Misc. Expenditures,"$1,696,770.85 ",11/13/2017
CHICAGO POLICE DEPARTMENT,Security Rail,"$830,752.50 ",12/20/2017
CHICAGO POLICE DEPARTMENT,Misc. Expenditures,"$60,280.69 ",12/22/2017
CHICAGO POLICE DEPARTMENT  (1),Security Rail,"$736,693.75 ",1/13/2017
"CHICAGO SUN-TIMES, INCORPORATED dba Sun-Times Media Productions, LLC",Administrative Support,$775.20 ,1/3/2017
"CHICAGO SUN-TIMES, INCORPORATED dba Sun-Times Media Productions, LLC",Administrative Support,$117.30 ,1/3/2017
"CHICAGO SUN-TIMES, INCORPORATED dba Sun-Times Media Productions, LLC",Administrative Support,$775.20 ,1/3/2017
"CHICAGO SUN-TIMES, INCORPORATED dba Sun-Times Media Productions, LLC",Administrative Support,$537.20 ,1/26/2017
"CHICAGO SUN-TIMES, INCORPORATED dba Sun-Times Media Productions, LLC",Administrative Support,"$7,752 ",1/31/2017
"CHICAGO SUN-TIMES, INCORPORATED dba Sun-Times Media Productions, LLC",Administrative Support,"$1,189.15 ",1/31/2017
"CHICAGO SUN-TIMES, INCORPORATED dba Sun-Times Media Productions, LLC",Administrative Support,"$1,188.30 ",2/28/2017
"CHICAGO SUN-TIMES, INCORPORATED dba Sun-Times Media Productions, LLC",Administrative Support,"$1,340.45 ",3/28/2017
"CHICAGO SUN-TIMES, INCORPORATED dba Sun-Times Media Productions, LLC",Administrative Support,"$1,484.95 ",4/27/2017
"CHICAGO SUN-TIMES, INCORPORATED dba Sun-Times Media Productions, LLC",Administrative Support,$19.55 ,5/4/2017
"CHICAGO SUN-TIMES, INCORPORATED dba Sun-Times Media Productions, LLC",Administrative Support,"$1,114.05 ",5/25/2017
"CHICAGO SUN-TIMES, INCORPORATED dba Sun-Times Media Productions, LLC",Administrative Support,"$1,442.26 ",7/5/2017
"CHICAGO SUN-TIMES, INCORPORATED dba Sun-Times Media Productions, LLC",Administrative Support,"$1,289.08 ",7/27/2017
"CHICAGO SUN-TIMES, INCORPORATED dba Sun-Times Media Productions, LLC",Administrative Support,$416 ,8/10/2017
"CHICAGO SUN-TIMES, INCORPORATED dba Sun-Times Media Productions, LLC",Administrative Support,$880.60 ,8/29/2017
"CHICAGO SUN-TIMES, INCORPORATED dba Sun-Times Media Productions, LLC",Administrative Support,"$1,006.40 ",9/28/2017
"CHICAGO SUN-TIMES, INCORPORATED dba Sun-Times Media Productions, LLC",Administrative Support,$17.76 ,10/4/2017
"CHICAGO SUN-TIMES, INCORPORATED dba Sun-Times Media Productions, LLC",Recruiting / Hiring,"$2,011 ",10/4/2017
"CHICAGO SUN-TIMES, INCORPORATED dba Sun-Times Media Productions, LLC",Administrative Support,"$1,608.02 ",10/26/2017
"CHICAGO SUN-TIMES, INCORPORATED dba Sun-Times Media Productions, LLC",Administrative Support,"$1,407.48 ",11/28/2017
"CHICAGO SUN-TIMES, INCORPORATED dba Sun-Times Media Productions, LLC",Administrative Support,$22.94 ,11/28/2017
"CHICAGO SUN-TIMES, INCORPORATED dba Sun-Times Media Productions, LLC",Administrative Support,$581.40 ,12/20/2017
"CHICAGO SUN-TIMES, INCORPORATED dba Sun-Times Media Productions, LLC",Administrative Support,$955.34 ,12/28/2017
CHICAGO TITLE & TRUST CO.,Real Estate,"$75,000 ",1/27/2017
CHICAGO TITLE & TRUST CO.,Real Estate,"$204,091.65 ",4/3/2017
CHICAGO TITLE & TRUST CO.,Real Estate,"$633,415 ",5/15/2017
CHICAGO TITLE & TRUST CO.,Real Estate,"$35,583 ",5/31/2017
CHICAGO TITLE & TRUST CO.,Real Estate,"$26,975 ",7/19/2017
CHICAGO TITLE & TRUST CO.,Real Estate,"$42,950 ",8/15/2017
CHICAGO TITLE & TRUST CO.,Real Estate,"$126,775 ",9/29/2017
CHICAGO TITLE & TRUST CO.,Real Estate,"$340,000 ",10/2/2017
CHICAGO TITLE & TRUST CO.,Real Estate,"$36,550 ",10/20/2017
CHICAGO TITLE & TRUST CO.,Real Estate,"$173,850 ",11/9/2017
CHICAGO TITLE & TRUST CO.,Real Estate,"$129,350 ",12/5/2017
CHICAGO TITLE & TRUST COMPANY,Real Estate,"$10,750 ",2/28/2017
CHICAGO TRANSIT AUTHORITY,Open Fare Implementation 04/30/2012,$60 ,3/23/2017
CHICAGO TRANSIT AUTHORITY,Open Fare Implementation 04/30/2012,"$5,096 ",6/9/2017
CHICAGO TRANSIT AUTHORITY,Open Fare Implementation 04/30/2012,"$83,662.50 ",8/4/2017
CHICAGO TRANSIT AUTHORITY,Open Fare Implementation 04/30/2012,"$10,230 ",10/6/2017
CHICAGO TRANSIT AUTHORITY,Open Fare Implementation 04/30/2012,"$3,000 ",11/28/2017
CHICAGO TRANSIT PARTNERS,Consulting Services,"$2,100,555.07 ",1/5/2017
CHICAGO TRANSIT PARTNERS,Consulting Services,"$97,773.95 ",1/25/2017
CHICAGO TRANSIT PARTNERS,Consulting Services,"$737,806.16 ",2/13/2017
CHICAGO TRANSIT PARTNERS,Consulting Services,"$825,325.68 ",2/17/2017
CHICAGO TRANSIT PARTNERS,Consulting Services,"$1,923.67 ",2/27/2017
CHICAGO TRANSIT PARTNERS,Consulting Services,"$260,539.41 ",3/7/2017
CHICAGO TRANSIT PARTNERS,Consulting Services,"$50,048.12 ",3/20/2017
CHICAGO TRANSIT PARTNERS,Consulting Services,"$329,860.37 ",3/27/2017
CHICAGO TRANSIT PARTNERS,Consulting Services,"$100,840.53 ",4/17/2017
CHICAGO TRANSIT PARTNERS,Consulting Services,"$18,287.26 ",5/1/2017
CHICAGO TRANSIT PARTNERS,Consulting Services,"$11,835.55 ",5/8/2017
CHICAGO TRANSIT PARTNERS,Consulting Services,"$1,249,989.41 ",5/16/2017
CHICAGO TRANSIT PARTNERS,Consulting Services,$140.30 ,5/22/2017
CHICAGO TRANSIT PARTNERS,Consulting Services,"$729,845.07 ",5/24/2017
CHICAGO TRANSIT PARTNERS,Consulting Services,"$774,650.03 ",5/26/2017
CHICAGO TRANSIT PARTNERS,Consulting Services,"$190,749.21 ",5/31/2017
CHICAGO TRANSIT PARTNERS,Consulting Services,"$13,403.54 ",6/12/2017
CHICAGO TRANSIT PARTNERS,Consulting Services,$700 ,7/3/2017
CHICAGO TRANSIT PARTNERS,Consulting Services,"$1,084,314.09 ",7/6/2017
CHICAGO TRANSIT PARTNERS,Consulting Services,"$369,530.28 ",7/24/2017
CHICAGO TRANSIT PARTNERS,Consulting Services,"$5,291.47 ",7/27/2017
CHICAGO TRANSIT PARTNERS,Consulting Services,"$989,768.62 ",8/7/2017
CHICAGO TRANSIT PARTNERS,Relay House Fire Mar2016,"$3,015.74 ",8/7/2017
CHICAGO TRANSIT PARTNERS,Consulting Services,"$141,972.57 ",8/9/2017
CHICAGO TRANSIT PARTNERS,Consulting Services,"$104,296.57 ",8/14/2017
CHICAGO TRANSIT PARTNERS,Consulting Services,"$264,354.11 ",8/16/2017
CHICAGO TRANSIT PARTNERS,Consulting Services,"$5,982.19 ",8/23/2017
CHICAGO TRANSIT PARTNERS,Consulting Services,"$5,632 ",9/6/2017
CHICAGO TRANSIT PARTNERS,Consulting Services,"$312,561.50 ",9/18/2017
CHICAGO TRANSIT PARTNERS,Consulting Services,"$24,894.56 ",9/25/2017
CHICAGO TRANSIT PARTNERS,Consulting Services,"$1,240,551.57 ",11/22/2017
CHICAGO TRANSIT PARTNERS,Relay House Fire Mar2016,"$5,431.16 ",11/22/2017
CHICAGO TRANSIT PARTNERS,Consulting Services,"$1,010,739.75 ",11/24/2017
CHICAGO TRANSIT PARTNERS,Consulting Services,"$1,136,836.76 ",12/8/2017
CHICAGO TRANSIT PARTNERS,Relay House Fire Mar2016,"$161,279.10 ",12/8/2017
CHICAGO TRANSIT PARTNERS,Consulting Services,"$2,299,541.33 ",12/28/2017
CHICAGO TRIBUNE,Administrative Support,$675 ,8/11/2017
CHICAGO TRIBUNE CO.,Administrative Support,$315 ,1/3/2017
CHICAGO TRIBUNE CO.,Administrative Support,$85.14 ,10/12/2017
CHICAGO UNIFORM COMPANY,Administrative Support,$307.25 ,7/21/2017
CHICAGO UNIFORM COMPANY,Administrative Support,$74.50 ,12/20/2017
CHICAGO URBAN LEAGUE,Administrative Support,"$5,833 ",2/21/2017
CHICAGO URBAN LEAGUE,Administrative Support,"$5,833 ",2/21/2017
CHICAGO URBAN LEAGUE,Administrative Support,"$5,833 ",3/14/2017
CHICAGO URBAN LEAGUE,Administrative Support,"$5,833 ",3/14/2017
CHICAGO URBAN LEAGUE,Administrative Support,"$5,833 ",4/18/2017
CHICAGO URBAN LEAGUE,Administrative Support,"$5,833 ",5/23/2017
CHICAGO URBAN LEAGUE,Administrative Support,"$5,833 ",5/26/2017
CHICAGO URBAN LEAGUE,Administrative Support,"$5,833 ",7/14/2017
CHICAGO URBAN LEAGUE,Recruiting / Hiring,$250 ,7/21/2017
CHICAGO URBAN LEAGUE,Administrative Support,"$5,833 ",8/22/2017
CHICAGO URBAN LEAGUE,Administrative Support,"$5,833 ",10/24/2017
CHICAGO URBAN LEAGUE,Administrative Support,"$5,833 ",10/24/2017
CHICAGO URBAN LEAGUE,Administrative Support,"$5,833 ",10/24/2017
CHICAGOLAND INVESTIGATIVE SERVICES,I&D Claims (Damage Reserve),"$4,624.85 ",1/11/2017
CHICAGOLAND INVESTIGATIVE SERVICES,I&D Claims (Damage Reserve),$755 ,3/30/2017
CHICAGOLAND INVESTIGATIVE SERVICES,I&D Claims (Damage Reserve),$240 ,3/31/2017
CHICO & NUNES LLP,Administrative Support,"$13,275 ",9/1/2017
CHICO & NUNES LLP,Administrative Support,"$11,475.50 ",9/1/2017
CHICO & NUNES LLP,Administrative Support,"$5,280.50 ",11/1/2017
CHICO & NUNES LLP,Administrative Support,"$13,776.50 ",12/5/2017
CHRISTOPHER COSNOWSKI,Consulting Services,"$2,940 ",11/17/2017
CHRISTOS GIANNOULIAS MD,I&D Claims (Damage Reserve),$750 ,6/16/2017
CIANCI & DAIMION,Maintenance of Buildings,"$8,456 ",7/25/2017
CICERO POLICE DEPT.,I&D Claims (Damage Reserve),$5 ,3/15/2017
CICERO POLICE DEPT.,I&D Claims (Damage Reserve),$5 ,9/12/2017
CICERO POLICE DEPT.,I&D Claims (Damage Reserve),$5 ,11/17/2017
CICERO POLICE DEPT.,I&D Claims (Damage Reserve),$5 ,12/6/2017
CIMPAR S.C.,I&D Claims (Damage Reserve),$500 ,3/14/2017
CIOP,Professional / Technical,$60 ,10/24/2017
CIOX HEALTH,Administrative Support,$80.45 ,3/7/2017
CISION US INC,Marketing,"$27,310.50 ",6/2/2017
CITIZEN NEWSPAPER GROUP,Administrative Support,"$1,550.04 ",7/26/2017
CITY  OF HOMETOWN,Other General Expense,$200 ,4/11/2017
CITY  OF HOMETOWN,Other General Expense,$100 ,8/1/2017
CITY CAREER FAIR,Recruiting / Hiring,"$1,590 ",5/18/2017
CITY CLUB OF CHICAGO,Administrative Support,$35 ,1/31/2017
CITY CLUB OF CHICAGO,Administrative Support,$35 ,4/20/2017
CITY CLUB OF CHICAGO,Administrative Support,$50 ,5/23/2017
CITY CLUB OF CHICAGO,Administrative Support,$35 ,6/6/2017
CITY OF BERWYN,Other General Expense,$200 ,5/2/2017
CITY OF BERWYN,Other General Expense,$100 ,10/17/2017
CITY OF CHGO.-ENTERPRISE FUNDS,"Facilities Operating Expenses (Rent,Utilities,etc)","$5,885.88 ",4/11/2017
CITY OF CHGO.-ENTERPRISE FUNDS,"Facilities Operating Expenses (Rent,Utilities,etc)","$6,915.48 ",9/29/2017
CITY OF CHICAGO DEPT OF REVENUE,Maintenance of Buildings,"$1,686.50 ",3/28/2017
CITY OF CHICAGO DEPT. OF REVENUE,Maintenance of Buildings,"$1,525 ",1/13/2017
CITY OF CHICAGO DEPT. OF REVENUE,Maintenance of Buildings,"$2,555 ",2/22/2017
CITY OF CHICAGO DEPT. OF REVENUE,Maintenance of Buildings,"$3,400 ",4/24/2017
CITY OF CHICAGO DEPT. OF REVENUE,Maintenance of Buildings,$980 ,8/2/2017
CITY OF CHICAGO DEPT.OF REVENUE-RED LIGHT,Administrative Support,$100 ,1/18/2017
CITY OF CHICAGO DEPT.OF REVENUE-RED LIGHT,Other General Expense,$600 ,1/18/2017
CITY OF CHICAGO DEPT.OF REVENUE-RED LIGHT,Other General Expense,$400 ,1/20/2017
CITY OF CHICAGO DEPT.OF REVENUE-RED LIGHT,Other General Expense,$35 ,1/27/2017
CITY OF CHICAGO DEPT.OF REVENUE-RED LIGHT,Other General Expense,$700 ,1/31/2017
CITY OF CHICAGO DEPT.OF REVENUE-RED LIGHT,Other General Expense,"$1,935 ",2/15/2017
CITY OF CHICAGO DEPT.OF REVENUE-RED LIGHT,Other General Expense,"$1,000 ",2/22/2017
CITY OF CHICAGO DEPT.OF REVENUE-RED LIGHT,Other General Expense,$400 ,2/28/2017
CITY OF CHICAGO DEPT.OF REVENUE-RED LIGHT,Other General Expense,$500 ,3/7/2017
CITY OF CHICAGO DEPT.OF REVENUE-RED LIGHT,Other General Expense,"$1,000 ",3/14/2017
CITY OF CHICAGO DEPT.OF REVENUE-RED LIGHT,Other General Expense,$365 ,3/17/2017
CITY OF CHICAGO DEPT.OF REVENUE-RED LIGHT,Other General Expense,$400 ,3/28/2017
CITY OF CHICAGO DEPT.OF REVENUE-RED LIGHT,Other General Expense,$935 ,4/4/2017
CITY OF CHICAGO DEPT.OF REVENUE-RED LIGHT,Other General Expense,$300 ,4/11/2017
CITY OF CHICAGO DEPT.OF REVENUE-RED LIGHT,Other General Expense,$900 ,4/18/2017
CITY OF CHICAGO DEPT.OF REVENUE-RED LIGHT,Other General Expense,$100 ,4/20/2017
CITY OF CHICAGO DEPT.OF REVENUE-RED LIGHT,Other General Expense,"$1,635 ",5/2/2017
CITY OF CHICAGO DEPT.OF REVENUE-RED LIGHT,Other General Expense,$700 ,5/19/2017
CITY OF CHICAGO DEPT.OF REVENUE-RED LIGHT,Other General Expense,$600 ,5/30/2017
CITY OF CHICAGO DEPT.OF REVENUE-RED LIGHT,Other General Expense,$600 ,6/2/2017
CITY OF CHICAGO DEPT.OF REVENUE-RED LIGHT,Other General Expense,$400 ,6/8/2017
CITY OF CHICAGO DEPT.OF REVENUE-RED LIGHT,Other General Expense,$500 ,6/9/2017
CITY OF CHICAGO DEPT.OF REVENUE-RED LIGHT,Other General Expense,$75 ,6/27/2017
CITY OF CHICAGO DEPT.OF REVENUE-RED LIGHT,Other General Expense,$300 ,6/28/2017
CITY OF CHICAGO DEPT.OF REVENUE-RED LIGHT,Other General Expense,"$1,000 ",7/6/2017
CITY OF CHICAGO DEPT.OF REVENUE-RED LIGHT,Other General Expense,$35 ,7/11/2017
CITY OF CHICAGO DEPT.OF REVENUE-RED LIGHT,Other General Expense,$600 ,7/21/2017
CITY OF CHICAGO DEPT.OF REVENUE-RED LIGHT,Other General Expense,$500 ,7/27/2017
CITY OF CHICAGO DEPT.OF REVENUE-RED LIGHT,Other General Expense,$670 ,8/1/2017
CITY OF CHICAGO DEPT.OF REVENUE-RED LIGHT,Other General Expense,$535 ,8/11/2017
CITY OF CHICAGO DEPT.OF REVENUE-RED LIGHT,Other General Expense,$500 ,8/15/2017
CITY OF CHICAGO DEPT.OF REVENUE-RED LIGHT,Other General Expense,$300 ,8/25/2017
CITY OF CHICAGO DEPT.OF REVENUE-RED LIGHT,Other General Expense,$800 ,8/31/2017
CITY OF CHICAGO DEPT.OF REVENUE-RED LIGHT,Other General Expense,$670 ,9/6/2017
CITY OF CHICAGO DEPT.OF REVENUE-RED LIGHT,Other General Expense,"$1,000 ",9/19/2017
CITY OF CHICAGO DEPT.OF REVENUE-RED LIGHT,Other General Expense,$100 ,9/20/2017
CITY OF CHICAGO DEPT.OF REVENUE-RED LIGHT,Other General Expense,$835 ,9/26/2017
CITY OF CHICAGO DEPT.OF REVENUE-RED LIGHT,Other General Expense,$200 ,10/10/2017
CITY OF CHICAGO DEPT.OF REVENUE-RED LIGHT,Other General Expense,$200 ,10/17/2017
CITY OF CHICAGO DEPT.OF REVENUE-RED LIGHT,Administrative Support,$100 ,10/24/2017
CITY OF CHICAGO DEPT.OF REVENUE-RED LIGHT,Other General Expense,$600 ,10/24/2017
CITY OF CHICAGO DEPT.OF REVENUE-RED LIGHT,Other General Expense,"$1,070 ",10/31/2017
CITY OF CHICAGO DEPT.OF REVENUE-RED LIGHT,Administrative Support,$100 ,11/8/2017
CITY OF CHICAGO DEPT.OF REVENUE-RED LIGHT,Other General Expense,$700 ,11/8/2017
CITY OF CHICAGO DEPT.OF REVENUE-RED LIGHT,Other General Expense,"$1,000 ",11/21/2017
CITY OF CHICAGO DEPT.OF REVENUE-RED LIGHT,Other General Expense,$235 ,12/1/2017
CITY OF CHICAGO DEPT.OF REVENUE-RED LIGHT,Other General Expense,$935 ,12/5/2017
CITY OF CHICAGO DEPT.OF REVENUE-RED LIGHT,Other General Expense,$200 ,12/6/2017
CITY OF CHICAGO DEPT.OF REVENUE-RED LIGHT,Other General Expense,$35 ,12/12/2017
CITY OF CHICAGO DEPT.OF REVENUE-RED LIGHT,Other General Expense,$600 ,12/19/2017
CITY OF CHICAGO DEPT.OF REVENUE-RED LIGHT,Other General Expense,$535 ,12/26/2017
CITY OF CHICAGO DEPT.OF REVENUE-RED LIGHT,Other General Expense,$100 ,12/28/2017
CITY OF CHICAGO-DEPT OF FLEET AND FACILITY  MGMT,Service Vehicle and Equipment Repair,"$9,460.33 ",2/9/2017
CITY OF CHICAGO-DEPT OF FLEET AND FACILITY  MGMT,Maintenance & Repair of Company Automobiles,"$13,380.99 ",2/16/2017
CITY OF CHICAGO-DEPT OF FLEET AND FACILITY  MGMT,Service Vehicle and Equipment Repair,"$4,291.73 ",2/16/2017
CITY OF CHICAGO-DEPT OF FLEET AND FACILITY  MGMT,Maintenance & Repair of Company Automobiles,"$91,976.81 ",2/27/2017
CITY OF CHICAGO-DEPT OF FLEET AND FACILITY  MGMT,Service Vehicle and Equipment Repair,"$15,690.68 ",2/27/2017
CITY OF CHICAGO-DEPT OF FLEET AND FACILITY  MGMT,Service Vehicle and Equipment Repair,$260.13 ,3/20/2017
CITY OF CHICAGO-DEPT OF FLEET AND FACILITY  MGMT,Maintenance & Repair of Company Automobiles,"$91,719.24 ",3/22/2017
CITY OF CHICAGO-DEPT OF FLEET AND FACILITY  MGMT,Service Vehicle and Equipment Repair,"$10,897.15 ",3/22/2017
CITY OF CHICAGO-DEPT OF FLEET AND FACILITY  MGMT,Service Vehicle and Equipment Repair,"$4,401.15 ",4/10/2017
CITY OF CHICAGO-DEPT OF FLEET AND FACILITY  MGMT,Maintenance & Repair of Company Automobiles,"$185,247.14 ",5/12/2017
CITY OF CHICAGO-DEPT OF FLEET AND FACILITY  MGMT,Service Vehicle and Equipment Repair,"$14,828.20 ",5/12/2017
CITY OF CHICAGO-DEPT OF FLEET AND FACILITY  MGMT,Maintenance & Repair of Company Automobiles,"$56,550.13 ",5/16/2017
CITY OF CHICAGO-DEPT OF FLEET AND FACILITY  MGMT,Service Vehicle and Equipment Repair,"$13,000.83 ",5/16/2017
CITY OF CHICAGO-DEPT OF FLEET AND FACILITY  MGMT,Engineering,"$10,000 ",5/17/2017
CITY OF CHICAGO-DEPT OF FLEET AND FACILITY  MGMT,Maintenance & Repair of Company Automobiles,"$202,206.49 ",6/20/2017
CITY OF CHICAGO-DEPT OF FLEET AND FACILITY  MGMT,Service Vehicle and Equipment Repair,"$3,092.13 ",6/20/2017
CITY OF CHICAGO-DEPT OF FLEET AND FACILITY  MGMT,Service Vehicle and Equipment Repair,"$9,051.84 ",6/29/2017
CITY OF CHICAGO-DEPT OF FLEET AND FACILITY  MGMT,Maintenance & Repair of Company Automobiles,"$234,053.35 ",7/20/2017
CITY OF CHICAGO-DEPT OF FLEET AND FACILITY  MGMT,Service Vehicle and Equipment Repair,"$13,117.25 ",7/20/2017
CITY OF CHICAGO-DEPT OF FLEET AND FACILITY  MGMT,Maintenance & Repair of Company Automobiles,"$148,173.18 ",9/15/2017
CITY OF CHICAGO-DEPT OF FLEET AND FACILITY  MGMT,Service Vehicle and Equipment Repair,"$14,414.37 ",9/15/2017
CITY OF CHICAGO-DEPT OF FLEET AND FACILITY  MGMT,Maintenance & Repair of Company Automobiles,"$278,522.55 ",10/19/2017
CITY OF CHICAGO-DEPT OF FLEET AND FACILITY  MGMT,Service Vehicle and Equipment Repair,"$28,828.91 ",10/19/2017
CITY OF CHICAGO-DEPT OF FLEET AND FACILITY  MGMT,Maintenance & Repair of Company Automobiles,"$103,535.36 ",11/15/2017
CITY OF CHICAGO-DEPT OF FLEET AND FACILITY  MGMT,Service Vehicle and Equipment Repair,"$13,718.75 ",11/15/2017
CITY OF CHICAGO-DEPT OF FLEET AND FACILITY  MGMT,Engineering,"$24,652.80 ",11/24/2017
CITY OF CHICAGO-DEPT OF FLEET AND FACILITY  MGMT,Maintenance & Repair of Company Automobiles,"$210,615.96 ",12/14/2017
CITY OF CHICAGO-DEPT OF FLEET AND FACILITY  MGMT,Service Vehicle and Equipment Repair,"$14,324.88 ",12/19/2017
CITY OF CHICAGO-DEPT OF REVENUE,Maintenance of Buildings,"$3,040 ",11/1/2017
CITY OF CHICAGO-DEPT OF REVENUE,Maintenance of Buildings,"$2,555 ",12/6/2017
CITY OF CHICAGO-DEPT OF REVENUE,Maintenance of Buildings,"$3,365 ",12/6/2017
CITY OF CHICAGO-DEPT OF REVENUE,Maintenance of Buildings,"$2,425 ",12/6/2017
CITY OF CHICAGO-DEPT OF REVENUE,Maintenance of Buildings,$440 ,12/6/2017
CITY OF CHICAGO-DEPT OF WATER,"Facilities Operating Expenses (Rent,Utilities,etc)","$32,233.56 ",1/20/2017
CITY OF CHICAGO-DEPT OF WATER,"Facilities Operating Expenses (Rent,Utilities,etc)","$48,576.68 ",2/6/2017
CITY OF CHICAGO-DEPT OF WATER,"Facilities Operating Expenses (Rent,Utilities,etc)","$78,424.28 ",2/7/2017
CITY OF CHICAGO-DEPT OF WATER,"Facilities Operating Expenses (Rent,Utilities,etc)","$43,551.03 ",3/7/2017
CITY OF CHICAGO-DEPT OF WATER,"Facilities Operating Expenses (Rent,Utilities,etc)","$51,797.62 ",3/14/2017
CITY OF CHICAGO-DEPT OF WATER,"Facilities Operating Expenses (Rent,Utilities,etc)","$114,396.92 ",4/11/2017
CITY OF CHICAGO-DEPT OF WATER,"Facilities Operating Expenses (Rent,Utilities,etc)","$12,579.58 ",5/2/2017
CITY OF CHICAGO-DEPT OF WATER,"Facilities Operating Expenses (Rent,Utilities,etc)","$49,519.64 ",5/24/2017
CITY OF CHICAGO-DEPT OF WATER,"Facilities Operating Expenses (Rent,Utilities,etc)","$43,053.47 ",6/6/2017
CITY OF CHICAGO-DEPT OF WATER,"Facilities Operating Expenses (Rent,Utilities,etc)","$78,990.35 ",6/20/2017
CITY OF CHICAGO-DEPT OF WATER,"Facilities Operating Expenses (Rent,Utilities,etc)","$28,539.83 ",7/21/2017
CITY OF CHICAGO-DEPT OF WATER,"Facilities Operating Expenses (Rent,Utilities,etc)","$104,221.25 ",8/10/2017
CITY OF CHICAGO-DEPT OF WATER,"Facilities Operating Expenses (Rent,Utilities,etc)","$84,856.71 ",9/20/2017
CITY OF CHICAGO-DEPT OF WATER,"Facilities Operating Expenses (Rent,Utilities,etc)","$14,197.14 ",9/26/2017
CITY OF CHICAGO-DEPT OF WATER,"Facilities Operating Expenses (Rent,Utilities,etc)","$68,959.47 ",10/6/2017
CITY OF CHICAGO-DEPT OF WATER,Real Estate,$139.16 ,11/9/2017
CITY OF CHICAGO-DEPT OF WATER,"Facilities Operating Expenses (Rent,Utilities,etc)","$109,017.50 ",11/14/2017
CITY OF CHICAGO-DEPT OF WATER,"Facilities Operating Expenses (Rent,Utilities,etc)","$19,981.12 ",11/29/2017
CITY OF CHICAGO/DEPT OF FINANCE,Misc. Expenditures,$16.04 ,1/27/2017
CITY OF CHICAGO/DEPT OF FINANCE,Misc. Expenditures,$172.18 ,3/31/2017
CITY OF CHICAGO/DEPT OF FINANCE,Misc. Expenditures,$48.70 ,7/7/2017
CITY OF CHICAGO/DEPT OF FINANCE,Maintenance of Buildings,$625 ,7/21/2017
CITY OF CHICAGO/DEPT OF FINANCE,Maintenance of Buildings,$355 ,7/25/2017
CITY OF CHICAGO/DEPT OF FINANCE,Real Estate,$92.10 ,9/1/2017
CITY OF CHICAGO/DEPT OF FINANCE,Real Estate,$139.16 ,10/11/2017
CITY OF CHICAGO/DEPT OF FINANCE,Maintenance of Buildings,"$1,130 ",11/7/2017
CITY OF CHICAGO/DEPT OF FINANCE,Real Estate,$414.90 ,11/29/2017
CITY OF EVANSTON,"Facilities Operating Expenses (Rent,Utilities,etc)",$893.65 ,2/7/2017
CITY OF EVANSTON,"Facilities Operating Expenses (Rent,Utilities,etc)","$1,498.34 ",4/12/2017
CITY OF EVANSTON,"Facilities Operating Expenses (Rent,Utilities,etc)",$937.84 ,6/6/2017
CITY OF EVANSTON,"Facilities Operating Expenses (Rent,Utilities,etc)",$908.22 ,8/15/2017
CITY OF EVANSTON,"Facilities Operating Expenses (Rent,Utilities,etc)",$967.94 ,10/3/2017
CITY OF EVANSTON,"Facilities Operating Expenses (Rent,Utilities,etc)","$1,076.44 ",12/19/2017
CITY OF HOMETOWN,Other General Expense,$100 ,4/18/2017
CITY OF HOMETOWN,Other General Expense,$100 ,8/31/2017
CK REPORTING,I&D Claims (Damage Reserve),$153 ,3/28/2017
CK REPORTING,I&D Claims (Damage Reserve),$493 ,4/18/2017
CLAREMONT LLC,Drug & Alcohol Testing,$480 ,2/28/2017
CLAREMONT LLC,Drug & Alcohol Testing,$772 ,3/28/2017
CLAREMONT LLC,Drug & Alcohol Testing,$902 ,4/27/2017
CLAREMONT LLC,Drug & Alcohol Testing,$958 ,6/15/2017
CLAREMONT LLC,Drug & Alcohol Testing,"$1,008 ",6/28/2017
CLAREMONT LLC,Drug & Alcohol Testing,$950 ,7/27/2017
CLAREMONT LLC,Drug & Alcohol Testing,$930 ,9/7/2017
CLAREMONT LLC,Drug & Alcohol Testing,$920 ,10/20/2017
CLAREMONT LLC,Drug & Alcohol Testing,$916 ,10/31/2017
CLAREMONT LLC,Drug & Alcohol Testing,"$1,635 ",11/28/2017
CLAREMONT LLC,Drug & Alcohol Testing,"$1,138 ",12/28/2017
"CLARK CONSTRUCTION GROUP - CHICAGO, LLC",Contract Construction,"$2,288,495 ",11/17/2017
"CLARK CONSTRUCTION GROUP - CHICAGO, LLC",Contract Construction,"$928,357 ",11/21/2017
"CLARK CONSTRUCTION GROUP - CHICAGO, LLC",Contract Construction,"$982,096 ",12/19/2017
CLEAN! CLEAN! DRY CLEANERS,Repair CTA Mini Bus/Train,$342 ,6/9/2017
CLERK OF THE APPELLATE COURT,Administrative Support,$30 ,1/24/2017
CLERK OF THE APPELLATE COURT,Administrative Support,$30 ,2/10/2017
CLERK OF THE APPELLATE COURT,Administrative Support,$30 ,3/22/2017
CLERK OF THE APPELLATE COURT,Administrative Support,$30 ,3/30/2017
CLERK OF THE APPELLATE COURT,Administrative Support,$30 ,6/28/2017
CLERK OF THE CIRCUIT COURT  1,I&D Claims (Damage Reserve),"$5,156 ",1/25/2017
CLERK OF THE CIRCUIT COURT  1,I&D Claims (Damage Reserve),"$4,688 ",1/25/2017
CLERK OF THE CIRCUIT COURT  1,I&D Claims (Damage Reserve),"$3,612.50 ",1/25/2017
CLERK OF THE CIRCUIT COURT  1,I&D Claims (Damage Reserve),"$6,282.40 ",1/25/2017
CLERK OF THE CIRCUIT COURT  1,I&D Claims (Damage Reserve),$168 ,1/27/2017
CLERK OF THE CIRCUIT COURT  1,I&D Claims (Damage Reserve),$177 ,1/31/2017
CLERK OF THE CIRCUIT COURT  1,I&D Claims (Damage Reserve),"$4,476.99 ",1/31/2017
CLERK OF THE CIRCUIT COURT  1,I&D Claims (Damage Reserve),"$5,643.50 ",1/31/2017
CLERK OF THE CIRCUIT COURT  1,I&D Claims (Damage Reserve),$12 ,1/31/2017
CLERK OF THE CIRCUIT COURT  1,I&D Claims (Damage Reserve),$34 ,1/31/2017
CLERK OF THE CIRCUIT COURT  1,I&D Claims (Damage Reserve),"$6,491 ",1/31/2017
CLERK OF THE CIRCUIT COURT  1,I&D Claims (Damage Reserve),"$4,937.25 ",1/31/2017
CLERK OF THE CIRCUIT COURT  1,I&D Claims (Damage Reserve),$9 ,4/25/2017
CLERK OF THE CIRCUIT COURT  1,I&D Claims (Damage Reserve),$5.50 ,4/25/2017
CLERK OF THE CIRCUIT COURT  1,I&D Claims (Damage Reserve),"$6,459.50 ",4/28/2017
CLERK OF THE CIRCUIT COURT  1,I&D Claims (Damage Reserve),"$3,885.50 ",4/28/2017
CLERK OF THE CIRCUIT COURT  1,I&D Claims (Damage Reserve),"$2,510.50 ",4/28/2017
CLERK OF THE CIRCUIT COURT  1,I&D Claims (Damage Reserve),$7 ,4/28/2017
CLERK OF THE CIRCUIT COURT  1,I&D Claims (Damage Reserve),"$5,520.37 ",4/28/2017
CLERK OF THE CIRCUIT COURT  1,I&D Claims (Damage Reserve),"$3,514.50 ",4/28/2017
CLERK OF THE CIRCUIT COURT  1,I&D Claims (Damage Reserve),"$6,275.50 ",7/6/2017
CLERK OF THE CIRCUIT COURT  1,I&D Claims (Damage Reserve),"$4,208 ",7/6/2017
CLERK OF THE CIRCUIT COURT  1,I&D Claims (Damage Reserve),"$2,699.87 ",7/6/2017
CLERK OF THE CIRCUIT COURT  1,I&D Claims (Damage Reserve),"$4,258 ",8/22/2017
CLERK OF THE CIRCUIT COURT  1,I&D Claims (Damage Reserve),"$1,819.37 ",8/22/2017
CLERK OF THE CIRCUIT COURT  1,I&D Claims (Damage Reserve),"$4,727.50 ",8/22/2017
CLERK OF THE CIRCUIT COURT  1,I&D Claims (Damage Reserve),$177 ,9/6/2017
CLERK OF THE CIRCUIT COURT  1,I&D Claims (Damage Reserve),"$5,781.57 ",9/7/2017
CLERK OF THE CIRCUIT COURT  1,I&D Claims (Damage Reserve),"$5,079.30 ",9/7/2017
CLERK OF THE CIRCUIT COURT  1,I&D Claims (Damage Reserve),"$3,815 ",9/7/2017
CLERK OF THE CIRCUIT COURT  1,I&D Claims (Damage Reserve),"$3,446.50 ",11/2/2017
CLERK OF THE CIRCUIT COURT  1,I&D Claims (Damage Reserve),$12 ,11/2/2017
CLERK OF THE CIRCUIT COURT  1,I&D Claims (Damage Reserve),"$2,229.75 ",11/2/2017
CLERK OF THE CIRCUIT COURT  1,I&D Claims (Damage Reserve),"$4,885 ",11/9/2017
CLERK OF THE CIRCUIT COURT  1,I&D Claims (Damage Reserve),"$3,688.50 ",11/9/2017
"CLEVER DEVICES, LTD",Applications Support,"$357,714.14 ",1/9/2017
"CLEVER DEVICES, LTD",Applications Support,"$33,758 ",1/19/2017
"CLEVER DEVICES, LTD",Applications Support,"$357,714.14 ",1/25/2017
"CLEVER DEVICES, LTD",Applications Support,"$357,714.14 ",2/16/2017
"CLEVER DEVICES, LTD",Applications Support,"$357,714.14 ",3/16/2017
"CLEVER DEVICES, LTD",Applications Support,"$2,475 ",3/30/2017
"CLEVER DEVICES, LTD",Applications Support,"$2,304 ",4/6/2017
"CLEVER DEVICES, LTD",Applications Support,"$357,714.14 ",4/13/2017
"CLEVER DEVICES, LTD",Applications Support,"$357,714.14 ",5/16/2017
"CLEVER DEVICES, LTD",Applications Support,"$103,396 ",6/9/2017
"CLEVER DEVICES, LTD",Applications Support,"$357,714.14 ",6/13/2017
"CLEVER DEVICES, LTD",Applications Support,"$357,714.14 ",7/20/2017
"CLEVER DEVICES, LTD",Applications Support,"$357,714.14 ",8/15/2017
"CLEVER DEVICES, LTD",Applications Support,"$2,675 ",8/29/2017
"CLEVER DEVICES, LTD",Applications Support,"$357,714.14 ",9/19/2017
"CLEVER DEVICES, LTD",Professional / Technical,"$49,800 ",9/20/2017
"CLEVER DEVICES, LTD",Applications Support,"$357,714.14 ",10/12/2017
"CLEVER DEVICES, LTD",Applications Support,"$357,714.14 ",11/14/2017
"CLEVER DEVICES, LTD",Applications Support,"$30,000 ",12/4/2017
"CLEVER DEVICES, LTD",Applications Support,"$185,000 ",12/5/2017
"CLEVER DEVICES, LTD",Applications Support,"$38,974.50 ",12/13/2017
"CLEVER DEVICES, LTD",Applications Support,"$244,792.50 ",12/21/2017
"COLETTE GORDON, M.D.",I&D Claims (Damage Reserve),$750 ,11/3/2017
"COMCAST OF CHICAGO, IL",Maintain/Repair Communications  Equip,$51.25 ,1/11/2017
"COMCAST OF CHICAGO, IL",Maintain/Repair Communications  Equip,$203.78 ,1/12/2017
"COMCAST OF CHICAGO, IL",Maintain/Repair Communications  Equip,$51.25 ,1/24/2017
"COMCAST OF CHICAGO, IL",Maintain/Repair Communications  Equip,$198.78 ,2/1/2017
"COMCAST OF CHICAGO, IL",Maintain/Repair Communications  Equip,$157.03 ,3/3/2017
"COMCAST OF CHICAGO, IL",Maintain/Repair Communications  Equip,$51.25 ,3/3/2017
"COMCAST OF CHICAGO, IL",Maintain/Repair Communications  Equip,$198.78 ,4/6/2017
"COMCAST OF CHICAGO, IL",Maintain/Repair Communications  Equip,$102.38 ,4/6/2017
"COMCAST OF CHICAGO, IL",Maintain/Repair Communications  Equip,$198.78 ,5/4/2017
"COMCAST OF CHICAGO, IL",Maintain/Repair Communications  Equip,$41.71 ,5/4/2017
"COMCAST OF CHICAGO, IL",Maintain/Repair Communications  Equip,$157.07 ,6/2/2017
"COMCAST OF CHICAGO, IL",Maintain/Repair Communications  Equip,$51.21 ,6/2/2017
"COMCAST OF CHICAGO, IL",Maintain/Repair Communications  Equip,$178.79 ,7/14/2017
"COMCAST OF CHICAGO, IL",Maintain/Repair Communications  Equip,$144.13 ,7/14/2017
"COMCAST OF CHICAGO, IL",Maintain/Repair Communications  Equip,$52.85 ,8/1/2017
"COMCAST OF CHICAGO, IL",Maintain/Repair Communications  Equip,$21.71 ,8/1/2017
"COMCAST OF CHICAGO, IL",Maintain/Repair Communications  Equip,$8.41 ,9/5/2017
"COMCAST OF CHICAGO, IL",Maintain/Repair Communications  Equip,$195.61 ,10/17/2017
"COMCAST OF CHICAGO, IL",Maintain/Repair Communications  Equip,$196.68 ,11/7/2017
"COMCAST OF CHICAGO, IL",Maintain/Repair Communications  Equip,$22.71 ,12/7/2017
"COMCAST OF CHICAGO, IL",Maintain/Repair Communications  Equip,$188.27 ,12/8/2017
"COMET MESSENGER SERVICE, INC.",I&D Claims (Damage Reserve),$78.59 ,10/10/2017
"COMET MESSENGER SERVICE, INC.",I&D Claims (Damage Reserve),$37.46 ,10/20/2017
"COMET MESSENGER SERVICE, INC.",Administrative Support,$28.53 ,11/3/2017
"COMET MESSENGER SERVICE, INC.",Cash Management,$19 ,11/3/2017
"COMET MESSENGER SERVICE, INC.",I&D Claims (Damage Reserve),$70.60 ,11/3/2017
"COMET MESSENGER SERVICE, INC.",Administrative Support,$73.15 ,11/7/2017
"COMET MESSENGER SERVICE, INC.",Cash Management,$13 ,11/9/2017
"COMET MESSENGER SERVICE, INC.",Cash Management,$13 ,11/17/2017
"COMET MESSENGER SERVICE, INC.",Cash Management,$6.50 ,11/24/2017
"COMET MESSENGER SERVICE, INC.",Administrative Support,$101.91 ,11/28/2017
"COMET MESSENGER SERVICE, INC.",Cash Management,$19.25 ,12/1/2017
"COMET MESSENGER SERVICE, INC.",I&D Claims (Damage Reserve),$16.65 ,12/1/2017
"COMET MESSENGER SERVICE, INC.",Cash Management,$6.50 ,12/8/2017
"COMET MESSENGER SERVICE, INC.",I&D Claims (Damage Reserve),$111.24 ,12/8/2017
"COMET MESSENGER SERVICE, INC.",Administrative Support,$124.88 ,12/14/2017
"COMET MESSENGER SERVICE, INC.",Cash Management,$6.50 ,12/15/2017
"COMET MESSENGER SERVICE, INC.",Cash Management,$6.50 ,12/22/2017
"COMET MESSENGER SERVICE, INC.",Administrative Support,$80.14 ,12/28/2017
"COMET MESSENGER SERVICE, INC.",Cash Management,$6.50 ,12/28/2017
COMFORT INN & SUITES,Travel & Seminar,$964.59 ,2/10/2017
COMFORT INN & SUITES,Travel & Seminar,$964.59 ,2/10/2017
COMMONWEALTH EDISON.,"Facilities Operating Expenses (Rent,Utilities,etc)","$231,475.15 ",1/5/2017
COMMONWEALTH EDISON.,Misc. Expenditures,$22.99 ,1/27/2017
COMMONWEALTH EDISON.,"Facilities Operating Expenses (Rent,Utilities,etc)","$328,452.64 ",3/10/2017
COMMONWEALTH EDISON.,Misc. Expenditures,$31.07 ,3/15/2017
COMMONWEALTH EDISON.,"Facilities Operating Expenses (Rent,Utilities,etc)","$332,741.76 ",4/14/2017
COMMONWEALTH EDISON.,Misc. Expenditures,$23.73 ,4/19/2017
COMMONWEALTH EDISON.,Misc. Expenditures,$64.53 ,4/26/2017
COMMONWEALTH EDISON.,Misc. Expenditures,$81.67 ,5/9/2017
COMMONWEALTH EDISON.,Misc. Expenditures,$173.21 ,5/12/2017
COMMONWEALTH EDISON.,"Facilities Operating Expenses (Rent,Utilities,etc)","$259,666.02 ",5/25/2017
COMMONWEALTH EDISON.,"Facilities Operating Expenses (Rent,Utilities,etc)","$299,246.82 ",6/12/2017
COMMONWEALTH EDISON.,Misc. Expenditures,$84.62 ,6/30/2017
COMMONWEALTH EDISON.,"Facilities Operating Expenses (Rent,Utilities,etc)","$262,364.04 ",7/7/2017
COMMONWEALTH EDISON.,"Facilities Operating Expenses (Rent,Utilities,etc)","$299,099.87 ",7/25/2017
COMMONWEALTH EDISON.,Real Estate,$135.29 ,8/11/2017
COMMONWEALTH EDISON.,Real Estate,$202.36 ,9/1/2017
COMMONWEALTH EDISON.,Real Estate,$150.50 ,10/11/2017
COMMONWEALTH EDISON.,"Facilities Operating Expenses (Rent,Utilities,etc)","$239,332.34 ",10/12/2017
COMMONWEALTH EDISON.,Real Estate,$457.40 ,11/8/2017
COMMONWEALTH EDISON.,"Facilities Operating Expenses (Rent,Utilities,etc)","$152,589.28 ",12/14/2017
COMMONWEALTH EDISON.,Real Estate,$29.69 ,12/15/2017
COMPASS MINERALS AMERICA INC,"Facilities Operating Expenses (Rent,Utilities,etc)","$19,314.24 ",1/11/2017
COMPASS MINERALS AMERICA INC,"Facilities Operating Expenses (Rent,Utilities,etc)","$15,166.49 ",2/22/2017
COMPASS MINERALS AMERICA INC,"Facilities Operating Expenses (Rent,Utilities,etc)","$41,199.79 ",3/10/2017
COMPASS MINERALS AMERICA INC,"Facilities Operating Expenses (Rent,Utilities,etc)","$1,132.46 ",5/17/2017
COMPASS MINERALS AMERICA INC,"Facilities Operating Expenses (Rent,Utilities,etc)","$10,165.04 ",6/12/2017
COMPASS MINERALS AMERICA INC,"Facilities Operating Expenses (Rent,Utilities,etc)","$10,622.32 ",6/21/2017
COMPASS MINERALS AMERICA INC,"Facilities Operating Expenses (Rent,Utilities,etc)","$9,764.02 ",10/11/2017
"COMPUTER AID, INC.",Administrative Support,"$11,646.24 ",1/13/2017
"COMPUTER AID, INC.",Applications Support,"$20,568 ",1/25/2017
"COMPUTER AID, INC.",Consulting Services,"$41,875.68 ",1/25/2017
"COMPUTER AID, INC.",Applications Support,"$217,383.39 ",1/26/2017
"COMPUTER AID, INC.",Applications Support,"$217,383.39 ",1/30/2017
"COMPUTER AID, INC.",Consulting Services,"$278,485.96 ",1/30/2017
"COMPUTER AID, INC.",Applications Support,"$80,189.55 ",2/2/2017
"COMPUTER AID, INC.",Consulting Services,"$139,242.98 ",2/8/2017
"COMPUTER AID, INC.",Applications Support,"$6,845.55 ",2/9/2017
"COMPUTER AID, INC.",Consulting Services,"$102,279.55 ",2/22/2017
"COMPUTER AID, INC.",Applications Support,"$276,849.39 ",3/3/2017
"COMPUTER AID, INC.",Applications Support,"$60,996.98 ",3/9/2017
"COMPUTER AID, INC.",Consulting Services,"$41,562.50 ",3/10/2017
"COMPUTER AID, INC.",Consulting Services,"$139,242.98 ",3/14/2017
"COMPUTER AID, INC.",Applications Support,"$247,828.59 ",3/30/2017
"COMPUTER AID, INC.",Consulting Services,"$169,036.73 ",4/3/2017
"COMPUTER AID, INC.",Applications Support,"$57,076.20 ",4/6/2017
"COMPUTER AID, INC.",Consulting Services,"$16,949.68 ",4/6/2017
"COMPUTER AID, INC.",Consulting Services,"$20,076 ",4/11/2017
"COMPUTER AID, INC.",Consulting Services,"$56,482.50 ",4/14/2017
"COMPUTER AID, INC.",Consulting Services,"$78,606.75 ",5/1/2017
"COMPUTER AID, INC.",Applications Support,"$230,440.43 ",5/3/2017
"COMPUTER AID, INC.",Consulting Services,"$119,039.16 ",5/3/2017
"COMPUTER AID, INC.",Applications Support,"$45,249.60 ",5/4/2017
"COMPUTER AID, INC.",Consulting Services,"$22,931.92 ",5/9/2017
"COMPUTER AID, INC.",Consulting Services,"$29,312.50 ",5/24/2017
"COMPUTER AID, INC.",Consulting Services,"$122,253.22 ",5/26/2017
"COMPUTER AID, INC.",Applications Support,"$65,568.32 ",6/7/2017
"COMPUTER AID, INC.",Consulting Services,"$19,120 ",6/7/2017
"COMPUTER AID, INC.",Consulting Services,$66.60 ,6/20/2017
"COMPUTER AID, INC.",Consulting Services,"$1,105.14 ",6/21/2017
"COMPUTER AID, INC.",Consulting Services,"$39,952 ",6/28/2017
"COMPUTER AID, INC.",Applications Support,"$243,787.44 ",6/30/2017
"COMPUTER AID, INC.",Applications Support,"$242,800.09 ",7/5/2017
"COMPUTER AID, INC.",Consulting Services,"$122,253.22 ",7/5/2017
"COMPUTER AID, INC.",Applications Support,"$21,123.20 ",7/6/2017
"COMPUTER AID, INC.",Applications Support,"$43,771.28 ",7/13/2017
"COMPUTER AID, INC.",Consulting Services,"$25,650 ",8/1/2017
"COMPUTER AID, INC.",Consulting Services,"$142,069.44 ",8/3/2017
"COMPUTER AID, INC.",Applications Support,"$289,403.15 ",8/7/2017
"COMPUTER AID, INC.",Applications Support,"$22,707.44 ",8/25/2017
"COMPUTER AID, INC.",Consulting Services,"$122,253.22 ",8/28/2017
"COMPUTER AID, INC.",Consulting Services,"$169,621.97 ",8/30/2017
"COMPUTER AID, INC.",Applications Support,"$242,800.09 ",8/31/2017
"COMPUTER AID, INC.",Applications Support,"$39,738.02 ",9/6/2017
"COMPUTER AID, INC.",Consulting Services,"$68,318.75 ",9/27/2017
"COMPUTER AID, INC.",Applications Support,"$47,527.20 ",10/5/2017
"COMPUTER AID, INC.",Consulting Services,"$52,102 ",10/6/2017
"COMPUTER AID, INC.",Applications Support,"$10,038 ",10/19/2017
"COMPUTER AID, INC.",Applications Support,"$242,800.09 ",10/20/2017
"COMPUTER AID, INC.",Consulting Services,"$122,253.22 ",10/25/2017
"COMPUTER AID, INC.",Applications Support,"$43,757.76 ",11/2/2017
"COMPUTER AID, INC.",Consulting Services,"$101,130.11 ",11/6/2017
"COMPUTER AID, INC.",Applications Support,"$263,923.20 ",11/13/2017
"COMPUTER AID, INC.",Applications Support,"$263,923.20 ",12/6/2017
"COMPUTER AID, INC.",Applications Support,"$63,806.48 ",12/7/2017
"COMPUTER AID, INC.",Consulting Services,"$101,130.11 ",12/13/2017
"COMPUTER AID, INC.",Consulting Services,"$91,168.91 ",12/22/2017
"COMPUTER AID, INC.",Consulting Services,"$20,937.84 ",12/26/2017
"COMPUTER PRODUCTS & SUPPLIES, INC.",Maintain/Repair Communications  Equip,$530.84 ,1/12/2017
"COMPUTER PRODUCTS & SUPPLIES, INC.",Training - Students,"$1,405 ",1/12/2017
"COMPUTER PRODUCTS & SUPPLIES, INC.",Applications Support,"$1,258.80 ",7/20/2017
"COMPUTER PRODUCTS & SUPPLIES, INC.",Administrative Support,$379 ,10/19/2017
COMTO NATIONAL HEADQUARTERS,Training - Students,"$3,000 ",2/23/2017
COMTO NATIONAL HEADQUARTERS,Management,"$5,100 ",6/13/2017
CONNER McNALLY,Real Estate,"$10,333.33 ",10/6/2017
CONNEY SAFETY PRODUCTS,Inventory Price Adjustments-Invoice Price Adj,$71.30 ,4/6/2017
CONNEY SAFETY PRODUCTS,Inventory Price Adjustments-Invoice Price Adj,$63.90 ,12/28/2017
CONSTANT CONTACT INC,Surveys / Studies,"$2,835.75 ",9/1/2017
CONSTELLATION ( AN EXELON CO.),"Facilities Operating Expenses (Rent,Utilities,etc)","$151,738.02 ",2/16/2017
CONSTELLATION ( AN EXELON CO.),"Facilities Operating Expenses (Rent,Utilities,etc)","$5,308,697.57 ",2/22/2017
CONSTELLATION ( AN EXELON CO.),"Facilities Operating Expenses (Rent,Utilities,etc)","$40,966.12 ",2/23/2017
CONSTELLATION ( AN EXELON CO.),"Facilities Operating Expenses (Rent,Utilities,etc)","$78,931.67 ",3/17/2017
CONSTELLATION ( AN EXELON CO.),"Facilities Operating Expenses (Rent,Utilities,etc)","$10,092.61 ",4/6/2017
CONSTELLATION ( AN EXELON CO.),"Facilities Operating Expenses (Rent,Utilities,etc)","$3,250.78 ",6/23/2017
CONSTELLATION ( AN EXELON CO.),"Facilities Operating Expenses (Rent,Utilities,etc)","$1,368.80 ",8/23/2017
"CONSTELLATION NEW ENERGY GAS DIVISION, LLC","Facilities Operating Expenses (Rent,Utilities,etc)","$100,439.77 ",11/9/2017
CONSTRUCTION SPECIFICATIONS INSTITUTE,Professional / Technical,$395 ,5/25/2017
CONTINENTAL LANGUAGES LLC,I&D Claims (Damage Reserve),$345 ,1/13/2017
CONTINENTAL LANGUAGES LLC,I&D Claims (Damage Reserve),$210 ,4/18/2017
CONTINENTAL LANGUAGES LLC,I&D Claims (Damage Reserve),$240 ,4/25/2017
CONTINENTAL LANGUAGES LLC,I&D Claims (Damage Reserve),$390 ,5/2/2017
CONTINENTAL LANGUAGES LLC,I&D Claims (Damage Reserve),$210 ,5/30/2017
CONTINENTAL LANGUAGES LLC,I&D Claims (Damage Reserve),$607.50 ,6/2/2017
CONTINENTAL LANGUAGES LLC,I&D Claims (Damage Reserve),"$1,350 ",7/25/2017
CONTINENTAL LANGUAGES LLC,I&D Claims (Damage Reserve),$625 ,10/13/2017
CONTINENTAL LANGUAGES LLC,I&D Claims (Damage Reserve),$140 ,10/13/2017
COOK COUNTY BAR ASSOCIATION,Administrative Support,$450 ,3/29/2017
COOK COUNTY JURY VERDICT REPORTER,Administrative Support,$49.95 ,8/10/2017
COOK COUNTY SHERIFF DEPARTMENT,I&D Claims (Damage Reserve),$40 ,1/10/2017
COOK COUNTY SHERIFF DEPARTMENT,I&D Claims (Damage Reserve),$40 ,1/13/2017
COOK COUNTY SHERIFF DEPARTMENT,I&D Claims (Damage Reserve),$40 ,1/20/2017
COOK COUNTY SHERIFF DEPARTMENT,Maintenance of Buildings,"$40,132.43 ",2/2/2017
COOK COUNTY SHERIFF DEPARTMENT,I&D Claims (Damage Reserve),$40 ,2/9/2017
COOK COUNTY SHERIFF DEPARTMENT,Maintenance of Buildings,"$40,004.44 ",2/9/2017
COOK COUNTY SHERIFF DEPARTMENT,I&D Claims (Damage Reserve),$40 ,2/16/2017
COOK COUNTY SHERIFF DEPARTMENT,I&D Claims (Damage Reserve),$40 ,2/21/2017
COOK COUNTY SHERIFF DEPARTMENT,I&D Claims (Damage Reserve),$80 ,2/22/2017
COOK COUNTY SHERIFF DEPARTMENT,I&D Claims (Damage Reserve),$80 ,3/3/2017
COOK COUNTY SHERIFF DEPARTMENT,I&D Claims (Damage Reserve),$40 ,3/14/2017
COOK COUNTY SHERIFF DEPARTMENT,I&D Claims (Damage Reserve),$40 ,3/14/2017
COOK COUNTY SHERIFF DEPARTMENT,Maintenance of Buildings,"$39,449.63 ",3/22/2017
COOK COUNTY SHERIFF DEPARTMENT,Maintenance of Buildings,"$33,235.69 ",4/6/2017
COOK COUNTY SHERIFF DEPARTMENT,I&D Claims (Damage Reserve),$40 ,4/14/2017
COOK COUNTY SHERIFF DEPARTMENT,I&D Claims (Damage Reserve),$40 ,4/14/2017
COOK COUNTY SHERIFF DEPARTMENT,I&D Claims (Damage Reserve),$40 ,4/18/2017
COOK COUNTY SHERIFF DEPARTMENT,I&D Claims (Damage Reserve),$40 ,5/2/2017
COOK COUNTY SHERIFF DEPARTMENT,I&D Claims (Damage Reserve),$80 ,5/11/2017
COOK COUNTY SHERIFF DEPARTMENT,I&D Claims (Damage Reserve),$40 ,5/16/2017
COOK COUNTY SHERIFF DEPARTMENT,I&D Claims (Damage Reserve),$40 ,5/17/2017
COOK COUNTY SHERIFF DEPARTMENT,I&D Claims (Damage Reserve),$40 ,5/23/2017
COOK COUNTY SHERIFF DEPARTMENT,I&D Claims (Damage Reserve),$40 ,6/16/2017
COOK COUNTY SHERIFF DEPARTMENT,Maintenance of Buildings,"$42,226.05 ",6/29/2017
COOK COUNTY SHERIFF DEPARTMENT,I&D Claims (Damage Reserve),$40 ,7/7/2017
COOK COUNTY SHERIFF DEPARTMENT,I&D Claims (Damage Reserve),$40 ,7/12/2017
COOK COUNTY SHERIFF DEPARTMENT,I&D Claims (Damage Reserve),$40 ,8/1/2017
COOK COUNTY SHERIFF DEPARTMENT,I&D Claims (Damage Reserve),$40 ,8/18/2017
COOK COUNTY SHERIFF DEPARTMENT,I&D Claims (Damage Reserve),$40 ,8/18/2017
COOK COUNTY SHERIFF DEPARTMENT,Maintenance of Buildings,"$33,623.85 ",8/18/2017
COOK COUNTY SHERIFF DEPARTMENT,Maintenance of Buildings,"$35,079.29 ",8/18/2017
COOK COUNTY SHERIFF DEPARTMENT,I&D Claims (Damage Reserve),$60 ,8/25/2017
COOK COUNTY SHERIFF DEPARTMENT,Maintenance of Buildings,"$40,347.01 ",9/5/2017
COOK COUNTY SHERIFF DEPARTMENT,Maintenance of Buildings,"$34,584.91 ",9/5/2017
COOK COUNTY SHERIFF DEPARTMENT,Maintenance of Buildings,"$40,715.05 ",10/18/2017
COOK COUNTY SHERIFF DEPARTMENT,I&D Claims (Damage Reserve),$40 ,11/2/2017
COOK COUNTY SHERIFF DEPARTMENT,I&D Claims (Damage Reserve),$40 ,11/2/2017
COOK COUNTY SHERIFF DEPARTMENT,I&D Claims (Damage Reserve),$80 ,11/14/2017
COOK COUNTY SHERIFF DEPARTMENT,I&D Claims (Damage Reserve),$80 ,11/14/2017
COOK COUNTY SHERIFF DEPARTMENT,I&D Claims (Damage Reserve),$80 ,12/1/2017
COOK COUNTY SHERIFF DEPARTMENT,I&D Claims (Damage Reserve),$80 ,12/1/2017
COOK COUNTY SHERIFF DEPARTMENT,I&D Claims (Damage Reserve),$80 ,12/1/2017
COOK COUNTY SHERIFF DEPARTMENT,I&D Claims (Damage Reserve),$40 ,12/1/2017
COOK COUNTY SHERIFF DEPARTMENT,I&D Claims (Damage Reserve),$80 ,12/6/2017
COOK COUNTY SHERIFF DEPARTMENT,I&D Claims (Damage Reserve),$80 ,12/22/2017
COOK COUNTY SHERIFF DEPARTMENT,I&D Claims (Damage Reserve),$40 ,12/22/2017
COOK COUNTY TREASURER,Real Estate,$656.12 ,3/8/2017
COOK COUNTY TREASURER,Real Estate,$515.50 ,3/8/2017
COOK COUNTY TREASURER,Real Estate,"$7,570,000 ",5/24/2017
COOK COUNTY TREASURER,Real Estate,"$2,150,000 ",6/7/2017
COOK COUNTY TREASURER,Real Estate,"$670,000 ",6/7/2017
COOK COUNTY TREASURER,Real Estate,"$5,140,000 ",7/12/2017
COOK COUNTY TREASURER,Real Estate,"$1,298,225 ",8/11/2017
COOK COUNTY TREASURER,Real Estate,"$4,821.49 ",8/11/2017
COOK COUNTY TREASURER,Real Estate,"$912,000 ",9/22/2017
COOK COUNTY TREASURER,Real Estate,"$2,400,000 ",10/13/2017
COOK COUNTY TREASURER,Real Estate,$570.98 ,11/9/2017
COOK COUNTY TREASURER,Real Estate,"$80,000 ",11/15/2017
COOK COUNTY TREASURER,Real Estate,"$60,000 ",12/13/2017
"COOPER BARRETTE CONSULTING, LLC",I&D Claims (Damage Reserve),"$21,223.07 ",2/3/2017
"COOPER BARRETTE CONSULTING, LLC",I&D Claims (Damage Reserve),"$14,162.62 ",10/12/2017
"CORE MECHANICAL, INC.",Computer Operations,"$2,370 ",10/31/2017
"CORE MECHANICAL, INC.",Computer Operations,"$6,490 ",12/12/2017
CORNELIUS HOLT,I&D Claims (Damage Reserve),$75 ,2/10/2017
CORNELIUS HOLT,I&D Claims (Damage Reserve),$75 ,2/21/2017
CORNELIUS HOLT,I&D Claims (Damage Reserve),$75 ,2/21/2017
CORNER BAKERY CAFE,Professional / Technical,$550 ,2/24/2017
CORNER BAKERY CAFE,Administrative Support,$93.50 ,8/8/2017
CORNER BAKERY CAFE,Employee Recognition,$132 ,10/4/2017
CORPORATE CLEANING SERVICES,Facilities Cleaning,"$9,641 ",1/11/2017
CORPORATE CLEANING SERVICES,Facilities Cleaning,$792 ,3/1/2017
CORPORATE CLEANING SERVICES,Facilities Cleaning,"$9,036 ",4/27/2017
CORPORATE CLEANING SERVICES,Facilities Cleaning,"$21,886 ",5/26/2017
CORPORATE CLEANING SERVICES,Facilities Cleaning,"$12,284 ",7/18/2017
CORPORATE CLEANING SERVICES,Facilities Cleaning,"$25,241 ",8/7/2017
CORPORATE CLEANING SERVICES,Facilities Cleaning,"$7,163 ",8/29/2017
CORPORATE CLEANING SERVICES,Facilities Cleaning,"$10,024 ",9/29/2017
CORPORATE CLEANING SERVICES,Facilities Cleaning,"$10,850 ",10/25/2017
CORPORATE CLEANING SERVICES,Facilities Cleaning,"$17,975 ",11/29/2017
CORPORATE CLEANING SERVICES,Facilities Cleaning,"$17,628 ",12/28/2017
CORPORATE CONCEPTS INC,Maintenance of Buildings,"$1,350 ",1/25/2017
CORPORATE CONCEPTS INC,Maintenance of Buildings,"$2,250 ",1/26/2017
CORPORATE CONCEPTS INC,Maintenance of Buildings,$320 ,2/9/2017
CORPORATE CONCEPTS INC,Maintenance of Buildings,"$25,500 ",2/14/2017
CORPORATE CONCEPTS INC,Maintenance of Buildings,"$1,650 ",2/15/2017
CORPORATE CONCEPTS INC,Maintenance of Buildings,"$22,935 ",2/23/2017
CORPORATE CONCEPTS INC,Maintenance of Buildings,"$4,275 ",3/21/2017
CORPORATE CONCEPTS INC,Maintenance of Buildings,"$41,560.90 ",3/24/2017
CORPORATE CONCEPTS INC,Maintenance of Buildings,"$1,490 ",4/13/2017
CORPORATE CONCEPTS INC,Maintenance of Buildings,"$1,650 ",4/27/2017
CORPORATE CONCEPTS INC,Administrative Support,"$2,736 ",5/23/2017
CORPORATE CONCEPTS INC,Maintenance of Buildings,"$2,827 ",5/23/2017
CORPORATE CONCEPTS INC,Maintenance of Buildings,"$10,900 ",6/16/2017
CORPORATE CONCEPTS INC,Maintenance of Buildings,"$7,487.50 ",7/18/2017
CORPORATE CONCEPTS INC,Maintenance of Buildings,$635 ,7/20/2017
CORPORATE CONCEPTS INC,Maintenance of Buildings,"$1,283 ",8/1/2017
CORPORATE CONCEPTS INC,Maintenance of Buildings,"$4,620 ",8/3/2017
CORPORATE CONCEPTS INC,Maintenance of Buildings,$240 ,9/7/2017
CORPORATE CONCEPTS INC,Maintenance of Buildings,$320 ,10/12/2017
CORPORATE CONCEPTS INC,Maintenance of Buildings,$379.10 ,11/28/2017
"COY PUGH AND ASSOCIATES, LLC",Administrative Support,"$6,000 ",5/23/2017
"COY PUGH AND ASSOCIATES, LLC",Administrative Support,"$18,000 ",5/26/2017
"COY PUGH AND ASSOCIATES, LLC",Administrative Support,"$6,000 ",5/30/2017
"COY PUGH AND ASSOCIATES, LLC",Administrative Support,"$6,000 ",8/11/2017
"COY PUGH AND ASSOCIATES, LLC",Administrative Support,"$6,000 ",8/22/2017
"COY PUGH AND ASSOCIATES, LLC",Administrative Support,"$6,000 ",9/1/2017
"COY PUGH AND ASSOCIATES, LLC",Management,"$6,000 ",10/24/2017
"COY PUGH AND ASSOCIATES, LLC",Management,"$6,000 ",10/31/2017
"COY PUGH AND ASSOCIATES, LLC",Management,"$12,000 ",12/12/2017
COZEN O'CONNOR,Administrative Support,"$35,815 ",1/31/2017
COZEN O'CONNOR,Administrative Support,"$37,400.17 ",3/14/2017
COZEN O'CONNOR,Administrative Support,"$23,601 ",3/28/2017
COZEN O'CONNOR,Administrative Support,"$17,894.05 ",5/10/2017
COZEN O'CONNOR,Administrative Support,"$26,656 ",5/23/2017
COZEN O'CONNOR,Administrative Support,"$8,407.50 ",5/30/2017
COZEN O'CONNOR,Administrative Support,"$90,151.07 ",10/20/2017
COZEN O'CONNOR,Administrative Support,"$43,913 ",11/14/2017
COZEN O'CONNOR,Administrative Support,"$12,580.50 ",12/20/2017
COZEN O'CONNOR,Administrative Support,"$1,087.50 ",12/28/2017
"CRANE 1 SERVICES, INC.",Maintenance of Buildings,"$1,475 ",1/5/2017
"CRANE 1 SERVICES, INC.",Maintenance of Buildings,"$3,620 ",1/12/2017
"CRANE 1 SERVICES, INC.",Maintenance of Buildings,$300 ,1/20/2017
"CRANE 1 SERVICES, INC.",Maintenance of Buildings,$718 ,2/2/2017
"CRANE 1 SERVICES, INC.",Maintenance of Buildings,"$1,625 ",2/3/2017
"CRANE 1 SERVICES, INC.",Maintenance of Buildings,"$1,528 ",2/8/2017
"CRANE 1 SERVICES, INC.",Maintenance of Buildings,"$2,136.50 ",2/9/2017
"CRANE 1 SERVICES, INC.",Maintenance of Buildings,$640 ,2/15/2017
"CRANE 1 SERVICES, INC.",Maintenance of Buildings,"$2,075 ",3/9/2017
"CRANE 1 SERVICES, INC.",Maintenance of Buildings,"$3,813.80 ",3/16/2017
"CRANE 1 SERVICES, INC.",Maintenance of Buildings,"$2,148.75 ",3/17/2017
"CRANE 1 SERVICES, INC.",Maintenance of Buildings,"$3,415 ",3/23/2017
"CRANE 1 SERVICES, INC.",Maintenance of Buildings,"$2,327 ",3/27/2017
"CRANE 1 SERVICES, INC.",Maintenance of Buildings,"$3,434.43 ",4/6/2017
"CRANE 1 SERVICES, INC.",Maintenance of Buildings,"$8,917 ",4/13/2017
"CRANE 1 SERVICES, INC.",Maintenance of Buildings,"$6,627 ",4/20/2017
"CRANE 1 SERVICES, INC.",Maintenance of Buildings,"$3,748 ",4/25/2017
"CRANE 1 SERVICES, INC.",Maintenance of Buildings,"$4,061 ",4/27/2017
"CRANE 1 SERVICES, INC.",Maintenance of Buildings,"$2,072 ",4/28/2017
"CRANE 1 SERVICES, INC.",Maintenance of Buildings,"$4,230 ",5/16/2017
"CRANE 1 SERVICES, INC.",Maintenance of Buildings,$675 ,5/18/2017
"CRANE 1 SERVICES, INC.",Maintenance of Buildings,"$2,057 ",5/25/2017
"CRANE 1 SERVICES, INC.",Maintenance of Buildings,"$5,165 ",5/26/2017
"CRANE 1 SERVICES, INC.",Maintenance of Buildings,"$8,139.29 ",6/8/2017
"CRANE 1 SERVICES, INC.",Maintenance of Buildings,$977 ,6/16/2017
"CRANE 1 SERVICES, INC.",Maintenance of Buildings,$880 ,6/26/2017
"CRANE 1 SERVICES, INC.",Maintenance of Buildings,"$2,652 ",6/29/2017
"CRANE 1 SERVICES, INC.",Maintenance of Equipment,"$5,737.50 ",7/21/2017
"CRANE 1 SERVICES, INC.",Maintenance of Buildings,$254 ,9/14/2017
"CRANE 1 SERVICES, INC.",Maintenance of Buildings,"$3,332 ",10/6/2017
"CRANE 1 SERVICES, INC.",Maintenance of Buildings,"$15,806.50 ",12/5/2017
"CRANE 1 SERVICES, INC.",Maintenance of Equipment,"$2,074 ",12/5/2017
"CRANE 1 SERVICES, INC.",Maintenance of Buildings,"$1,757 ",12/13/2017
"CRANE 1 SERVICES, INC.",Maintenance of Buildings,"$2,126.52 ",12/14/2017
CRASH SAFETY RESEARCH CNTR LLC,I&D Claims (Damage Reserve),"$12,550 ",12/18/2017
CROWE HORWATH LLP,Accounting,"$17,893 ",2/7/2017
CROWE HORWATH LLP,Accounting,"$55,000 ",2/28/2017
CROWE HORWATH LLP,Accounting,"$150,000 ",4/27/2017
CROWE HORWATH LLP,Accounting,"$100,000 ",5/18/2017
CROWE HORWATH LLP,Accounting,"$30,077 ",6/14/2017
CROWE HORWATH LLP,Accounting,"$28,210 ",6/27/2017
CROWE HORWATH LLP,Accounting,"$27,077 ",8/4/2017
CROWE HORWATH LLP,Accounting,"$11,000 ",8/23/2017
CROWE HORWATH LLP,Accounting,"$2,810 ",10/3/2017
CRRC SIFANG AMERICA JV,Equipment Purchases,"$3,160,000 ",5/19/2017
CRRC SIFANG AMERICA JV,Equipment Purchases,"$6,320,000 ",7/25/2017
CRRC SIFANG AMERICA JV,Equipment Purchases,"$3,160,000 ",9/11/2017
CRYSTAL PROFIT,I&D Claims (Damage Reserve),$25 ,11/3/2017
CSC,Consulting Services,$330 ,4/19/2017
CSC,Consulting Services,"$2,453 ",4/24/2017
CSC,Consulting Services,"$6,974 ",5/24/2017
CSC,Consulting Services,"$83,070 ",6/7/2017
CSC,Consulting Services,"$1,793 ",6/28/2017
CSC,Consulting Services,$242 ,7/5/2017
CSC,Consulting Services,"$5,027 ",7/12/2017
CSC,Consulting Services,"$66,952 ",7/21/2017
CSC,Consulting Services,"$4,125 ",8/23/2017
CSC,Consulting Services,"$19,701 ",9/1/2017
CSC,Consulting Services,"$5,632 ",9/8/2017
CSC,Consulting Services,$473 ,10/25/2017
CSC,Consulting Services,"$1,144 ",11/8/2017
CSC,Consulting Services,"$7,667 ",11/13/2017
CSC,Consulting Services,"$1,738 ",12/13/2017
CSI CHICAGO,Engineering,$40 ,2/16/2017
CSI CONSTRUCT c/o COMPUSYSTEMS,Engineering,$485 ,6/6/2017
CTA,Training - Students,$400 ,7/21/2017
"CUBIC TRANSPORTATION SYSTEMS, INC.",Consulting Services,"$31,044 ",2/1/2017
"CUBIC TRANSPORTATION SYSTEMS, INC.",Fare Media,"$886,568.47 ",2/8/2017
"CUBIC TRANSPORTATION SYSTEMS, INC.",Open Fare,"$1,864,941.57 ",2/10/2017
"CUBIC TRANSPORTATION SYSTEMS, INC.",Fare Media,"$470,833.33 ",3/3/2017
"CUBIC TRANSPORTATION SYSTEMS, INC.",Consulting Services,"$15,522 ",3/7/2017
"CUBIC TRANSPORTATION SYSTEMS, INC.",Open Fare,"$936,552 ",3/16/2017
"CUBIC TRANSPORTATION SYSTEMS, INC.",Fare Media,"$245,245.02 ",3/24/2017
"CUBIC TRANSPORTATION SYSTEMS, INC.",Fare Media,"$226,174.44 ",3/27/2017
"CUBIC TRANSPORTATION SYSTEMS, INC.",Consulting Services,"$15,428.40 ",3/30/2017
"CUBIC TRANSPORTATION SYSTEMS, INC.",Open Fare,"$813,180.27 ",4/13/2017
"CUBIC TRANSPORTATION SYSTEMS, INC.",Fare Media,"$224,588.54 ",6/9/2017
"CUBIC TRANSPORTATION SYSTEMS, INC.",Fare Media,"$235,085.84 ",6/13/2017
"CUBIC TRANSPORTATION SYSTEMS, INC.",Consulting Services,"$15,428.40 ",8/2/2017
"CUBIC TRANSPORTATION SYSTEMS, INC.",Fare Media,"$245,394.14 ",8/15/2017
"CUBIC TRANSPORTATION SYSTEMS, INC.",Open Fare,"$1,761,685.85 ",9/8/2017
"CUBIC TRANSPORTATION SYSTEMS, INC.",Consulting Services,"$31,044 ",9/18/2017
"CUBIC TRANSPORTATION SYSTEMS, INC.",Fare Media,"$351,480.18 ",9/25/2017
"CUBIC TRANSPORTATION SYSTEMS, INC.",Open Fare,"$1,010,943.44 ",10/10/2017
"CUBIC TRANSPORTATION SYSTEMS, INC.",Fare Media,"$445,057.86 ",10/11/2017
"CUBIC TRANSPORTATION SYSTEMS, INC.",Fare Media,"$1,260 ",11/17/2017
"CUBIC TRANSPORTATION SYSTEMS, INC.",Open Fare,"$1,873,682.80 ",11/21/2017
"CUBIC TRANSPORTATION SYSTEMS, INC.",Consulting Services,"$30,966 ",11/27/2017
"CUBIC TRANSPORTATION SYSTEMS, INC.",Open Fare,"$983,667.01 ",12/28/2017
CUMMINS INC.,General Shop/Gar/Term Repairs & Svcs,"$1,333.92 ",11/7/2017
CUMMINS INC.,General Shop/Gar/Term Repairs & Svcs,$355.71 ,11/9/2017
CUMMINS INC.,General Shop/Gar/Term Repairs & Svcs,"$1,503.17 ",11/13/2017
CUMMINS INC.,General Shop/Gar/Term Repairs & Svcs,$508.17 ,11/14/2017
CUMMINS INC.,General Shop/Gar/Term Repairs & Svcs,$343 ,11/16/2017
CUMMINS INC.,General Shop/Gar/Term Repairs & Svcs,"$1,882.84 ",12/18/2017
CUMMINS INC.,General Shop/Gar/Term Repairs & Svcs,$724.13 ,12/28/2017
CUMMINS INC.,General Shop/Gar/Term Repairs & Svcs,"$1,702.33 ",12/29/2017
"CUMMINS NPOWER, LLC.",General Shop/Gar/Term Repairs & Svcs,"$2,239.27 ",1/24/2017
"CUMMINS NPOWER, LLC.",General Shop/Gar/Term Repairs & Svcs,$304.89 ,1/25/2017
"CUMMINS NPOWER, LLC.",General Shop/Gar/Term Repairs & Svcs,$625 ,1/26/2017
"CUMMINS NPOWER, LLC.",General Shop/Gar/Term Repairs & Svcs,$655 ,2/7/2017
"CUMMINS NPOWER, LLC.",General Shop/Gar/Term Repairs & Svcs,"$1,488.52 ",2/27/2017
"CUMMINS NPOWER, LLC.",Repair Propulsion,"$32,885 ",3/2/2017
"CUMMINS NPOWER, LLC.",General Shop/Gar/Term Repairs & Svcs,"$1,205.80 ",3/16/2017
"CUMMINS NPOWER, LLC.",General Shop/Gar/Term Repairs & Svcs,$50.82 ,3/22/2017
"CUMMINS NPOWER, LLC.",General Shop/Gar/Term Repairs & Svcs,"$8,017.21 ",3/30/2017
"CUMMINS NPOWER, LLC.",General Shop/Gar/Term Repairs & Svcs,$101.63 ,4/6/2017
"CUMMINS NPOWER, LLC.",Maintenance of Equipment,$266.78 ,4/19/2017
